Workbook

Sheet 資料勿動 (hidden)
A1: BillToCode | B1: BillToShortName | C1: 第一組 | D1: 第二組 | E1: 部門名稱 | F1: 區 | G1: 區1 | H1: BUYING_GROUP | I1: BUYING_GROUP-1 | J1: SalesChannelName | K1: SalesAR | L1: ARSalesChannel | M1: 1971122560 | N1: 使用狀態 | O1: Promotion_total | P1: Promotion_bill | Q1: Promotion_buy
A2: TW002512001B | B2: ONETIMECUSTOMER | G2: ETC | H2: ETC | I2: ETC_TT | J2: TW002512001B | K2: =VLOOKUP(A2,[2]工作表5!$A$1:$D$565,4,0) -> 29551 | L2: ETC | M2: 1971122496 | N2: A | O2: =IF(N2="I","無往來",IF(SUM(P2:Q2)>0,"OK","沒有promotion")) ->  | P2: =COUNTIF([3]BALANCE!$A$1:$A$65536,[3]notouch!$A2) ->  | Q2: =COUNTIF([3]BALANCE!$A$1:$A$65536,[3]notouch!$H2) -> 
A3: TW006291001B | B3: ONETIMECUSTOMER | G3: ETC | H3: ETC | I3: ETC_TT | J3: TW006291001B | M3: =M1-M2 -> 64 | N3: A | O3: =IF(N3="I","無往來",IF(SUM(P3:Q3)>0,"OK","沒有promotion")) ->  | P3: =COUNTIF([3]BALANCE!$A$1:$A$65536,[3]notouch!$A3) ->  | Q3: =COUNTIF([3]BALANCE!$A$1:$A$65536,[3]notouch!$H3) -> 
A4: TW002605001B | B4: ONE TIME SERVICE FOR TYPE 2 | G4: ETC | H4: ETC | I4: ETC_TT | J4: TW002605001B | K4: =VLOOKUP(A4,[2]工作表5!$A$1:$D$565,4,0) -> 6078269 | L4: SVC | N4: A | O4: =IF(N4="I","無往來",IF(SUM(P4:Q4)>0,"OK","沒有promotion")) ->  | P4: =COUNTIF([3]BALANCE!$A$1:$A$65536,[3]notouch!$A4) ->  | Q4: =COUNTIF([3]BALANCE!$A$1:$A$65536,[3]notouch!$H4) -> 
A5: TW003659001B | B5: ONE TIME SERVICE E-INVOICE FOR TYPE2 | G5: ETC | H5: ETC | I5: ETC_TT | J5: TW003659001B | K5: =VLOOKUP(A5,[2]工作表5!$A$1:$D$565,4,0) -> 313110 | L5: SVC | N5: A | P5: =COUNTIF([3]BALANCE!$A$1:$A$65536,[3]notouch!$A5) ->  | Q5: =COUNTIF([3]BALANCE!$A$1:$A$65536,[3]notouch!$H5) -> 
A6: TW005429001B | B6: One time_SVC | G6: SVC | H6: SVC | I6: SVC | J6: TW005429001B | K6: =VLOOKUP(A6,[2]工作表5!$A$1:$D$565,4,0) -> 2835209 | L6: SVC | N6: A | P6: =COUNTIF([3]BALANCE!$A$1:$A$65536,[3]notouch!$A6) ->  | Q6: =COUNTIF([3]BALANCE!$A$1:$A$65536,[3]notouch!$H6) -> 
A7: TW005433001B | G7: ETC | H7: ETC | I7: ETC_TT | J7: TW005433001B | K7: =VLOOKUP(A7,[2]工作表5!$A$1:$D$565,4,0) -> 5742844 | L7: ETC | N7: A | P7: =COUNTIF([3]BALANCE!$A$1:$A$65536,[3]notouch!$A7) ->  | Q7: =COUNTIF([3]BALANCE!$A$1:$A$65536,[3]notouch!$H7) -> 
A8: TW004851001B | B8: 億電通國際 | G8: SVC | H8: SVC | I8: SVC | J8: TW004851001B | K8: =VLOOKUP(A8,[2]工作表5!$A$1:$D$565,4,0) -> 721971 | L8: SVC | N8: A | P8: =COUNTIF([3]BALANCE!$A$1:$A$65536,[3]notouch!$A8) ->  | Q8: =COUNTIF([3]BALANCE!$A$1:$A$65536,[3]notouch!$H8) -> 
A9: TW007120001B | B9: 通達智能 | G9: SVC | H9: SVC | I9: SVC | J9: TW007120001B | L9: SVC | N9: A | P9: =COUNTIF([3]BALANCE!$A$1:$A$65536,[3]notouch!$A9) ->  | Q9: =COUNTIF([3]BALANCE!$A$1:$A$65536,[3]notouch!$H9) -> 
A10: TW006965001B | B10: 李師傅企業社 | G10: SVC | H10: SVC | I10: SVC | J10: TW006965001B | K10: =VLOOKUP(A10,[2]工作表5!$A$1:$D$565,4,0) -> 47453 | L10: SVC | N10: A | P10: =COUNTIF([3]BALANCE!$A$1:$A$65536,[3]notouch!$A10) ->  | Q10: =COUNTIF([3]BALANCE!$A$1:$A$65536,[3]notouch!$H10) -> 
A11: CN000116066B | G11: ETC | H11: ETC | I11: ETC_TT | J11: CN000116066B | L11: ETC | N11: A | P11: =COUNTIF([3]BALANCE!$A$1:$A$65536,[3]notouch!$A11) ->  | Q11: =COUNTIF([3]BALANCE!$A$1:$A$65536,[3]notouch!$H11) -> 
A12: KR000001066B | B12: LGEHQ | G12: ETC | H12: ETC | I12: ETC_TT | J12: KR000001066B | K12: =VLOOKUP(A12,[2]工作表5!$A$1:$D$565,4,0) -> 1081075 | L12: ETC | N12: A | P12: =COUNTIF([3]BALANCE!$A$1:$A$65536,[3]notouch!$A12) ->  | Q12: =COUNTIF([3]BALANCE!$A$1:$A$65536,[3]notouch!$H12) -> 
A13: PH000001009B | B13: LGEPH | G13: ETC | H13: ETC | I13: ETC_TT | J13: PH000001009B | N13: A | P13: =COUNTIF([3]BALANCE!$A$1:$A$65536,[3]notouch!$A13) ->  | Q13: =COUNTIF([3]BALANCE!$A$1:$A$65536,[3]notouch!$H13) -> 
A14: VN007883040B | B14: LGEVH | G14: ETC | H14: ETC | I14: ETC_TT | J14: VN007883040B | N14: A | P14: =COUNTIF([3]BALANCE!$A$1:$A$65536,[3]notouch!$A14) ->  | Q14: =COUNTIF([3]BALANCE!$A$1:$A$65536,[3]notouch!$H14) -> 
A15: ZA000001060B | B15: LGESA | G15: ETC | H15: ETC | I15: ETC_TT | J15: ZA000001060B | L15: ETC | N15: A | P15: =COUNTIF([3]BALANCE!$A$1:$A$65536,[3]notouch!$A15) ->  | Q15: =COUNTIF([3]BALANCE!$A$1:$A$65536,[3]notouch!$H15) -> 
A16: MX011038033B | B16: LGEMN | G16: ETC | H16: ETC | I16: ETC_TT | J16: MX011038033B | K16: =VLOOKUP(A16,[2]工作表5!$A$1:$D$565,4,0) -> 7991 | L16: ETC | N16: A | P16: =COUNTIF([3]BALANCE!$A$1:$A$65536,[3]notouch!$A16) ->  | Q16: =COUNTIF([3]BALANCE!$A$1:$A$65536,[3]notouch!$H16) -> 
A17: CN000135060B | B17: LGEPN | G17: ETC | H17: ETC | I17: ETC_TT | J17: CN000135060B | L17: ETC | N17: A | P17: =COUNTIF([3]BALANCE!$A$1:$A$65536,[3]notouch!$A17) ->  | Q17: =COUNTIF([3]BALANCE!$A$1:$A$65536,[3]notouch!$H17) -> 
A18: TH000002054B | B18: LGETH | G18: ETC | H18: ETC | I18: ETC_TT | J18: TH000002054B | L18: ETC | N18: A | O18: =IF(N18="I","無往來",IF(SUM(P18:Q18)>0,"OK","沒有promotion")) ->  | P18: =COUNTIF([3]BALANCE!$A$1:$A$65536,[3]notouch!$A18) ->  | Q18: =COUNTIF([3]BALANCE!$A$1:$A$65536,[3]notouch!$H18) -> 
A19: SG001062061B | G19: ETC | H19: ETC | I19: ETC_TT | J19: SG001062061B | N19: A | P19: =COUNTIF([3]BALANCE!$A$1:$A$65536,[3]notouch!$A19) ->  | Q19: =COUNTIF([3]BALANCE!$A$1:$A$65536,[3]notouch!$H19) -> 
A20: JP000001029B | B20: LGEJP | G20: ETC | H20: ETC | I20: ETC_TT | J20: JP000001029B | N20: A | P20: =COUNTIF([3]BALANCE!$A$1:$A$65536,[3]notouch!$A20) ->  | Q20: =COUNTIF([3]BALANCE!$A$1:$A$65536,[3]notouch!$H20) -> 
A21: ID000002065B | B21: PT. LG ELECTRONICS INDONESIA | G21: ETC | H21: ETC | I21: ETC_TT | J21: ID000002065B | N21: A | P21: =COUNTIF([3]BALANCE!$A$1:$A$65536,[3]notouch!$A21) ->  | Q21: =COUNTIF([3]BALANCE!$A$1:$A$65536,[3]notouch!$H21) -> 
A22: TW002070001B | B22: 來福電器商行 | C22: 19600401 | D22: 08026783 | E22: 高屏營銷處 | F22: GWB | G22: 高屏 | H22: DEALER_TT | I22: DLC_TT | J22: TW002070001B | K22: =VLOOKUP(A22,[2]工作表5!$A$1:$D$565,4,0) -> 131641 | L22: 高屏營銷處 | N22: A | P22: =COUNTIF([3]BALANCE!$A$1:$A$65536,[3]notouch!$A22) ->  | Q22: =COUNTIF([3]BALANCE!$A$1:$A$65536,[3]notouch!$H22) -> 
A23: TW002073001B | B23: 貴櫻音響 | C23: 19660906 | D23: 95987415 | E23: 高屏營銷處 | F23: GWB | G23: 高屏 | H23: DEALER_TT | I23: DLC_TT | N23: I | O23: 無往來 | P23: =COUNTIF([3]BALANCE!$A$1:$A$65536,[3]notouch!$A23) ->  | Q23: =COUNTIF([3]BALANCE!$A$1:$A$65536,[3]notouch!$H23) -> 
A24: TW002076001B | B24: 億興電業行 | C24: 19640715 | D24: 70940630 | E24: 空調營銷處 | F24: AC part | G24: 高屏 | H24: DEALER_TT | I24: DLC_TT | J24: TW002076001B | K24: 1 | L24: AC part | N24: A | P24: =COUNTIF([3]BALANCE!$A$1:$A$65536,[3]notouch!$A24) ->  | Q24: =COUNTIF([3]BALANCE!$A$1:$A$65536,[3]notouch!$H24) -> 
A25: TW002077001B | B25: 信一電器行 | C25: 19520302 | D25: 91730759 | E25: 高屏營銷處 | F25: GWB | G25: 高屏 | H25: DEALER_TT | I25: DLC_TT | J25: TW002077001B | K25: 1 | L25: 高屏營銷處 | N25: A | P25: =COUNTIF([3]BALANCE!$A$1:$A$65536,[3]notouch!$A25) ->  | Q25: =COUNTIF([3]BALANCE!$A$1:$A$65536,[3]notouch!$H25) -> 
A26: TW002079001B | B26: 立陞電器 | C26: 19600710 | D26: 23956174 | E26: 高屏營銷處 | F26: GWB | G26: 高屏 | H26: DEALER_TT | I26: DLC_TT | J26: TW002079001B | L26: 高屏營銷處 | N26: A | P26: =COUNTIF([3]BALANCE!$A$1:$A$65536,[3]notouch!$A26) ->  | Q26: =COUNTIF([3]BALANCE!$A$1:$A$65536,[3]notouch!$H26) -> 
A27: TW002083001B | B27: 路得企業有限公司 | C27: 19600503 | D27: 84672419 | E27: 高屏營銷處 | F27: GWB | G27: 高屏 | H27: DEALER_TT | I27: DCS_TT | J27: TW002083001B | K27: =VLOOKUP(A27,[2]工作表5!$A$1:$D$565,4,0) -> 65388 | L27: 高屏營銷處 | N27: A | P27: =COUNTIF([3]BALANCE!$A$1:$A$65536,[3]notouch!$A27) ->  | Q27: =COUNTIF([3]BALANCE!$A$1:$A$65536,[3]notouch!$H27) -> 
A28: TW002084001B | B28: 新進發企業行 | C28: 19520414 | D28: 90802950 | E28: 高屏營銷處 | F28: GWB | G28: 高屏 | H28: DEALER_TT | I28: DLC_TT | N28: I | O28: 無往來 | P28: =COUNTIF([3]BALANCE!$A$1:$A$65536,[3]notouch!$A28) ->  | Q28: =COUNTIF([3]BALANCE!$A$1:$A$65536,[3]notouch!$H28) -> 
A29: TW002085001B | B29: 皇昇電器行 | C29: 19600320 | D29: 08069071 | E29: 高屏營銷處 | F29: GWB | G29: 高屏 | H29: DEALER_TT | I29: DLC_TT | N29: I | O29: 無往來 | P29: =COUNTIF([3]BALANCE!$A$1:$A$65536,[3]notouch!$A29) ->  | Q29: =COUNTIF([3]BALANCE!$A$1:$A$65536,[3]notouch!$H29) -> 
A30: TW002090001B | B30: 慶旺電器有限公司 | C30: hw7498625 | D30: hw16826605 | E30: 高屏營銷處 | F30: GWB | G30: 高屏 | H30: DEALER_TT | I30: DLC_TT | J30: TW002090001B | L30: 高屏營銷處 | N30: A | P30: =COUNTIF([3]BALANCE!$A$1:$A$65536,[3]notouch!$A30) ->  | Q30: =COUNTIF([3]BALANCE!$A$1:$A$65536,[3]notouch!$H30) -> 
A31: TW002091001B | B31: 人友電器行 | C31: 19601028 | D31: 77003547 | E31: 高屏營銷處 | F31: GWB | G31: 高屏 | H31: DEALER_TT | I31: DLC_TT | J31: TW002091001B | L31: 高屏營銷處 | N31: A | P31: =COUNTIF([3]BALANCE!$A$1:$A$65536,[3]notouch!$A31) ->  | Q31: =COUNTIF([3]BALANCE!$A$1:$A$65536,[3]notouch!$H31) -> 
A32: TW002093001B | B32: 鴻嘉電化商行 | C32: 19480106 | D32: 06696505 | E32: 高屏營銷處 | F32: GWB | G32: 高屏 | H32: DEALER_TT | I32: DCS_TT | J32: TW002093001B | K32: =VLOOKUP(A32,[2]工作表5!$A$1:$D$565,4,0) -> 63723 | L32: 高屏營銷處 | N32: A | P32: =COUNTIF([3]BALANCE!$A$1:$A$65536,[3]notouch!$A32) ->  | Q32: =COUNTIF([3]BALANCE!$A$1:$A$65536,[3]notouch!$H32) -> 
A33: TW002094001B | B33: 力利企業有限公司 | C33: 19660912 | D33: 16683445 | E33: 高屏營銷處 | F33: GWB | G33: 高屏 | H33: DEALER_TT | I33: DCS_TT | J33: TW002094001B | K33: =VLOOKUP(A33,[2]工作表5!$A$1:$D$565,4,0) -> 86324 | L33: 高屏營銷處 | N33: A | P33: =COUNTIF([3]BALANCE!$A$1:$A$65536,[3]notouch!$A33) ->  | Q33: =COUNTIF([3]BALANCE!$A$1:$A$65536,[3]notouch!$H33) -> 
A34: TW002099001B | B34: 淙勝電器有限公司 | C34: 19580807 | D34: 16476213 | E34: 高屏營銷處 | F34: GWB | G34: 高屏 | H34: DEALER_TT | I34: DLC_TT | J34: TW002099001B | L34: 高屏營銷處 | N34: A | P34: =COUNTIF([3]BALANCE!$A$1:$A$65536,[3]notouch!$A34) ->  | Q34: =COUNTIF([3]BALANCE!$A$1:$A$65536,[3]notouch!$H34) -> 
A35: TW002104001B | B35: 三豐電器行 | C35: 19681110 | D35: 19661607 | E35: 高屏營銷處 | F35: GWB | G35: 高屏 | H35: DEALER_TT | I35: DLC_TT | J35: TW002104001B | L35: 高屏營銷處 | N35: A | P35: =COUNTIF([3]BALANCE!$A$1:$A$65536,[3]notouch!$A35) ->  | Q35: =COUNTIF([3]BALANCE!$A$1:$A$65536,[3]notouch!$H35) -> 
A36: TW002105001B | B36: 上眾電器有限公司 | C36: 19600908 | D36: 97408406 | E36: 高屏營銷處 | F36: GWB | G36: 高屏 | H36: DEALER_TT | I36: DLC_TT | J36: TW002105001B | K36: =VLOOKUP(A36,[2]工作表5!$A$1:$D$565,4,0) -> 104498 | L36: 高屏營銷處 | N36: A | P36: =COUNTIF([3]BALANCE!$A$1:$A$65536,[3]notouch!$A36) ->  | Q36: =COUNTIF([3]BALANCE!$A$1:$A$65536,[3]notouch!$H36) -> 
A37: TW002106001B | B37: 大時代量販家電 | C37: 19670921 | D37: 07910980 | E37: 高屏營銷處 | F37: GWB | G37: 高屏 | H37: DEALER_TT | I37: SPD_TT | J37: TW002106001B | K37: =VLOOKUP(A37,[2]工作表5!$A$1:$D$565,4,0) -> 1905349 | L37: 高屏營銷處 | N37: A | P37: =COUNTIF([3]BALANCE!$A$1:$A$65536,[3]notouch!$A37) ->  | Q37: =COUNTIF([3]BALANCE!$A$1:$A$65536,[3]notouch!$H37) -> 
A38: TW002108001B | B38: 春聲電器有限公司 | C38: 19590922 | D38: 86633356 | E38: 高屏營銷處 | F38: GWB | G38: 高屏 | H38: DEALER_TT | I38: DLC_TT | J38: TW002108001B | K38: =VLOOKUP(A38,[2]工作表5!$A$1:$D$565,4,0) -> 372983 | L38: 高屏營銷處 | N38: A | P38: =COUNTIF([3]BALANCE!$A$1:$A$65536,[3]notouch!$A38) ->  | Q38: =COUNTIF([3]BALANCE!$A$1:$A$65536,[3]notouch!$H38) -> 
A39: TW002118001B | B39: 福總電業社 | C39: 19551001 | D39: 08519549 | E39: 高屏營銷處 | F39: GWB | G39: 高屏 | H39: DEALER_TT | I39: DLC_TT | J39: TW002118001B | K39: =VLOOKUP(A39,[2]工作表5!$A$1:$D$565,4,0) -> 15988 | L39: 高屏營銷處 | N39: A | P39: =COUNTIF([3]BALANCE!$A$1:$A$65536,[3]notouch!$A39) ->  | Q39: =COUNTIF([3]BALANCE!$A$1:$A$65536,[3]notouch!$H39) -> 
A40: TW002119001B | B40: 聯立貿易有限公司 | C40: 19520813 | D40: 70405187 | E40: 高屏營銷處 | F40: GWB | G40: 高屏 | H40: DEALER_TT | I40: DLC_TT | J40: TW002119001B | K40: =VLOOKUP(A40,[2]工作表5!$A$1:$D$565,4,0) -> 60798 | L40: 高屏營銷處 | N40: A | P40: =COUNTIF([3]BALANCE!$A$1:$A$65536,[3]notouch!$A40) ->  | Q40: =COUNTIF([3]BALANCE!$A$1:$A$65536,[3]notouch!$H40) -> 
A41: TW002130001B | B41: 百鈴電器影視有限公司 | C41: 19530824 | D41: 72192956 | E41: 嘉南營銷處 | F41: DNB | G41: 嘉南 | H41: DEALER_TT | I41: DLC_TT | J41: TW002130001B | K41: =VLOOKUP(A41,[2]工作表5!$A$1:$D$565,4,0) -> 125381 | L41: 嘉南營銷處 | N41: A | P41: =COUNTIF([3]BALANCE!$A$1:$A$65536,[3]notouch!$A41) ->  | Q41: =COUNTIF([3]BALANCE!$A$1:$A$65536,[3]notouch!$H41) -> 
A42: TW002140001B | B42: 大時代量販家電 | C42: 19681011 | D42: 87692727 | E42: 嘉南營銷處 | F42: DNB | G42: 嘉南 | H42: DEALER_TT | I42: DCS_TT | J42: TW002140001B | K42: =VLOOKUP(A42,[2]工作表5!$A$1:$D$565,4,0) -> 593672 | L42: 嘉南營銷處 | N42: A | P42: =COUNTIF([3]BALANCE!$A$1:$A$65536,[3]notouch!$A42) ->  | Q42: =COUNTIF([3]BALANCE!$A$1:$A$65536,[3]notouch!$H42) -> 
A43: TW002141001B | B43: 冠銓電器有限公司 | C43: 19630606 | D43: 16860835 | E43: 嘉南營銷處 | F43: DNB | G43: 嘉南 | H43: DEALER_TT | I43: SPD_TT | J43: TW002141001B | L43: 嘉南營銷處 | N43: A | P43: =COUNTIF([3]BALANCE!$A$1:$A$65536,[3]notouch!$A43) ->  | Q43: =COUNTIF([3]BALANCE!$A$1:$A$65536,[3]notouch!$H43) -> 
A44: TW002143001B | B44: 全省電器有限公司 | C44: 19701230 | D44: 69689334 | E44: 嘉南營銷處 | F44: DNB | G44: 嘉南 | H44: DEALER_TT | I44: SPD_TT | J44: TW002143001B | K44: =VLOOKUP(A44,[2]工作表5!$A$1:$D$565,4,0) -> 4596192 | L44: 嘉南營銷處 | N44: A | P44: =COUNTIF([3]BALANCE!$A$1:$A$65536,[3]notouch!$A44) ->  | Q44: =COUNTIF([3]BALANCE!$A$1:$A$65536,[3]notouch!$H44) -> 
A45: TW002144001B | B45: 歐鋒電器行 | C45: 19630108 | D45: 78995756 | E45: 嘉南營銷處 | F45: DNB | G45: 嘉南 | H45: DEALER_TT | I45: DCS_TT | J45: TW002144001B | L45: 嘉南營銷處 | N45: A | P45: =COUNTIF([3]BALANCE!$A$1:$A$65536,[3]notouch!$A45) ->  | Q45: =COUNTIF([3]BALANCE!$A$1:$A$65536,[3]notouch!$H45) -> 
A46: TW002146001B | B46: 宇騰電器行 | C46: 19630910 | D46: 78630074 | E46: 嘉南營銷處 | F46: DNB | G46: 嘉南 | H46: DEALER_TT | I46: DCS_TT | N46: I | O46: 無往來 | P46: =COUNTIF([3]BALANCE!$A$1:$A$65536,[3]notouch!$A46) ->  | Q46: =COUNTIF([3]BALANCE!$A$1:$A$65536,[3]notouch!$H46) -> 
A47: TW002150001B | B47: 宏偉電器行 | C47: 19610121 | D47: 06504730 | E47: 嘉南營銷處 | F47: DNB | G47: 嘉南 | H47: DEALER_TT | I47: DLC_TT | J47: TW002150001B | K47: =VLOOKUP(A47,[2]工作表5!$A$1:$D$565,4,0) -> 60970 | L47: 嘉南營銷處 | N47: A | P47: =COUNTIF([3]BALANCE!$A$1:$A$65536,[3]notouch!$A47) ->  | Q47: =COUNTIF([3]BALANCE!$A$1:$A$65536,[3]notouch!$H47) -> 
A48: TW002151001B | B48: 松寶電器行 | C48: 19530411 | D48: 85741379 | E48: 嘉南營銷處 | F48: DNB | G48: 嘉南 | H48: DEALER_TT | I48: DLC_TT | J48: TW002151001B | K48: =VLOOKUP(A48,[2]工作表5!$A$1:$D$565,4,0) -> 0 | L48: 嘉南營銷處 | N48: A | P48: =COUNTIF([3]BALANCE!$A$1:$A$65536,[3]notouch!$A48) ->  | Q48: =COUNTIF([3]BALANCE!$A$1:$A$65536,[3]notouch!$H48) -> 
A49: TW002152001B | B49: 世英電業行 | C49: 19510120 | D49: 69310389 | E49: 嘉南營銷處 | F49: DNB | G49: 嘉南 | H49: DEALER_TT | I49: DCS_TT | N49: A | P49: =COUNTIF([3]BALANCE!$A$1:$A$65536,[3]notouch!$A49) ->  | Q49: =COUNTIF([3]BALANCE!$A$1:$A$65536,[3]notouch!$H49) -> 
A50: TW002154001B | B50: 信福電器有限公司 | C50: 19710107 | D50: 69279211 | E50: 嘉南營銷處 | F50: DNB | G50: 嘉南 | H50: DEALER_TT | I50: DCS_TT | J50: TW002154001B | K50: =VLOOKUP(A50,[2]工作表5!$A$1:$D$565,4,0) -> 1748681 | L50: 嘉南營銷處 | N50: A | P50: =COUNTIF([3]BALANCE!$A$1:$A$65536,[3]notouch!$A50) ->  | Q50: =COUNTIF([3]BALANCE!$A$1:$A$65536,[3]notouch!$H50) -> 
A51: TW002155001B | B51: 老李電器企業有限公司 | C51: 19541025 | D51: 06375829 | E51: 嘉南營銷處 | F51: DNB | G51: 嘉南 | H51: DEALER_TT | I51: DLC_TT | J51: TW002155001B | K51: =VLOOKUP(A51,[2]工作表5!$A$1:$D$565,4,0) -> 0 | L51: 嘉南營銷處 | N51: A | P51: =COUNTIF([3]BALANCE!$A$1:$A$65536,[3]notouch!$A51) ->  | Q51: =COUNTIF([3]BALANCE!$A$1:$A$65536,[3]notouch!$H51) -> 
A52: TW002158001B | B52: 中美電器行 | C52: 19640417 | D52: 20198584 | E52: 嘉南營銷處 | F52: DNB | G52: 嘉南 | H52: DEALER_TT | I52: DLC_TT | J52: TW002158001B | K52: =VLOOKUP(A52,[2]工作表5!$A$1:$D$565,4,0) -> 60024 | L52: 嘉南營銷處 | N52: A | P52: =COUNTIF([3]BALANCE!$A$1:$A$65536,[3]notouch!$A52) ->  | Q52: =COUNTIF([3]BALANCE!$A$1:$A$65536,[3]notouch!$H52) -> 
A53: TW002173001B | B53: 泰欣電器行 | C53: 19601208 | D53: 06556096 | E53: 嘉南營銷處 | F53: DNB | G53: 嘉南 | H53: DEALER_TT | I53: DCS_TT | J53: TW002173001B | K53: =VLOOKUP(A53,[2]工作表5!$A$1:$D$565,4,0) -> 210566 | L53: 嘉南營銷處 | N53: A | P53: =COUNTIF([3]BALANCE!$A$1:$A$65536,[3]notouch!$A53) ->  | Q53: =COUNTIF([3]BALANCE!$A$1:$A$65536,[3]notouch!$H53) -> 
A54: TW002174001B | B54: 強尼電器百貨大批發 | C54: 19651231 | D54: 06583544 | E54: 嘉南營銷處 | F54: DNB | G54: 嘉南 | H54: DEALER_TT | I54: DLC_TT | N54: A | P54: =COUNTIF([3]BALANCE!$A$1:$A$65536,[3]notouch!$A54) ->  | Q54: =COUNTIF([3]BALANCE!$A$1:$A$65536,[3]notouch!$H54) -> 
A55: TW002176001B | B55: 益昌電氣行 | C55: 19720603 | D55: 72166747 | E55: 嘉南營銷處 | F55: DNB | G55: 嘉南 | H55: DEALER_TT | I55: DLC_TT | J55: TW002176001B | K55: =VLOOKUP(A55,[2]工作表5!$A$1:$D$565,4,0) -> 103583 | L55: 嘉南營銷處 | N55: A | P55: =COUNTIF([3]BALANCE!$A$1:$A$65536,[3]notouch!$A55) ->  | Q55: =COUNTIF([3]BALANCE!$A$1:$A$65536,[3]notouch!$H55) -> 
A56: TW002192001B | B56: 和春電器行 | C56: 19681015 | D56: 64910498 | E56: 嘉南營銷處 | F56: DNB | G56: 嘉南 | H56: DEALER_TT | I56: DLC_TT | J56: TW002192001B | K56: 1 | L56: 嘉南營銷處 | N56: A | P56: =COUNTIF([3]BALANCE!$A$1:$A$65536,[3]notouch!$A56) ->  | Q56: =COUNTIF([3]BALANCE!$A$1:$A$65536,[3]notouch!$H56) -> 
A57: TW002194001B | B57: 宏達電氣行 | C57: 19780611 | D57: 64862377 | E57: 台中營銷處 | F57: DJB | G57: 台中 | H57: DEALER_TT | I57: DCS_TT | J57: TW002194001B | K57: =VLOOKUP(A57,[2]工作表5!$A$1:$D$565,4,0) -> 234268 | L57: 台中營銷處 | N57: A | P57: =COUNTIF([3]BALANCE!$A$1:$A$65536,[3]notouch!$A57) ->  | Q57: =COUNTIF([3]BALANCE!$A$1:$A$65536,[3]notouch!$H57) -> 
A58: TW002201001B | B58: 中聯發國際企業有限公司 | C58: TW002201 | D58: 16402395 | E58: 台中營銷處 | F58: DJB | G58: 台中 | H58: DEALER_TT | I58: DLC_TT | J58: TW002201001B | K58: =VLOOKUP(A58,[2]工作表5!$A$1:$D$565,4,0) -> 24535 | L58: 台中營銷處 | N58: A | P58: =COUNTIF([3]BALANCE!$A$1:$A$65536,[3]notouch!$A58) ->  | Q58: =COUNTIF([3]BALANCE!$A$1:$A$65536,[3]notouch!$H58) -> 
A59: TW002204001B | B59: 鑫昌電器有限公司 | C59: 22789515 | D59: 22791019 | E59: 台中營銷處 | F59: DJB | G59: 台中 | H59: DEALER_TT | I59: SPD_TT | J59: TW002204001B | L59: 台中營銷處 | N59: A | P59: =COUNTIF([3]BALANCE!$A$1:$A$65536,[3]notouch!$A59) ->  | Q59: =COUNTIF([3]BALANCE!$A$1:$A$65536,[3]notouch!$H59) -> 
A60: TW002206001B | B60: 祥峰電器行 | C60: TW002206 | D60: 61841075 | E60: 台中營銷處 | F60: DJB | G60: 台中 | H60: DEALER_TT | I60: DLC_TT | J60: TW002206001B | K60: 1 | L60: 台中營銷處 | N60: A | P60: =COUNTIF([3]BALANCE!$A$1:$A$65536,[3]notouch!$A60) ->  | Q60: =COUNTIF([3]BALANCE!$A$1:$A$65536,[3]notouch!$H60) -> 
A61: TW002214001B | B61: 欣益電器行 | C61: TW002214 | D61: 12043905 | E61: 台中營銷處 | F61: DJB | G61: 台中 | H61: DEALER_TT | I61: SPD_TT | J61: TW002214001B | K61: =VLOOKUP(A61,[2]工作表5!$A$1:$D$565,4,0) -> 321975 | L61: 台中營銷處 | N61: A | P61: =COUNTIF([3]BALANCE!$A$1:$A$65536,[3]notouch!$A61) ->  | Q61: =COUNTIF([3]BALANCE!$A$1:$A$65536,[3]notouch!$H61) -> 
A62: TW002223001B | B62: 長紅電子專賣店 | C62: 19680422 | D62: 92812618 | E62: 台中營銷處 | F62: DJB | G62: 台中 | H62: DEALER_TT | I62: DLC_TT | J62: TW002223001B | K62: =VLOOKUP(A62,[2]工作表5!$A$1:$D$565,4,0) -> 45192 | L62: 台中營銷處 | N62: A | P62: =COUNTIF([3]BALANCE!$A$1:$A$65536,[3]notouch!$A62) ->  | Q62: =COUNTIF([3]BALANCE!$A$1:$A$65536,[3]notouch!$H62) -> 
A63: TW002228001B | B63: 嘉聲電器有限公司 | C63: TW002228 | D63: 22960798 | E63: 台中營銷處 | F63: DJB | G63: 台中 | H63: DEALER_TT | I63: DLC_TT | N63: I | O63: 無往來 | P63: =COUNTIF([3]BALANCE!$A$1:$A$65536,[3]notouch!$A63) ->  | Q63: =COUNTIF([3]BALANCE!$A$1:$A$65536,[3]notouch!$H63) -> 
A64: TW002229001B | B64: 宏昌電器行 | C64: 19590618 | D64: 24151920 | E64: 台中營銷處 | F64: DJB | G64: 台中 | H64: DEALER_TT | I64: DLC_TT | J64: TW002229001B | K64: 1 | L64: 台中營銷處 | N64: A | P64: =COUNTIF([3]BALANCE!$A$1:$A$65536,[3]notouch!$A64) ->  | Q64: =COUNTIF([3]BALANCE!$A$1:$A$65536,[3]notouch!$H64) -> 
A65: TW002239001B | B65: 明信電子專賣店 | C65: 19641206 | D65: 77109680 | E65: 台中營銷處 | F65: DJB | G65: 台中 | H65: DEALER_TT | I65: DLC_TT | J65: TW002239001B | K65: =VLOOKUP(A65,[2]工作表5!$A$1:$D$565,4,0) -> 48996 | L65: 台中營銷處 | N65: A | P65: =COUNTIF([3]BALANCE!$A$1:$A$65536,[3]notouch!$A65) ->  | Q65: =COUNTIF([3]BALANCE!$A$1:$A$65536,[3]notouch!$H65) -> 
A66: TW002245001B | B66: 明嘉電器 | C66: TW002245 | D66: 23077347 | E66: 台中營銷處 | F66: DJB | G66: 台中 | H66: DEALER_TT | I66: DLC_TT | N66: I | O66: 無往來 | P66: =COUNTIF([3]BALANCE!$A$1:$A$65536,[3]notouch!$A66) ->  | Q66: =COUNTIF([3]BALANCE!$A$1:$A$65536,[3]notouch!$H66) -> 
A67: TW002248001B | B67: 盟音電器 | C67: TW002248 | D67: 84181461 | E67: 台中營銷處 | F67: DJB | G67: 台中 | H67: DEALER_TT | I67: DLC_TT | N67: I | O67: 無往來 | P67: =COUNTIF([3]BALANCE!$A$1:$A$65536,[3]notouch!$A67) ->  | Q67: =COUNTIF([3]BALANCE!$A$1:$A$65536,[3]notouch!$H67) -> 
A68: TW002250001B | B68: 格愛陞有限公司 | C68: TW002250 | D68: 84694814 | E68: 台中營銷處 | F68: DJB | G68: 台中 | H68: DEALER_TT | I68: DCS_TT | N68: I | O68: =IF(N68="I","無往來",IF(SUM(P68:Q68)>0,"OK","沒有promotion")) -> 無往來 | P68: =COUNTIF([3]BALANCE!$A$1:$A$65536,[3]notouch!$A68) ->  | Q68: =COUNTIF([3]BALANCE!$A$1:$A$65536,[3]notouch!$H68) -> 
A69: TW002252001B | B69: 沅富電器行 | C69: 19611227 | D69: 18334578 | E69: 台中營銷處 | F69: DJB | G69: 台中 | H69: DEALER_TT | I69: DCS_TT | J69: TW002252001B | K69: =VLOOKUP(A69,[2]工作表5!$A$1:$D$565,4,0) -> 182938 | L69: 台中營銷處 | N69: A | P69: =COUNTIF([3]BALANCE!$A$1:$A$65536,[3]notouch!$A69) ->  | Q69: =COUNTIF([3]BALANCE!$A$1:$A$65536,[3]notouch!$H69) -> 
A70: TW002257001B | B70: 恆信電器有限公司 | C70: TW002257 | D70: 89817694 | E70: 台中營銷處 | F70: DJB | G70: 台中 | H70: DEALER_TT | I70: DLC_TT | J70: TW002257001B | K70: 1 | L70: 台中營銷處 | N70: A | P70: =COUNTIF([3]BALANCE!$A$1:$A$65536,[3]notouch!$A70) ->  | Q70: =COUNTIF([3]BALANCE!$A$1:$A$65536,[3]notouch!$H70) -> 
A71: TW002261001B | B71: 美齊富有限公司 | C71: 23893338 | D71: 23811788 | E71: 台中營銷處 | F71: DJB | G71: 台中 | H71: DEALER_TT | I71: DLC_TT | J71: TW002261001B | K71: 1 | L71: 台中營銷處 | N71: A | P71: =COUNTIF([3]BALANCE!$A$1:$A$65536,[3]notouch!$A71) ->  | Q71: =COUNTIF([3]BALANCE!$A$1:$A$65536,[3]notouch!$H71) -> 
A72: TW002261002B | B72: 美齊富有限公司 | C72: XXXXXXXX | D72: XXXXXXXX | E72: SAC | F72: ID&SAC | G72: SAC Sales | H72: B2B_TT | I72: CAC_TT | N72: I | O72: 無往來 | P72: =COUNTIF([3]BALANCE!$A$1:$A$65536,[3]notouch!$A72) ->  | Q72: =COUNTIF([3]BALANCE!$A$1:$A$65536,[3]notouch!$H72) -> 
A73: TW002262001B | B73: 太子電業行 | C73: TW002262 | D73: 77685331 | E73: 台中營銷處 | F73: DJB | G73: 台中 | H73: DEALER_TT | I73: DCS_TT | J73: TW002262001B | K73: =VLOOKUP(A73,[2]工作表5!$A$1:$D$565,4,0) -> 541780 | L73: 台中營銷處 | N73: A | P73: =COUNTIF([3]BALANCE!$A$1:$A$65536,[3]notouch!$A73) ->  | Q73: =COUNTIF([3]BALANCE!$A$1:$A$65536,[3]notouch!$H73) -> 
A74: TW002265001B | B74: 大謄電器有限公司 | C74: TW002265 | D74: 22915458 | E74: 台中營銷處 | F74: DJB | G74: 台中 | H74: DEALER_TT | I74: DLC_TT | J74: TW002265001B | K74: =VLOOKUP(A74,[2]工作表5!$A$1:$D$565,4,0) -> 233683 | L74: 台中營銷處 | N74: A | P74: =COUNTIF([3]BALANCE!$A$1:$A$65536,[3]notouch!$A74) ->  | Q74: =COUNTIF([3]BALANCE!$A$1:$A$65536,[3]notouch!$H74) -> 
A75: TW002267001B | B75: 東林電器有限公司 | C75: 19531101 | D75: 97482257 | E75: 台中營銷處 | F75: DJB | G75: 台中 | H75: DEALER_TT | I75: DLC_TT | J75: TW002267001B | L75: 台中營銷處 | N75: A | P75: =COUNTIF([3]BALANCE!$A$1:$A$65536,[3]notouch!$A75) ->  | Q75: =COUNTIF([3]BALANCE!$A$1:$A$65536,[3]notouch!$H75) -> 
A76: TW002268001B | B76: 佳億電器量販 | C76: TW002268 | D76: 77249459 | E76: 台中營銷處 | F76: DJB | G76: 台中 | H76: DEALER_TT | I76: DLC_TT | N76: I | O76: 無往來 | P76: =COUNTIF([3]BALANCE!$A$1:$A$65536,[3]notouch!$A76) ->  | Q76: =COUNTIF([3]BALANCE!$A$1:$A$65536,[3]notouch!$H76) -> 
A77: TW002277001B | B77: 家晟電器 | C77: TW002277 | D77: 22401937 | E77: 台中營銷處 | F77: DJB | G77: 台中 | H77: DEALER_TT | I77: DLC_TT | N77: I | O77: 無往來 | P77: =COUNTIF([3]BALANCE!$A$1:$A$65536,[3]notouch!$A77) ->  | Q77: =COUNTIF([3]BALANCE!$A$1:$A$65536,[3]notouch!$H77) -> 
A78: TW002288001B | B78: 幸韻電器有限公司 | C78: 19661201 | D78: 89328106 | E78: 桃竹營銷處 | F78: DWB | G78: 桃竹 | H78: DEALER_TT | I78: SPD_TT | J78: TW002288001B | K78: =VLOOKUP(A78,[2]工作表5!$A$1:$D$565,4,0) -> 885768 | L78: 桃竹營銷處 | N78: A | P78: =COUNTIF([3]BALANCE!$A$1:$A$65536,[3]notouch!$A78) ->  | Q78: =COUNTIF([3]BALANCE!$A$1:$A$65536,[3]notouch!$H78) -> 
A79: TW002291001B | B79: 金一電器有限公司 | C79: 19570623 | D79: 22137992 | E79: 桃竹營銷處 | F79: DWB | G79: 桃竹 | H79: DEALER_TT | I79: SPD_TT | J79: TW002291001B | K79: =VLOOKUP(A79,[2]工作表5!$A$1:$D$565,4,0) -> 336474 | L79: 桃竹營銷處 | N79: A | P79: =COUNTIF([3]BALANCE!$A$1:$A$65536,[3]notouch!$A79) ->  | Q79: =COUNTIF([3]BALANCE!$A$1:$A$65536,[3]notouch!$H79) -> 
A80: TW002295001B | B80: 金昇電器有限公司 | C80: 19691111 | D80: 49651654 | E80: 桃竹營銷處 | F80: DWB | G80: 桃竹 | H80: DEALER_TT | I80: DLC_TT | N80: I | O80: 無往來 | P80: =COUNTIF([3]BALANCE!$A$1:$A$65536,[3]notouch!$A80) ->  | Q80: =COUNTIF([3]BALANCE!$A$1:$A$65536,[3]notouch!$H80) -> 
A81: TW002305001B | B81: 皇典電器行 | C81: 19680201 | D81: 78544155 | E81: 桃竹營銷處 | F81: DWB | G81: 桃竹 | H81: DEALER_TT | I81: DLC_TT | J81: TW002305001B | K81: =VLOOKUP(A81,[2]工作表5!$A$1:$D$565,4,0) -> 196612 | L81: 桃竹營銷處 | N81: A | P81: =COUNTIF([3]BALANCE!$A$1:$A$65536,[3]notouch!$A81) ->  | Q81: =COUNTIF([3]BALANCE!$A$1:$A$65536,[3]notouch!$H81) -> 
A82: TW002315001B | B82: 銓日電器行 | C82: 19670416 | D82: 73800090 | E82: 桃竹營銷處 | F82: DWB | G82: 桃竹 | H82: DEALER_TT | I82: DLC_TT | K82: =VLOOKUP(A82,[2]工作表5!$A$1:$D$565,4,0) -> 10633 | L82: 桃竹營銷處 | N82: A | P82: =COUNTIF([3]BALANCE!$A$1:$A$65536,[3]notouch!$A82) ->  | Q82: =COUNTIF([3]BALANCE!$A$1:$A$65536,[3]notouch!$H82) -> 
A83: TW002324001B | B83: 兆宏電業行 | C83: 19640130 | D83: 47039765 | E83: 桃竹營銷處 | F83: DWB | G83: 桃竹 | H83: DEALER_TT | I83: DLC_TT | J83: TW002324001B | K83: =VLOOKUP(A83,[2]工作表5!$A$1:$D$565,4,0) -> 237376 | L83: 桃竹營銷處 | N83: A | P83: =COUNTIF([3]BALANCE!$A$1:$A$65536,[3]notouch!$A83) ->  | Q83: =COUNTIF([3]BALANCE!$A$1:$A$65536,[3]notouch!$H83) -> 
A84: TW002331001B | B84: 同慶電氣行 | C84: 19530412 | D84: 43779752 | E84: 桃竹營銷處 | F84: DWB | G84: 桃竹 | H84: DEALER_TT | I84: DLC_TT | J84: TW002331001B | K84: =VLOOKUP(A84,[2]工作表5!$A$1:$D$565,4,0) -> 121808 | L84: 桃竹營銷處 | N84: A | P84: =COUNTIF([3]BALANCE!$A$1:$A$65536,[3]notouch!$A84) ->  | Q84: =COUNTIF([3]BALANCE!$A$1:$A$65536,[3]notouch!$H84) -> 
A85: TW002338001B | B85: 福娥電業行 | C85: 19580811 | D85: 13513828 | E85: 空調營銷處 | F85: AC part | G85: 桃竹 | H85: DEALER_TT | I85: DCS_TT | J85: TW002338001B | K85: =VLOOKUP(A85,[2]工作表5!$A$1:$D$565,4,0) -> 17824 | L85: AC part | N85: A | P85: =COUNTIF([3]BALANCE!$A$1:$A$65536,[3]notouch!$A85) ->  | Q85: =COUNTIF([3]BALANCE!$A$1:$A$65536,[3]notouch!$H85) -> 
A86: TW002343001B | B86: 名富電器行 | C86: 19500615 | D86: 45162367 | E86: 桃竹營銷處 | F86: DWB | G86: 桃竹 | H86: DEALER_TT | I86: DCS_TT | J86: TW002343001B | K86: =VLOOKUP(A86,[2]工作表5!$A$1:$D$565,4,0) -> 211273 | L86: 桃竹營銷處 | N86: A | P86: =COUNTIF([3]BALANCE!$A$1:$A$65536,[3]notouch!$A86) ->  | Q86: =COUNTIF([3]BALANCE!$A$1:$A$65536,[3]notouch!$H86) -> 
A87: TW002347001B | B87: 得興電器有限公司 | C87: 19690802 | D87: 89730711 | E87: 桃竹營銷處 | F87: DWB | G87: 桃竹 | H87: DEALER_TT | I87: DCS_TT | J87: TW002347001B | K87: =VLOOKUP(A87,[2]工作表5!$A$1:$D$565,4,0) -> 2754403 | L87: 桃竹營銷處 | N87: A | P87: =COUNTIF([3]BALANCE!$A$1:$A$65536,[3]notouch!$A87) ->  | Q87: =COUNTIF([3]BALANCE!$A$1:$A$65536,[3]notouch!$H87) -> 
A88: TW002349001B | B88: 金長益電器有限公司 | C88: 19640714 | D88: 16908253 | E88: 桃竹營銷處 | F88: DWB | G88: 桃竹 | H88: DEALER_TT | I88: DLC_TT | J88: TW002349001B | K88: =VLOOKUP(A88,[2]工作表5!$A$1:$D$565,4,0) -> 764614 | L88: 桃竹營銷處 | N88: A | P88: =COUNTIF([3]BALANCE!$A$1:$A$65536,[3]notouch!$A88) ->  | Q88: =COUNTIF([3]BALANCE!$A$1:$A$65536,[3]notouch!$H88) -> 
A89: TW002351001B | B89: 雅光有限公司 | C89: 19590805 | D89: 01189353 | E89: 台北營銷處 | F89: TPH | G89: 台北 | H89: DEALER_TT | I89: SPD_TT | J89: TW002351001B | K89: =VLOOKUP(A89,[2]工作表5!$A$1:$D$565,4,0) -> 4663255 | L89: 台北營銷處 | N89: A | P89: =COUNTIF([3]BALANCE!$A$1:$A$65536,[3]notouch!$A89) ->  | Q89: =COUNTIF([3]BALANCE!$A$1:$A$65536,[3]notouch!$H89) -> 
A90: TW002351002B | B90: 雅光有限公司 | C90: XXXXXXXX | D90: XXXXXXXX | E90: SAC | F90: ID&SAC | G90: SAC Sales | H90: B2B_TT | I90: CAC_TT | N90: I | O90: 無往來 | P90: =COUNTIF([3]BALANCE!$A$1:$A$65536,[3]notouch!$A90) ->  | Q90: =COUNTIF([3]BALANCE!$A$1:$A$65536,[3]notouch!$H90) -> 
A91: TW002352001B | B91: 佳禾貿易有限公司 | C91: 19501112 | D91: 97310065 | E91: 台北營銷處 | F91: TPH | G91: 台北 | H91: DEALER_TT | I91: DLC_TT | J91: TW002352001B | K91: =VLOOKUP(A91,[2]工作表5!$A$1:$D$565,4,0) -> 16914 | L91: 台北營銷處 | N91: A | P91: =COUNTIF([3]BALANCE!$A$1:$A$65536,[3]notouch!$A91) ->  | Q91: =COUNTIF([3]BALANCE!$A$1:$A$65536,[3]notouch!$H91) -> 
A92: TW002359001B | B92: 宏仁電器行 | C92: 19690518 | D92: 92883893 | E92: 台北營銷處 | F92: TPH | G92: 台北 | H92: DEALER_TT | I92: DLC_TT | J92: TW002359001B | L92: 台北營銷處 | N92: A | P92: =COUNTIF([3]BALANCE!$A$1:$A$65536,[3]notouch!$A92) ->  | Q92: =COUNTIF([3]BALANCE!$A$1:$A$65536,[3]notouch!$H92) -> 
A93: TW002363001B | B93: 吳頡興電器企業有限公司 | C93: 19551115 | D93: 22905634 | E93: 台北營銷處 | F93: TPH | G93: 台北 | H93: DEALER_TT | I93: DLC_TT | J93: TW002363001B | L93: 台北營銷處 | N93: A | P93: =COUNTIF([3]BALANCE!$A$1:$A$65536,[3]notouch!$A93) ->  | Q93: =COUNTIF([3]BALANCE!$A$1:$A$65536,[3]notouch!$H93) -> 
A94: TW002368001B | B94: 健融電器行 | C94: 19590810 | D94: 02153403 | E94: 台北營銷處 | F94: TPH | G94: 台北 | H94: DEALER_TT | I94: DLC_TT | J94: TW002368001B | K94: =VLOOKUP(A94,[2]工作表5!$A$1:$D$565,4,0) -> 68351 | L94: 台北營銷處 | N94: A | P94: =COUNTIF([3]BALANCE!$A$1:$A$65536,[3]notouch!$A94) ->  | Q94: =COUNTIF([3]BALANCE!$A$1:$A$65536,[3]notouch!$H94) -> 
A95: TW002372001B | B95: 承德國際有限公司 | C95: 19661020 | D95: 89960924 | E95: 台北營銷處 | F95: TPH | G95: 台北 | H95: DEALER_TT | I95: DCS_TT | J95: TW002372001B | K95: =VLOOKUP(A95,[2]工作表5!$A$1:$D$565,4,0) -> 2051103 | L95: 台北營銷處 | N95: A | P95: =COUNTIF([3]BALANCE!$A$1:$A$65536,[3]notouch!$A95) ->  | Q95: =COUNTIF([3]BALANCE!$A$1:$A$65536,[3]notouch!$H95) -> 
A96: TW002375001B | B96: 建而福電器有限公司 | C96: 19470824 | D96: 33842192 | E96: 台北營銷處 | F96: TPH | G96: 台北 | H96: DEALER_TT | I96: DLC_TT | J96: TW002375001B | L96: 台北營銷處 | N96: A | P96: =COUNTIF([3]BALANCE!$A$1:$A$65536,[3]notouch!$A96) ->  | Q96: =COUNTIF([3]BALANCE!$A$1:$A$65536,[3]notouch!$H96) -> 
A97: TW002376001B | B97: 新弘貿易有限公司 | C97: 19590115 | D97: 23004274 | E97: 台北營銷處 | F97: TPH | G97: 台北 | H97: DEALER_TT | I97: DCS_TT | J97: TW002376001B | K97: =VLOOKUP(A97,[2]工作表5!$A$1:$D$565,4,0) -> 304025 | L97: 台北營銷處 | N97: A | P97: =COUNTIF([3]BALANCE!$A$1:$A$65536,[3]notouch!$A97) ->  | Q97: =COUNTIF([3]BALANCE!$A$1:$A$65536,[3]notouch!$H97) -> 
A98: TW002378001B | B98: 上順電器有限公司 | C98: 19550916 | D98: 23815317 | E98: 台北營銷處 | F98: TPH | G98: 台北 | H98: DEALER_TT | I98: DLC_TT | J98: TW002378001B | K98: =VLOOKUP(A98,[2]工作表5!$A$1:$D$565,4,0) -> 0 | L98: 台北營銷處 | N98: A | P98: =COUNTIF([3]BALANCE!$A$1:$A$65536,[3]notouch!$A98) ->  | Q98: =COUNTIF([3]BALANCE!$A$1:$A$65536,[3]notouch!$H98) -> 
A99: TW002381001B | B99: 萬豐視聽電業有限公司 | C99: 19620320 | D99: 22592990 | E99: 台北營銷處 | F99: TPH | G99: 台北 | H99: DEALER_TT | I99: DCS_TT | J99: TW002381001B | K99: =VLOOKUP(A99,[2]工作表5!$A$1:$D$565,4,0) -> 259039 | L99: 台北營銷處 | N99: A | P99: =COUNTIF([3]BALANCE!$A$1:$A$65536,[3]notouch!$A99) ->  | Q99: =COUNTIF([3]BALANCE!$A$1:$A$65536,[3]notouch!$H99) -> 
A100: TW002382001B | B100: 訊立電器有限公司 | C100: 19560601 | D100: 12710694 | E100: 台北營銷處 | F100: TPH | G100: 台北 | H100: DEALER_TT | I100: DLC_TT | J100: TW002382001B | L100: 台北營銷處 | N100: A | P100: =COUNTIF([3]BALANCE!$A$1:$A$65536,[3]notouch!$A100) ->  | Q100: =COUNTIF([3]BALANCE!$A$1:$A$65536,[3]notouch!$H100) -> 
A101: TW002387001B | B101: 鎮吉實業 | C101: 19651125 | D101: 70662642 | E101: 台北營銷處 | F101: TPH | G101: 台北 | H101: DEALER_TT | I101: DLC_TT | K101: 1 | N101: A | P101: =COUNTIF([3]BALANCE!$A$1:$A$65536,[3]notouch!$A101) ->  | Q101: =COUNTIF([3]BALANCE!$A$1:$A$65536,[3]notouch!$H101) -> 
A102: TW002391001B | B102: 益大家電事業有限公司 | C102: 24239141 | D102: 22573614 | E102: 台北營銷處 | F102: TPH | G102: 台北 | H102: DEALER_TT | I102: DLC_TT | J102: TW002391001B | K102: =VLOOKUP(A102,[2]工作表5!$A$1:$D$565,4,0) -> 74663 | L102: 台北營銷處 | N102: A | P102: =COUNTIF([3]BALANCE!$A$1:$A$65536,[3]notouch!$A102) ->  | Q102: =COUNTIF([3]BALANCE!$A$1:$A$65536,[3]notouch!$H102) -> 
A103: TW002398001B | B103: 彥昌電器行 | C103: 26416154 | D103: 02300192 | E103: 台北營銷處 | F103: TPH | G103: 台北 | H103: DEALER_TT | I103: DLC_TT | J103: TW002398001B | L103: 台北營銷處 | N103: A | P103: =COUNTIF([3]BALANCE!$A$1:$A$65536,[3]notouch!$A103) ->  | Q103: =COUNTIF([3]BALANCE!$A$1:$A$65536,[3]notouch!$H103) -> 
A104: TW002400001B | B104: 金亞實業有限公司 | C104: 26473088 | D104: 89230504 | E104: 台北營銷處 | F104: TPH | G104: 台北 | H104: DEALER_TT | I104: SPD_TT | J104: TW002400001B | K104: =VLOOKUP(A104,[2]工作表5!$A$1:$D$565,4,0) -> 4255871 | L104: 台北營銷處 | N104: A | P104: =COUNTIF([3]BALANCE!$A$1:$A$65536,[3]notouch!$A104) ->  | Q104: =COUNTIF([3]BALANCE!$A$1:$A$65536,[3]notouch!$H104) -> 
A105: TW002409001B | B105: 太空電器行 | C105: 19551106 | D105: 77300011 | E105: 高屏營銷處 | F105: GWB | G105: 高屏 | H105: DEALER_TT | I105: DLC_TT | J105: TW002409001B | L105: 高屏營銷處 | N105: A | P105: =COUNTIF([3]BALANCE!$A$1:$A$65536,[3]notouch!$A105) ->  | Q105: =COUNTIF([3]BALANCE!$A$1:$A$65536,[3]notouch!$H105) -> 
A106: TW002409002B | B106: 太空電器行 | C106: XXXXXXXX | D106: XXXXXXXX | E106: SAC | F106: ID&SAC | G106: SAC Sales | H106: B2B_TT | I106: CAC_TT | N106: I | O106: 無往來 | P106: =COUNTIF([3]BALANCE!$A$1:$A$65536,[3]notouch!$A106) ->  | Q106: =COUNTIF([3]BALANCE!$A$1:$A$65536,[3]notouch!$H106) -> 
A107: TW002410001B | B107: 全新電器有限公司 | C107: 19510722 | D107: 20760963 | E107: 台北營銷處 | F107: TPH | G107: 台北 | H107: DEALER_TT | I107: DLC_TT | N107: A | P107: =COUNTIF([3]BALANCE!$A$1:$A$65536,[3]notouch!$A107) ->  | Q107: =COUNTIF([3]BALANCE!$A$1:$A$65536,[3]notouch!$H107) -> 
A108: TW002411001B | B108: 金門電器行 | C108: 19530605 | D108: 77265149 | E108: 高屏營銷處 | F108: GWB | G108: 高屏 | H108: DEALER_TT | I108: DLC_TT | J108: TW002411001B | K108: =VLOOKUP(A108,[2]工作表5!$A$1:$D$565,4,0) -> 48963 | L108: 高屏營銷處 | N108: A | P108: =COUNTIF([3]BALANCE!$A$1:$A$65536,[3]notouch!$A108) ->  | Q108: =COUNTIF([3]BALANCE!$A$1:$A$65536,[3]notouch!$H108) -> 
A109: TW002416001B | B109: 國寶電業行 | C109: 19680525 | D109: 12180750 | E109: 台北營銷處 | F109: TPH | G109: 台北 | H109: DEALER_TT | I109: DLC_TT | J109: TW002416001B | L109: 台北營銷處 | N109: A | P109: =COUNTIF([3]BALANCE!$A$1:$A$65536,[3]notouch!$A109) ->  | Q109: =COUNTIF([3]BALANCE!$A$1:$A$65536,[3]notouch!$H109) -> 
A110: TW002420001B | B110: 高登電器有限公司 | C110: 19551029 | D110: 22629645 | E110: 台北營銷處 | F110: TPH | G110: 台北 | H110: DEALER_TT | I110: DLC_TT | J110: TW002420001B | L110: 台北營銷處 | N110: A | P110: =COUNTIF([3]BALANCE!$A$1:$A$65536,[3]notouch!$A110) ->  | Q110: =COUNTIF([3]BALANCE!$A$1:$A$65536,[3]notouch!$H110) -> 
A111: TW002427001B | B111: 國豐電業商行 | C111: 19551014 | D111: 94836355 | E111: 台北營銷處 | F111: TPH | G111: 台北 | H111: DEALER_TT | I111: DLC_TT | J111: TW002427001B | L111: 台北營銷處 | N111: A | P111: =COUNTIF([3]BALANCE!$A$1:$A$65536,[3]notouch!$A111) ->  | Q111: =COUNTIF([3]BALANCE!$A$1:$A$65536,[3]notouch!$H111) -> 
A112: TW002428001B | B112: 精實電器行 | C112: 19740715 | D112: 64803602 | E112: 台北營銷處 | F112: TPH | G112: 台北 | H112: DEALER_TT | I112: DLC_TT | J112: TW002428001B | K112: =VLOOKUP(A112,[2]工作表5!$A$1:$D$565,4,0) -> 15223 | L112: 台北營銷處 | N112: A | P112: =COUNTIF([3]BALANCE!$A$1:$A$65536,[3]notouch!$A112) ->  | Q112: =COUNTIF([3]BALANCE!$A$1:$A$65536,[3]notouch!$H112) -> 
A113: TW002431001B | B113: 一世代電氣行 | C113: 19620315 | D113: 18063076 | E113: 台北營銷處 | F113: TPH | G113: 台北 | H113: DEALER_TT | I113: DCS_TT | J113: TW002431001B | K113: =VLOOKUP(A113,[2]工作表5!$A$1:$D$565,4,0) -> 231242 | L113: 台北營銷處 | N113: A | P113: =COUNTIF([3]BALANCE!$A$1:$A$65536,[3]notouch!$A113) ->  | Q113: =COUNTIF([3]BALANCE!$A$1:$A$65536,[3]notouch!$H113) -> 
A114: TW002434001B | B114: 上將電業社 | C114: 19550423 | D114: 92933057 | E114: 台北營銷處 | F114: TPH | G114: 台北 | H114: DEALER_TT | I114: DLC_TT | J114: TW002434001B | K114: =VLOOKUP(A114,[2]工作表5!$A$1:$D$565,4,0) -> 35113 | L114: 台北營銷處 | N114: A | P114: =COUNTIF([3]BALANCE!$A$1:$A$65536,[3]notouch!$A114) ->  | Q114: =COUNTIF([3]BALANCE!$A$1:$A$65536,[3]notouch!$H114) -> 
A115: TW002441001B | B115: 上揚電器行 | C115: 19660523 | D115: 02418034 | E115: 台北營銷處 | F115: TPH | G115: 台北 | H115: DEALER_TT | I115: DLC_TT | J115: TW002441001B | L115: 台北營銷處 | N115: A | P115: =COUNTIF([3]BALANCE!$A$1:$A$65536,[3]notouch!$A115) ->  | Q115: =COUNTIF([3]BALANCE!$A$1:$A$65536,[3]notouch!$H115) -> 
A116: TW002444001B | B116: 台灣電器專賣店 | C116: 19700805 | D116: 98077164 | E116: 台北營銷處 | F116: TPH | G116: 台北 | H116: DEALER_TT | I116: DCS_TT | J116: TW002444001B | K116: =VLOOKUP(A116,[2]工作表5!$A$1:$D$565,4,0) -> 175426 | L116: 台北營銷處 | N116: A | P116: =COUNTIF([3]BALANCE!$A$1:$A$65536,[3]notouch!$A116) ->  | Q116: =COUNTIF([3]BALANCE!$A$1:$A$65536,[3]notouch!$H116) -> 
A117: TW002448001B | B117: 宜勇電器 | C117: 19631117 | D117: 66256925 | E117: 台北營銷處 | F117: TPH | G117: 台北 | H117: DEALER_TT | I117: DLC_TT | N117: I | O117: 無往來 | P117: =COUNTIF([3]BALANCE!$A$1:$A$65536,[3]notouch!$A117) ->  | Q117: =COUNTIF([3]BALANCE!$A$1:$A$65536,[3]notouch!$H117) -> 
A118: TW002450001B | B118: 日大電業行 | C118: 19770914 | D118: 40523763 | E118: 台北營銷處 | F118: TPH | G118: 台北 | H118: DEALER_TT | I118: DLC_TT | J118: TW002450001B | K118: =VLOOKUP(A118,[2]工作表5!$A$1:$D$565,4,0) -> 94150 | L118: 台北營銷處 | N118: A | P118: =COUNTIF([3]BALANCE!$A$1:$A$65536,[3]notouch!$A118) ->  | Q118: =COUNTIF([3]BALANCE!$A$1:$A$65536,[3]notouch!$H118) -> 
A119: TW002456001B | B119: 燦坤實業股份有限公司 | C119: 69568009 | D119: 69568009 | E119: MMCS-燦坤 | F119: MMCS | G119: MMCS | H119: MMCS_TK3C | I119: CSC_TT | J119: TW002456001B | K119: =VLOOKUP(A119,[2]工作表5!$A$1:$D$565,4,0) -> 270643242 | L119: 燦坤 | N119: A | P119: =COUNTIF([3]BALANCE!$A$1:$A$65536,[3]notouch!$A119) ->  | Q119: =COUNTIF([3]BALANCE!$A$1:$A$65536,[3]notouch!$H119) -> 
A120: TW002501001B | B120: 家福股份有限公司總公司 | C120: 22662550 | D120: 22662550 | E120: MMCS-家福 | F120: MMCS | G120: MMCS | H120: MMCS_C4 | I120: MMC_TT | J120: TW002501001B | K120: =VLOOKUP(A120,[2]工作表5!$A$1:$D$565,4,0) -> 182847768 | L120: 家樂福 | N120: A | P120: =COUNTIF([3]BALANCE!$A$1:$A$65536,[3]notouch!$A120) ->  | Q120: =COUNTIF([3]BALANCE!$A$1:$A$65536,[3]notouch!$H120) -> 
A121: TW002514001B | B121: 今漢電器有限公司 | C121: 19591213 | D121: 22117460 | E121: 台北營銷處 | F121: TPH | G121: 台北 | H121: DEALER_TT | I121: SPD_TT | J121: TW002514001B | K121: =VLOOKUP(A121,[2]工作表5!$A$1:$D$565,4,0) -> 1141924 | L121: 台北營銷處 | N121: A | P121: =COUNTIF([3]BALANCE!$A$1:$A$65536,[3]notouch!$A121) ->  | Q121: =COUNTIF([3]BALANCE!$A$1:$A$65536,[3]notouch!$H121) -> 
A122: TW002516001B | B122: 順寶電器 | C122: 19520904 | D122: 34159393 | E122: 台北營銷處 | F122: TPH | G122: 台北 | H122: DEALER_TT | I122: DLC_TT | N122: I | O122: 無往來 | P122: =COUNTIF([3]BALANCE!$A$1:$A$65536,[3]notouch!$A122) ->  | Q122: =COUNTIF([3]BALANCE!$A$1:$A$65536,[3]notouch!$H122) -> 
A123: TW002525001B | B123: 大潤發流通事業股份有限公司 | C123: 97165560 | D123: 97165560 | E123: MMCS-大潤發 | F123: MMCS | G123: MMCS | H123: MMCS_RT | I123: MMC_TT | J123: TW002525001B | K123: =VLOOKUP(A123,[2]工作表5!$A$1:$D$565,4,0) -> 0 | L123: 大潤發 | N123: A | P123: =COUNTIF([3]BALANCE!$A$1:$A$65536,[3]notouch!$A123) ->  | Q123: =COUNTIF([3]BALANCE!$A$1:$A$65536,[3]notouch!$H123) -> 
A124: TW002529001B | B124: 遠百企業股份有限公司 | C124: 05714195 | D124: 05714195 | E124: MMCS-愛買 | F124: MMCS | G124: MMCS | H124: MMCS_OTHERS | I124: MMC_TT | J124: TW002529001B | K124: =VLOOKUP(A124,[2]工作表5!$A$1:$D$565,4,0) -> 17933775 | L124: 愛買 | N124: A | P124: =COUNTIF([3]BALANCE!$A$1:$A$65536,[3]notouch!$A124) ->  | Q124: =COUNTIF([3]BALANCE!$A$1:$A$65536,[3]notouch!$H124) -> 
A125: TW002535001B | B125: 瑞豪電器行 | C125: 19711205 | D125: 67899377 | E125: 台北營銷處 | F125: TPH | G125: 台北 | H125: DEALER_TT | I125: DLC_TT | J125: TW002535001B | K125: =VLOOKUP(A125,[2]工作表5!$A$1:$D$565,4,0) -> 19300 | L125: 台北營銷處 | N125: A | P125: =COUNTIF([3]BALANCE!$A$1:$A$65536,[3]notouch!$A125) ->  | Q125: =COUNTIF([3]BALANCE!$A$1:$A$65536,[3]notouch!$H125) -> 
A126: TW002542001B | B126: 佳麗寶股份有限公司 | C126: 19470128 | D126: 04897247 | E126: 台北營銷處 | F126: TPH | G126: 台北 | H126: DEALER_TT | I126: DCS_TT | N126: I | O126: 無往來 | P126: =COUNTIF([3]BALANCE!$A$1:$A$65536,[3]notouch!$A126) ->  | Q126: =COUNTIF([3]BALANCE!$A$1:$A$65536,[3]notouch!$H126) -> 
A127: TW002557001B | B127: 全民電子音響專賣店 | C127: TW002557 | D127: 77593945 | E127: 台中營銷處 | F127: DJB | G127: 台中 | H127: DEALER_TT | I127: SPD_TT | J127: TW002557001B | K127: =VLOOKUP(A127,[2]工作表5!$A$1:$D$565,4,0) -> 589578 | L127: 台中營銷處 | N127: A | P127: =COUNTIF([3]BALANCE!$A$1:$A$65536,[3]notouch!$A127) ->  | Q127: =COUNTIF([3]BALANCE!$A$1:$A$65536,[3]notouch!$H127) -> 
A128: TW002572001B | B128: 新傑電器有限公司 | C128: 19540819 | D128: 12749635 | E128: 高屏營銷處 | F128: GWB | G128: 高屏 | H128: DEALER_TT | I128: SPD_TT | J128: TW002572001B | K128: =VLOOKUP(A128,[2]工作表5!$A$1:$D$565,4,0) -> 332096 | L128: 高屏營銷處 | N128: A | P128: =COUNTIF([3]BALANCE!$A$1:$A$65536,[3]notouch!$A128) ->  | Q128: =COUNTIF([3]BALANCE!$A$1:$A$65536,[3]notouch!$H128) -> 
A129: TW002575001B | B129: 東欣電器商行 | C129: 19510527 | D129: 08001827 | E129: 高屏營銷處 | F129: GWB | G129: 高屏 | H129: DEALER_TT | I129: DLC_TT | J129: TW002575001B | K129: =VLOOKUP(A129,[2]工作表5!$A$1:$D$565,4,0) -> 104083 | L129: 高屏營銷處 | N129: A | P129: =COUNTIF([3]BALANCE!$A$1:$A$65536,[3]notouch!$A129) ->  | Q129: =COUNTIF([3]BALANCE!$A$1:$A$65536,[3]notouch!$H129) -> 
A130: TW002630001B | B130: 錦穗實業社 | C130: 19571107 | D130: 73713103 | E130: 嘉南營銷處 | F130: DNB | G130: 嘉南 | H130: DEALER_TT | I130: DLC_TT | J130: TW002630001B | K130: =VLOOKUP(A130,[2]工作表5!$A$1:$D$565,4,0) -> 58345 | L130: 嘉南營銷處 | N130: A | P130: =COUNTIF([3]BALANCE!$A$1:$A$65536,[3]notouch!$A130) ->  | Q130: =COUNTIF([3]BALANCE!$A$1:$A$65536,[3]notouch!$H130) -> 
A131: TW002652001B | B131: 第二電器音響有限公司 | C131: 19600410 | D131: 33837276 | E131: 台北營銷處 | F131: TPH | G131: 台北 | H131: DEALER_TT | I131: DCS_TT | J131: TW002652001B | K131: =VLOOKUP(A131,[2]工作表5!$A$1:$D$565,4,0) -> 283600 | L131: 台北營銷處 | N131: A | P131: =COUNTIF([3]BALANCE!$A$1:$A$65536,[3]notouch!$A131) ->  | Q131: =COUNTIF([3]BALANCE!$A$1:$A$65536,[3]notouch!$H131) -> 
A132: TW002666001B | B132: 世和電器行 | C132: 19661031 | D132: 87705862 | E132: 桃竹營銷處 | F132: DWB | G132: 桃竹 | H132: DEALER_TT | I132: DLC_TT | N132: A | O132: =IF(N132="I","無往來",IF(SUM(P132:Q132)>0,"OK","沒有promotion")) ->  | P132: =COUNTIF([3]BALANCE!$A$1:$A$65536,[3]notouch!$A132) ->  | Q132: =COUNTIF([3]BALANCE!$A$1:$A$65536,[3]notouch!$H132) -> 
A133: TW002666002B | B133: 世和電器行 | C133: 19661031 | D133: 87705862 | E133: ETC | F133: ETC | G133: ETC | H133: ETC | I133: ETC_TT | J133: TW002666002B | L133: ETC | N133: A | P133: =COUNTIF([3]BALANCE!$A$1:$A$65536,[3]notouch!$A133) ->  | Q133: =COUNTIF([3]BALANCE!$A$1:$A$65536,[3]notouch!$H133) -> 
A134: TW002674001B | B134: 明聳企業有限公司 | C134: XXXXXXXX | D134: XXXXXXXX | E134: SAC | F134: ID&SAC | G134: SAC Sales | H134: B2B_TT | I134: CAC_TT | N134: I | O134: 無往來 | P134: =COUNTIF([3]BALANCE!$A$1:$A$65536,[3]notouch!$A134) ->  | Q134: =COUNTIF([3]BALANCE!$A$1:$A$65536,[3]notouch!$H134) -> 
A135: TW002675001B | B135: 利聲家電有限公司 | C135: 19470925 | D135: 86101317 | E135: 嘉南營銷處 | F135: DNB | G135: 嘉南 | H135: DEALER_TT | I135: DLC_TT | J135: TW002675001B | K135: =VLOOKUP(A135,[2]工作表5!$A$1:$D$565,4,0) -> 46668 | L135: 嘉南營銷處 | N135: A | P135: =COUNTIF([3]BALANCE!$A$1:$A$65536,[3]notouch!$A135) ->  | Q135: =COUNTIF([3]BALANCE!$A$1:$A$65536,[3]notouch!$H135) -> 
A136: TW002677001B | B136: 銘山電器 | C136: 23393762 | D136: 23328168 | E136: 台中營銷處 | F136: DJB | G136: 台中 | H136: DEALER_TT | I136: DLC_TT | N136: I | O136: 無往來 | P136: =COUNTIF([3]BALANCE!$A$1:$A$65536,[3]notouch!$A136) ->  | Q136: =COUNTIF([3]BALANCE!$A$1:$A$65536,[3]notouch!$H136) -> 
A137: TW002678001B | B137: 昇泰電業行 | C137: TW002678 | D137: 05830687 | E137: 台中營銷處 | F137: DJB | G137: 台中 | H137: DEALER_TT | I137: DLC_TT | N137: I | O137: 無往來 | P137: =COUNTIF([3]BALANCE!$A$1:$A$65536,[3]notouch!$A137) ->  | Q137: =COUNTIF([3]BALANCE!$A$1:$A$65536,[3]notouch!$H137) -> 
A138: TW002685001B | B138: 威揚電器行 | C138: 19690225 | D138: 17276277 | E138: 台北營銷處 | F138: TPH | G138: 台北 | H138: DEALER_TT | I138: DCS_TT | J138: TW002685001B | K138: =VLOOKUP(A138,[2]工作表5!$A$1:$D$565,4,0) -> 65964 | L138: 台北營銷處 | N138: A | P138: =COUNTIF([3]BALANCE!$A$1:$A$65536,[3]notouch!$A138) ->  | Q138: =COUNTIF([3]BALANCE!$A$1:$A$65536,[3]notouch!$H138) -> 
A139: TW002710001B | B139: 建利電子音響 | C139: 19580810 | D139: 18324380 | E139: 台中營銷處 | F139: DJB | G139: 台中 | H139: DEALER_TT | I139: DLC_TT | N139: A | P139: =COUNTIF([3]BALANCE!$A$1:$A$65536,[3]notouch!$A139) ->  | Q139: =COUNTIF([3]BALANCE!$A$1:$A$65536,[3]notouch!$H139) -> 
A140: TW002718001B | B140: 全國電子股份有限公司 | C140: 22006252 | D140: 22006252 | E140: MMCS-全國 | F140: MMCS | G140: MMCS | H140: MMCS_E-LIFE | I140: CSC_TT | J140: TW002718001B | K140: =VLOOKUP(A140,[2]工作表5!$A$1:$D$565,4,0) -> 325824304 | L140: 全國 | N140: A | P140: =COUNTIF([3]BALANCE!$A$1:$A$65536,[3]notouch!$A140) ->  | Q140: =COUNTIF([3]BALANCE!$A$1:$A$65536,[3]notouch!$H140) -> 
A141: TW002720001B | B141: 天聲電器商行 | C141: 19540401 | D141: 98249862 | E141: 桃竹營銷處 | F141: DWB | G141: 桃竹 | H141: DEALER_TT | I141: DLC_TT | J141: TW002720001B | K141: 1 | L141: 桃竹營銷處 | N141: A | P141: =COUNTIF([3]BALANCE!$A$1:$A$65536,[3]notouch!$A141) ->  | Q141: =COUNTIF([3]BALANCE!$A$1:$A$65536,[3]notouch!$H141) -> 
A142: TW002721001B | B142: 統偉視聽工程有限公司 | C142: 19591014 | D142: 22669408 | E142: 桃竹營銷處 | F142: DWB | G142: 桃竹 | H142: DEALER_TT | I142: DCS_TT | J142: TW002721001B | K142: =VLOOKUP(A142,[2]工作表5!$A$1:$D$565,4,0) -> 286105 | L142: 桃竹營銷處 | N142: A | P142: =COUNTIF([3]BALANCE!$A$1:$A$65536,[3]notouch!$A142) ->  | Q142: =COUNTIF([3]BALANCE!$A$1:$A$65536,[3]notouch!$H142) -> 
A143: TW002725001B | B143: 侑興電器有限公司 | C143: TW002725 | D143: 22682057 | E143: 台中營銷處 | F143: DJB | G143: 台中 | H143: DEALER_TT | I143: DLC_TT | J143: TW002725001B | K143: 1 | L143: 台中營銷處 | N143: A | P143: =COUNTIF([3]BALANCE!$A$1:$A$65536,[3]notouch!$A143) ->  | Q143: =COUNTIF([3]BALANCE!$A$1:$A$65536,[3]notouch!$H143) -> 
A144: TW002725002B | B144: 侑興電器有限公司 | C144: XXXXXXXX | D144: XXXXXXXX | E144: SAC | F144: ID&SAC | G144: SAC Sales | H144: B2B_TT | I144: CAC_TT | J144: TW002725002B | N144: I | O144: 無往來 | P144: =COUNTIF([3]BALANCE!$A$1:$A$65536,[3]notouch!$A144) ->  | Q144: =COUNTIF([3]BALANCE!$A$1:$A$65536,[3]notouch!$H144) -> 
A145: TW002745001B | B145: 全英電器有限公司 | C145: 19530909 | D145: 30976506 | E145: 台北營銷處 | F145: TPH | G145: 台北 | H145: DEALER_TT | I145: DLC_TT | J145: TW002745001B | L145: 台北營銷處 | N145: A | P145: =COUNTIF([3]BALANCE!$A$1:$A$65536,[3]notouch!$A145) ->  | Q145: =COUNTIF([3]BALANCE!$A$1:$A$65536,[3]notouch!$H145) -> 
A146: TW002748001B | B146: 創作電子音響專賣店 | C146: TW002748 | D146: 81964433 | E146: 台中營銷處 | F146: DJB | G146: 台中 | H146: DEALER_TT | I146: DCS_TT | J146: TW002748001B | K146: =VLOOKUP(A146,[2]工作表5!$A$1:$D$565,4,0) -> 133042 | L146: 台中營銷處 | N146: A | P146: =COUNTIF([3]BALANCE!$A$1:$A$65536,[3]notouch!$A146) ->  | Q146: =COUNTIF([3]BALANCE!$A$1:$A$65536,[3]notouch!$H146) -> 
A147: TW002750001B | B147: 集雅社股份有限公司 | C147: 89266170 | D147: 89266170 | E147: HPC | F147: DEPT | G147: 百貨 | H147: DEALER_DEPT | I147: DEPT_TT | J147: TW002750001B | K147: =VLOOKUP(A147,[2]工作表5!$A$1:$D$565,4,0) -> 184819758 | L147: 百貨 | N147: A | P147: =COUNTIF([3]BALANCE!$A$1:$A$65536,[3]notouch!$A147) ->  | Q147: =COUNTIF([3]BALANCE!$A$1:$A$65536,[3]notouch!$H147) -> 
A148: TW002755001B | B148: 聯鈦冷凍空調電器行 | C148: 19660924 | D148: 14156334 | E148: 嘉南營銷處 | F148: DNB | G148: 嘉南 | H148: DEALER_TT | I148: DCS_TT | J148: TW002755001B | K148: =VLOOKUP(A148,[2]工作表5!$A$1:$D$565,4,0) -> 42026 | L148: 嘉南營銷處 | N148: A | P148: =COUNTIF([3]BALANCE!$A$1:$A$65536,[3]notouch!$A148) ->  | Q148: =COUNTIF([3]BALANCE!$A$1:$A$65536,[3]notouch!$H148) -> 
A149: TW002757001B | B149: 慧聲電器行 | C149: 19601115 | D149: 78215533 | E149: 台北營銷處 | F149: TPH | G149: 台北 | H149: DEALER_TT | I149: DLC_TT | J149: TW002757001B | L149: 台北營銷處 | N149: A | P149: =COUNTIF([3]BALANCE!$A$1:$A$65536,[3]notouch!$A149) ->  | Q149: =COUNTIF([3]BALANCE!$A$1:$A$65536,[3]notouch!$H149) -> 
A150: TW002758001B | B150: 秀翔實業有限公司 | C150: 89429694 | D150: 89429694 | E150: HPC | F150: DEPT | G150: 百貨 | H150: DEALER_DEPT | I150: DEPT_TT | J150: TW002758001B | K150: =VLOOKUP(A150,[2]工作表5!$A$1:$D$565,4,0) -> 13354740 | L150: 百貨 | N150: A | P150: =COUNTIF([3]BALANCE!$A$1:$A$65536,[3]notouch!$A150) ->  | Q150: =COUNTIF([3]BALANCE!$A$1:$A$65536,[3]notouch!$H150) -> 
A151: TW002761001B | B151: 憶豐電器有限公司 | C151: 19670109 | D151: 47109086 | E151: 桃竹營銷處 | F151: DWB | G151: 桃竹 | H151: DEALER_TT | I151: DLC_TT | J151: TW002761001B | K151: 1 | L151: 桃竹營銷處 | N151: A | P151: =COUNTIF([3]BALANCE!$A$1:$A$65536,[3]notouch!$A151) ->  | Q151: =COUNTIF([3]BALANCE!$A$1:$A$65536,[3]notouch!$H151) -> 
A152: TW002762001B | B152: 員毅電器有限公司 | C152: TW002762 | D152: 16929102 | E152: 台中營銷處 | F152: DJB | G152: 台中 | H152: DEALER_TT | I152: DLC_TT | J152: TW002762001B | K152: 1 | L152: 台中營銷處 | N152: A | P152: =COUNTIF([3]BALANCE!$A$1:$A$65536,[3]notouch!$A152) ->  | Q152: =COUNTIF([3]BALANCE!$A$1:$A$65536,[3]notouch!$H152) -> 
A153: TW002764001B | B153: 弘象電器有限公司 | C153: 19670507 | D153: 97316526 | E153: 台北營銷處 | F153: TPH | G153: 台北 | H153: DEALER_TT | I153: DLC_TT | J153: TW002764001B | K153: =VLOOKUP(A153,[2]工作表5!$A$1:$D$565,4,0) -> 42330 | L153: 台北營銷處 | N153: A | P153: =COUNTIF([3]BALANCE!$A$1:$A$65536,[3]notouch!$A153) ->  | Q153: =COUNTIF([3]BALANCE!$A$1:$A$65536,[3]notouch!$H153) -> 
A154: TW002769001B | B154: 東農電器行 | C154: 19611101 | D154: 78766509 | E154: 高屏營銷處 | F154: GWB | G154: 高屏 | H154: DEALER_TT | I154: SPD_TT | J154: TW002769001B | K154: =VLOOKUP(A154,[2]工作表5!$A$1:$D$565,4,0) -> 508325 | L154: 高屏營銷處 | N154: A | P154: =COUNTIF([3]BALANCE!$A$1:$A$65536,[3]notouch!$A154) ->  | Q154: =COUNTIF([3]BALANCE!$A$1:$A$65536,[3]notouch!$H154) -> 
A155: TW002769002B | B155: 東農電器行 | C155: XXXXXXXX | D155: XXXXXXXX | E155: SAC | F155: ID&SAC | G155: SAC Sales | H155: B2B_TT | I155: CAC_TT | N155: I | O155: 無往來 | P155: =COUNTIF([3]BALANCE!$A$1:$A$65536,[3]notouch!$A155) ->  | Q155: =COUNTIF([3]BALANCE!$A$1:$A$65536,[3]notouch!$H155) -> 
A156: TW002780001B | B156: 金銓電器行 | C156: TW002780 | D156: 13759385 | E156: 台中營銷處 | F156: DJB | G156: 台中 | H156: DEALER_TT | I156: DLC_TT | J156: TW002780001B | K156: 1 | L156: 台中營銷處 | N156: A | P156: =COUNTIF([3]BALANCE!$A$1:$A$65536,[3]notouch!$A156) ->  | Q156: =COUNTIF([3]BALANCE!$A$1:$A$65536,[3]notouch!$H156) -> 
A157: TW002789001B | B157: 宏昇電器行 | C157: 19671229 | D157: 97842555 | E157: 台中營銷處 | F157: DJB | G157: 台中 | H157: DEALER_TT | I157: SPD_TT | J157: TW002789001B | K157: =VLOOKUP(A157,[2]工作表5!$A$1:$D$565,4,0) -> 786288 | L157: 台中營銷處 | N157: A | P157: =COUNTIF([3]BALANCE!$A$1:$A$65536,[3]notouch!$A157) ->  | Q157: =COUNTIF([3]BALANCE!$A$1:$A$65536,[3]notouch!$H157) -> 
A158: TW002801001B | B158: 銘信視聽電器城 | C158: 19710720 | D158: 92811337 | E158: 台中營銷處 | F158: DJB | G158: 台中 | H158: DEALER_TT | I158: DLC_TT | J158: TW002801001B | L158: 台中營銷處 | N158: A | P158: =COUNTIF([3]BALANCE!$A$1:$A$65536,[3]notouch!$A158) ->  | Q158: =COUNTIF([3]BALANCE!$A$1:$A$65536,[3]notouch!$H158) -> 
A159: TW002811001B | B159: 棋杰電器行 | C159: 19650706 | D159: 08016878 | E159: 高屏營銷處 | F159: GWB | G159: 高屏 | H159: DEALER_TT | I159: SPD_TT | J159: TW002811001B | K159: =VLOOKUP(A159,[2]工作表5!$A$1:$D$565,4,0) -> 542052 | L159: 高屏營銷處 | N159: A | P159: =COUNTIF([3]BALANCE!$A$1:$A$65536,[3]notouch!$A159) ->  | Q159: =COUNTIF([3]BALANCE!$A$1:$A$65536,[3]notouch!$H159) -> 
A160: TW002843001B | B160: 吉田電器行 | C160: 19620111 | D160: 17683437 | E160: 桃竹營銷處 | F160: DWB | G160: 桃竹 | H160: DEALER_TT | I160: DLC_TT | J160: TW002843001B | K160: =VLOOKUP(A160,[2]工作表5!$A$1:$D$565,4,0) -> 62111 | L160: 桃竹營銷處 | N160: A | P160: =COUNTIF([3]BALANCE!$A$1:$A$65536,[3]notouch!$A160) ->  | Q160: =COUNTIF([3]BALANCE!$A$1:$A$65536,[3]notouch!$H160) -> 
A161: TW002851001B | B161: 隆慶電器行 | C161: 47374042 | D161: 47374803 | E161: 台中營銷處 | F161: DJB | G161: 台中 | H161: DEALER_TT | I161: SPD_TT | J161: TW002851001B | K161: =VLOOKUP(A161,[2]工作表5!$A$1:$D$565,4,0) -> 2465013 | L161: 台中營銷處 | N161: A | P161: =COUNTIF([3]BALANCE!$A$1:$A$65536,[3]notouch!$A161) ->  | Q161: =COUNTIF([3]BALANCE!$A$1:$A$65536,[3]notouch!$H161) -> 
A162: TW002856001B | B162: 老雙億實業有限公司 | C162: 19490915 | D162: 35957606 | E162: 台北營銷處 | F162: TPH | G162: 台北 | H162: DEALER_TT | I162: DCS_TT | J162: TW002856001B | K162: =VLOOKUP(A162,[2]工作表5!$A$1:$D$565,4,0) -> 137699 | L162: 台北營銷處 | N162: A | P162: =COUNTIF([3]BALANCE!$A$1:$A$65536,[3]notouch!$A162) ->  | Q162: =COUNTIF([3]BALANCE!$A$1:$A$65536,[3]notouch!$H162) -> 
A163: TW002858001B | B163: 豐昌電器行 | C163: 19630721 | D163: 06565736 | E163: 嘉南營銷處 | F163: DNB | G163: 嘉南 | H163: DEALER_TT | I163: DLC_TT | J163: TW002858001B | K163: =VLOOKUP(A163,[2]工作表5!$A$1:$D$565,4,0) -> 0 | L163: 嘉南營銷處 | N163: A | P163: =COUNTIF([3]BALANCE!$A$1:$A$65536,[3]notouch!$A163) ->  | Q163: =COUNTIF([3]BALANCE!$A$1:$A$65536,[3]notouch!$H163) -> 
A164: TW002861001B | B164: 昇廣電器有限公司 | C164: 19611020 | D164: 16498693 | E164: 台中營銷處 | F164: DJB | G164: 台中 | H164: DEALER_TT | I164: DLC_TT | J164: TW002861001B | K164: =VLOOKUP(A164,[2]工作表5!$A$1:$D$565,4,0) -> 30609 | L164: 台中營銷處 | N164: A | P164: =COUNTIF([3]BALANCE!$A$1:$A$65536,[3]notouch!$A164) ->  | Q164: =COUNTIF([3]BALANCE!$A$1:$A$65536,[3]notouch!$H164) -> 
A165: TW002870001B | B165: 松立電業社 | C165: 19560806 | D165: 90720487 | E165: 高屏營銷處 | F165: GWB | G165: 高屏 | H165: DEALER_TT | I165: DLC_TT | J165: TW002870001B | K165: =VLOOKUP(A165,[2]工作表5!$A$1:$D$565,4,0) -> 100084 | L165: 高屏營銷處 | N165: A | P165: =COUNTIF([3]BALANCE!$A$1:$A$65536,[3]notouch!$A165) ->  | Q165: =COUNTIF([3]BALANCE!$A$1:$A$65536,[3]notouch!$H165) -> 
A166: TW002886001B | B166: 三信電氣行 | C166: 19570402 | D166: 08359830 | E166: 台中營銷處 | F166: DJB | G166: 台中 | H166: DEALER_TT | I166: SPD_TT | J166: TW002886001B | K166: =VLOOKUP(A166,[2]工作表5!$A$1:$D$565,4,0) -> 1313345 | L166: 台中營銷處 | N166: A | P166: =COUNTIF([3]BALANCE!$A$1:$A$65536,[3]notouch!$A166) ->  | Q166: =COUNTIF([3]BALANCE!$A$1:$A$65536,[3]notouch!$H166) -> 
A167: TW002887001B | B167: 仙風電器有限公司 | C167: XXXXXXXX | D167: XXXXXXXX | E167: 桃竹營銷處 | F167: DWB | G167: 桃竹 | H167: DEALER_TT | I167: DLC_TT | J167: TW002887001B | K167: =VLOOKUP(A167,[2]工作表5!$A$1:$D$565,4,0) -> 4271 | L167: 桃竹營銷處 | N167: A | P167: =COUNTIF([3]BALANCE!$A$1:$A$65536,[3]notouch!$A167) ->  | Q167: =COUNTIF([3]BALANCE!$A$1:$A$65536,[3]notouch!$H167) -> 
A168: TW002896001B | B168: 三星電器行 | C168: 19670620 | D168: 59096683 | E168: 台中營銷處 | F168: DJB | G168: 台中 | H168: DEALER_TT | I168: DLC_TT | J168: TW002896001B | K168: =VLOOKUP(A168,[2]工作表5!$A$1:$D$565,4,0) -> 24535 | L168: 台中營銷處 | N168: A | P168: =COUNTIF([3]BALANCE!$A$1:$A$65536,[3]notouch!$A168) ->  | Q168: =COUNTIF([3]BALANCE!$A$1:$A$65536,[3]notouch!$H168) -> 
A169: TW002897001B | B169: 南山電器行 | C169: 19700420 | D169: 17925152 | E169: 台北營銷處 | F169: TPH | G169: 台北 | H169: DEALER_TT | I169: DLC_TT | N169: A | P169: =COUNTIF([3]BALANCE!$A$1:$A$65536,[3]notouch!$A169) ->  | Q169: =COUNTIF([3]BALANCE!$A$1:$A$65536,[3]notouch!$H169) -> 
A170: TW002904001B | B170: 天烽電器有限公司 | C170: 19711108 | D170: 80272502 | E170: 台北營銷處 | F170: TPH | G170: 台北 | H170: DEALER_TT | I170: DLC_TT | J170: TW002904001B | L170: 台北營銷處 | N170: A | P170: =COUNTIF([3]BALANCE!$A$1:$A$65536,[3]notouch!$A170) ->  | Q170: =COUNTIF([3]BALANCE!$A$1:$A$65536,[3]notouch!$H170) -> 
A171: TW002919001B | B171: 建鑫電器行 | C171: 19721112 | D171: 18282184 | E171: 嘉南營銷處 | F171: DNB | G171: 嘉南 | H171: DEALER_TT | I171: DLC_TT | J171: TW002919001B | K171: =VLOOKUP(A171,[2]工作表5!$A$1:$D$565,4,0) -> 65745 | L171: 嘉南營銷處 | N171: A | P171: =COUNTIF([3]BALANCE!$A$1:$A$65536,[3]notouch!$A171) ->  | Q171: =COUNTIF([3]BALANCE!$A$1:$A$65536,[3]notouch!$H171) -> 
A172: TW002927001B | B172: 中信冷凍電器行 | C172: 19710227 | D172: 19801699 | E172: 高屏營銷處 | F172: GWB | G172: 高屏 | H172: DEALER_TT | I172: DCS_TT | J172: TW002927001B | K172: =VLOOKUP(A172,[2]工作表5!$A$1:$D$565,4,0) -> 82096 | L172: 高屏營銷處 | N172: A | P172: =COUNTIF([3]BALANCE!$A$1:$A$65536,[3]notouch!$A172) ->  | Q172: =COUNTIF([3]BALANCE!$A$1:$A$65536,[3]notouch!$H172) -> 
A173: TW002945001B | B173: 勁鋒電器行 | C173: 19641113 | D173: 87753771 | E173: 高屏營銷處 | F173: GWB | G173: 高屏 | H173: DEALER_TT | I173: DLC_TT | J173: TW002945001B | K173: 1 | L173: 高屏營銷處 | N173: A | P173: =COUNTIF([3]BALANCE!$A$1:$A$65536,[3]notouch!$A173) ->  | Q173: =COUNTIF([3]BALANCE!$A$1:$A$65536,[3]notouch!$H173) -> 
A174: TW002946001B | B174: 佑均電器商行 | C174: 19800403 | D174: 98119827 | E174: 桃竹營銷處 | F174: DWB | G174: 桃竹 | H174: DEALER_TT | I174: DLC_TT | J174: TW002946001B | N174: A | P174: =COUNTIF([3]BALANCE!$A$1:$A$65536,[3]notouch!$A174) ->  | Q174: =COUNTIF([3]BALANCE!$A$1:$A$65536,[3]notouch!$H174) -> 
A175: TW002950001B | B175: 廣昌電器行 | C175: TW002950 | D175: 97885688 | E175: 台中營銷處 | F175: DJB | G175: 台中 | H175: DEALER_TT | I175: SPD_TT | J175: TW002950001B | K175: =VLOOKUP(A175,[2]工作表5!$A$1:$D$565,4,0) -> 904101 | L175: 台中營銷處 | N175: A | P175: =COUNTIF([3]BALANCE!$A$1:$A$65536,[3]notouch!$A175) ->  | Q175: =COUNTIF([3]BALANCE!$A$1:$A$65536,[3]notouch!$H175) -> 
A176: TW002952001B | B176: 廣駿電器行 | C176: 24925933 | D176: 24921827 | E176: 台中營銷處 | F176: DJB | G176: 台中 | H176: DEALER_TT | I176: DLC_TT | J176: TW002952001B | K176: 1 | L176: 台中營銷處 | N176: A | P176: =COUNTIF([3]BALANCE!$A$1:$A$65536,[3]notouch!$A176) ->  | Q176: =COUNTIF([3]BALANCE!$A$1:$A$65536,[3]notouch!$H176) -> 
A177: TW002960001B | B177: 正賢電器行 | C177: TW002960 | D177: 84042476 | E177: 台中營銷處 | F177: DJB | G177: 台中 | H177: DEALER_TT | I177: DLC_TT | J177: TW002960001B | K177: 1 | L177: 台中營銷處 | N177: A | P177: =COUNTIF([3]BALANCE!$A$1:$A$65536,[3]notouch!$A177) ->  | Q177: =COUNTIF([3]BALANCE!$A$1:$A$65536,[3]notouch!$H177) -> 
A178: TW002964001B | B178: 台灣樂金顯示科技股份有限公司 | C178: XXXXXXXX | D178: XXXXXXXX | E178: B2B2C | F178: B2B2C | G178: B2B2C | H178: B2B_TT | I178: B2B_TT | N178: A | P178: =COUNTIF([3]BALANCE!$A$1:$A$65536,[3]notouch!$A178) ->  | Q178: =COUNTIF([3]BALANCE!$A$1:$A$65536,[3]notouch!$H178) -> 
A179: TW002965001B | B179: 永定電器有限公司 | C179: 19781001 | D179: 96857734 | E179: 高屏營銷處 | F179: GWB | G179: 高屏 | H179: DEALER_TT | I179: DLC_TT | J179: TW002965001B | L179: 高屏營銷處 | N179: I | O179: 無往來 | P179: =COUNTIF([3]BALANCE!$A$1:$A$65536,[3]notouch!$A179) ->  | Q179: =COUNTIF([3]BALANCE!$A$1:$A$65536,[3]notouch!$H179) -> 
A180: TW002975001B | B180: 佳美電器行 | C180: 19550202 | D180: 06644845 | E180: 嘉南營銷處 | F180: DNB | G180: 嘉南 | H180: DEALER_TT | I180: DLC_TT | N180: I | O180: 無往來 | P180: =COUNTIF([3]BALANCE!$A$1:$A$65536,[3]notouch!$A180) ->  | Q180: =COUNTIF([3]BALANCE!$A$1:$A$65536,[3]notouch!$H180) -> 
A181: TW002978001B | B181: 匯豐家電有限公司 | C181: 23383896 | D181: 23366784 | E181: 台中營銷處 | F181: DJB | G181: 台中 | H181: DEALER_TT | I181: DLC_TT | J181: TW002978001B | L181: 台中營銷處 | N181: A | P181: =COUNTIF([3]BALANCE!$A$1:$A$65536,[3]notouch!$A181) ->  | Q181: =COUNTIF([3]BALANCE!$A$1:$A$65536,[3]notouch!$H181) -> 
A182: TW002989001B | B182: 隆松電器有限公司 | C182: 36663666 | D182: 69845546 | E182: 嘉南營銷處 | F182: DNB | G182: 嘉南 | H182: DEALER_TT | I182: DLC_TT | J182: TW002989001B | L182: 嘉南營銷處 | N182: A | P182: =COUNTIF([3]BALANCE!$A$1:$A$65536,[3]notouch!$A182) ->  | Q182: =COUNTIF([3]BALANCE!$A$1:$A$65536,[3]notouch!$H182) -> 
A183: TW002990001B | B183: 國際水電冷氣工程行 | C183: 19651008 | D183: 49776492 | E183: 桃竹營銷處 | F183: DWB | G183: 桃竹 | H183: DEALER_TT | I183: DLC_TT | K183: =VLOOKUP(A183,[2]工作表5!$A$1:$D$565,4,0) -> 819975 | L183: 桃竹營銷處 | N183: A | P183: =COUNTIF([3]BALANCE!$A$1:$A$65536,[3]notouch!$A183) ->  | Q183: =COUNTIF([3]BALANCE!$A$1:$A$65536,[3]notouch!$H183) -> 
A184: TW002991001B | B184: 偉誠電器 | C184: 19740120 | D184: 96888413 | E184: 台北營銷處 | F184: TPH | G184: 台北 | H184: DEALER_TT | I184: DLC_TT | N184: I | O184: 無往來 | P184: =COUNTIF([3]BALANCE!$A$1:$A$65536,[3]notouch!$A184) ->  | Q184: =COUNTIF([3]BALANCE!$A$1:$A$65536,[3]notouch!$H184) -> 
A185: TW002997001B | B185: 鎰銘電器有限公司 | C185: 19670216 | D185: 80103181 | E185: 台北營銷處 | F185: TPH | G185: 台北 | H185: DEALER_TT | I185: SPD_TT | J185: TW002997001B | K185: =VLOOKUP(A185,[2]工作表5!$A$1:$D$565,4,0) -> 3401218 | L185: 台北營銷處 | N185: A | P185: =COUNTIF([3]BALANCE!$A$1:$A$65536,[3]notouch!$A185) ->  | Q185: =COUNTIF([3]BALANCE!$A$1:$A$65536,[3]notouch!$H185) -> 
A186: TW003001001B | B186: 銘盛電器有限公司 | C186: 19560401 | D186: 97184980 | E186: 台北營銷處 | F186: TPH | G186: 台北 | H186: DEALER_TT | I186: DLC_TT | J186: TW003001001B | L186: 台北營銷處 | N186: A | P186: =COUNTIF([3]BALANCE!$A$1:$A$65536,[3]notouch!$A186) ->  | Q186: =COUNTIF([3]BALANCE!$A$1:$A$65536,[3]notouch!$H186) -> 
A187: TW003013001B | B187: 重慶國際有限公司 | C187: TW003013 | D187: 79955373 | E187: 台中營銷處 | F187: DJB | G187: 台中 | H187: DEALER_TT | I187: DLC_TT | J187: TW003013001B | K187: =VLOOKUP(A187,[2]工作表5!$A$1:$D$565,4,0) -> 0 | L187: 台中營銷處 | N187: A | P187: =COUNTIF([3]BALANCE!$A$1:$A$65536,[3]notouch!$A187) ->  | Q187: =COUNTIF([3]BALANCE!$A$1:$A$65536,[3]notouch!$H187) -> 
A188: TW003020002B | B188: 華笙音響企業有限公司 | C188: TW003020 | D188: 23688754 | E188: 台中營銷處 | F188: DJB | G188: 台中 | H188: DEALER_TT | I188: DLC_TT | J188: TW003020002B | K188: =VLOOKUP(A188,[2]工作表5!$A$1:$D$565,4,0) -> 0 | L188: 台中營銷處 | N188: A | P188: =COUNTIF([3]BALANCE!$A$1:$A$65536,[3]notouch!$A188) ->  | Q188: =COUNTIF([3]BALANCE!$A$1:$A$65536,[3]notouch!$H188) -> 
A189: TW003023001B | B189: 翠亨企業股份有限公司 | C189: 19820909 | D189: 16129431 | E189: 高屏營銷處 | F189: GWB | G189: 高屏 | H189: DEALER_TT | I189: DCS_TT | J189: TW003023001B | K189: =VLOOKUP(A189,[2]工作表5!$A$1:$D$565,4,0) -> 699723 | L189: 高屏營銷處 | N189: A | P189: =COUNTIF([3]BALANCE!$A$1:$A$65536,[3]notouch!$A189) ->  | Q189: =COUNTIF([3]BALANCE!$A$1:$A$65536,[3]notouch!$H189) -> 
A190: TW003029001B | B190: 大統電器行 | C190: 19581106 | D190: 02846102 | E190: 桃竹營銷處 | F190: DWB | G190: 桃竹 | H190: DEALER_TT | I190: DLC_TT | J190: TW003029001B | K190: =VLOOKUP(A190,[2]工作表5!$A$1:$D$565,4,0) -> 79737 | L190: 桃竹營銷處 | N190: A | P190: =COUNTIF([3]BALANCE!$A$1:$A$65536,[3]notouch!$A190) ->  | Q190: =COUNTIF([3]BALANCE!$A$1:$A$65536,[3]notouch!$H190) -> 
A191: TW003034001B | B191: 九瑜電氣行 | C191: TW003034 | D191: 97887216 | E191: 台中營銷處 | F191: DJB | G191: 台中 | H191: DEALER_TT | I191: DLC_TT | J191: TW003034001B | L191: 台中營銷處 | N191: A | P191: =COUNTIF([3]BALANCE!$A$1:$A$65536,[3]notouch!$A191) ->  | Q191: =COUNTIF([3]BALANCE!$A$1:$A$65536,[3]notouch!$H191) -> 
A192: TW003035001B | B192: 友信電器有限公司 | C192: 19571230 | D192: 97341659 | E192: 嘉南營銷處 | F192: DNB | G192: 嘉南 | H192: DEALER_TT | I192: DLC_TT | J192: TW003035001B | K192: =VLOOKUP(A192,[2]工作表5!$A$1:$D$565,4,0) -> 0 | L192: 嘉南營銷處 | N192: A | P192: =COUNTIF([3]BALANCE!$A$1:$A$65536,[3]notouch!$A192) ->  | Q192: =COUNTIF([3]BALANCE!$A$1:$A$65536,[3]notouch!$H192) -> 
A193: TW003040001B | B193: 悅鼎電器有限公司 | C193: 19690102 | D193: 84693028 | E193: 台北營銷處 | F193: TPH | G193: 台北 | H193: DEALER_TT | I193: SPD_TT | J193: TW003040001B | K193: =VLOOKUP(A193,[2]工作表5!$A$1:$D$565,4,0) -> 4538850 | L193: 台北營銷處 | N193: A | P193: =COUNTIF([3]BALANCE!$A$1:$A$65536,[3]notouch!$A193) ->  | Q193: =COUNTIF([3]BALANCE!$A$1:$A$65536,[3]notouch!$H193) -> 
A194: TW003052001B | B194: 蓁筳園企業有限公司 | C194: XXXXXXXX | D194: XXXXXXXX | E194: B2B2C | F194: B2B2C | G194: B2B2C | H194: B2B_TT | I194: B2B_TT | N194: A | P194: =COUNTIF([3]BALANCE!$A$1:$A$65536,[3]notouch!$A194) ->  | Q194: =COUNTIF([3]BALANCE!$A$1:$A$65536,[3]notouch!$H194) -> 
A195: TW003052002B | B195: 蓁筳園企業有限公司 | C195: XXXXXXXX | D195: XXXXXXXX | E195: SAC | F195: ID&SAC | G195: SAC Sales | H195: B2B_TT | I195: CAC_TT | N195: I | O195: 無往來 | P195: =COUNTIF([3]BALANCE!$A$1:$A$65536,[3]notouch!$A195) ->  | Q195: =COUNTIF([3]BALANCE!$A$1:$A$65536,[3]notouch!$H195) -> 
A196: TW003053001B | B196: 尚德師企業有限公司 | C196: 19630211 | D196: 12933843 | E196: 台北營銷處 | F196: TPH | G196: 台北 | H196: DEALER_TT | I196: DLC_TT | J196: TW003053001B | L196: 台北營銷處 | N196: A | O196: =IF(N196="I","無往來",IF(SUM(P196:Q196)>0,"OK","沒有promotion")) ->  | P196: =COUNTIF([3]BALANCE!$A$1:$A$65536,[3]notouch!$A196) ->  | Q196: =COUNTIF([3]BALANCE!$A$1:$A$65536,[3]notouch!$H196) -> 
A197: TW003054001B | B197: 上益 | C197: 19550615 | D197: 15719466 | E197: 嘉南營銷處 | F197: DNB | G197: 嘉南 | H197: DEALER_TT | I197: DLC_TT | N197: I | O197: 無往來 | P197: =COUNTIF([3]BALANCE!$A$1:$A$65536,[3]notouch!$A197) ->  | Q197: =COUNTIF([3]BALANCE!$A$1:$A$65536,[3]notouch!$H197) -> 
A198: TW003071001B | B198: 泰昀企業有限公司 | C198: 19490915 | D198: 22866800 | E198: 台北營銷處 | F198: TPH | G198: 台北 | H198: DEALER_TT | I198: DCS_TT | J198: TW003071001B | K198: =VLOOKUP(A198,[2]工作表5!$A$1:$D$565,4,0) -> 475516 | L198: 台北營銷處 | N198: A | P198: =COUNTIF([3]BALANCE!$A$1:$A$65536,[3]notouch!$A198) ->  | Q198: =COUNTIF([3]BALANCE!$A$1:$A$65536,[3]notouch!$H198) -> 
A199: TW003094001B | B199: 大銀幕視聽音響有限公司 | C199: TW003094 | D199: 97033415 | E199: 台中營銷處 | F199: DJB | G199: 台中 | H199: DEALER_TT | I199: DCS_TT | J199: TW003094001B | K199: =VLOOKUP(A199,[2]工作表5!$A$1:$D$565,4,0) -> 0 | L199: 台中營銷處 | N199: A | P199: =COUNTIF([3]BALANCE!$A$1:$A$65536,[3]notouch!$A199) ->  | Q199: =COUNTIF([3]BALANCE!$A$1:$A$65536,[3]notouch!$H199) -> 
A200: TW003096001B | B200: 極品家電 | C200: 47226905 | D200: 47293663 | E200: 台中營銷處 | F200: DJB | G200: 台中 | H200: DEALER_TT | I200: DCS_TT | N200: I | O200: 無往來 | P200: =COUNTIF([3]BALANCE!$A$1:$A$65536,[3]notouch!$A200) ->  | Q200: =COUNTIF([3]BALANCE!$A$1:$A$65536,[3]notouch!$H200) -> 
... 985 more rows

Sheet 預算表
A3: 2025年11月 | B3: 台 灣 樂 金 電 器 股 份 有 限 公 司
A4: =確認code正確 ->  | B4: =店CODE -> 0 | D4: 密 碼
A5: 店Code： | C5: 第一組： | E5: =確認1 -> 0
A6: 店 名： | B6: =確認店 ->  | C6: 第二組： | E6: =確認2 -> 0
A7: =確認區 ->  | B7: =確認BG ->  | C7: =確認BG1 ->  | D7: =R好CODE1 ->  | E7: =R好CODE2 ->  | J7: =R好CODE3 -> 
A8: 店代號 | B8: Promotion No | C8: Promotion Name | D8: 起始日 | E8: 到期日 | F8: 獎勵內容 | G8: 型號 | H8: AMT/% | I8: 單價/%

Sheet BALANCE (hidden)
A1: Bill To Customer Code | B1: Bill To Customer Code | C1: Promotion No | D1: Promotion Name | E1: Start Date | F1: End Date | G1: Property Type | H1: Start Date | I1: End Date | J1: 內容 | K1: 店代號 | L1: 店名 | M1: NO | N1: AA(必填) | O1: AMT/AMT | P1: Description | Q1: Division | R1: Model | S1: Unit / % | T1: QTY / Sales | U1: Expected Cost
A2: =IFERROR(VLOOKUP(N2,多CODE,2,0),IF(RIGHT($B2,1)="H",LEFT($B2,11)&"B",IFERROR(VLOOKUP($B2,SHIP,3,0),$B2))) -> TW007124001B | B2: =K2 -> TW007124001B | C2: TT-TTSI-20241216-0044 | D2: MMCSN2411T013-AC/SAC-TW007124-AddYearInQtyTarget(AC/SAC)-2025 | E2: 2025-01-01 | F2: 2025-12-31 | G2: =MID(C2,4,4) -> TTSI | H2: =E2 -> 2025-01-01 | I2: =F2 -> 2025-12-31 | J2: 合約-冷氣/系統空調-年扣達成加碼獎勵(達300台加碼1%，達500台加碼1.5%)-01~12 | K2: TW007124001B | L2: 特力屋 | M2: TW | O2: % | P2: 年扣達成加碼獎勵(達300台加碼1%，達500台加碼1.5%) | R2: 冷氣 | T2: 0
A3: TW007124001B | B3: =K3 -> TW007124001B | C3: TT-TTSI-20241216-0044 | D3: MMCSN2411T013-AC/SAC-TW007124-AddYearInQtyTarget(AC/SAC)-2025 | E3: 2025-01-01 | F3: 2025-12-31 | G3: TTSI | H3: =E3 -> 2025-01-01 | I3: =F3 -> 2025-12-31 | J3: 合約-冷氣/系統空調-年扣達成加碼獎勵(達300台加碼1%，達500台加碼1.5%)-01~12 | K3: TW007124001B | L3: 特力屋 | M3: TW | O3: % | P3: 年扣達成加碼獎勵(達300台加碼1%，達500台加碼1.5%) | R3: 系統空調 | T3: 0
A4: TW007124001B | B4: TW007124001B | C4: TT-TTSI-20241216-0045 | D4: MMCSN2411T013-ALL-TW007124-Year-2025 | E4: 2025-01-01 | F4: 2025-12-31 | G4: TTSI | H4: 2025-01-01 | I4: 2025-12-31 | J4: 合約-全產品-年扣(進貨未稅獎勵達1千萬0.5%，超過4千萬1%，超過1億1.5%)-01~12 | K4: TW007124001B | L4: 特力屋 | M4: TW | O4: % | P4: 年扣(進貨未稅獎勵達1千萬0.5%，超過4千萬1%，超過1億1.5%) | R4: 全產品 | T4: 0
A5: TW002718001B | B5: TW002718001B | C5: TT-TTSI-20241218-0001 | D5: MMCSN2412B028-ALL-TW002718-YearTarget-2025 | E5: 2025-01-01 | F5: 2025-12-31 | G5: TTSI | H5: 2025-01-01 | I5: 2025-12-31 | J5: 合約-全產品-年扣(進貨達未稅4億起獎勵，最高級距14億以上獎勵4.1%)-01~12 | K5: TW002718001B | L5: 全國電子 | M5: TW | O5: % | P5: 年扣(進貨達未稅4億起獎勵，最高級距14億以上獎勵4.1%) | R5: 全產品 | T5: 0
A6: TW002758001B | B6: TW002758001B | C6: TT-TTSI-20241219-0001 | D6: DEPT2412D004-All-TW002758-YearTargetRebate-2025 | E6: 2025-01-01 | F6: 2025-12-31 | G6: TTSI | H6: 2025-01-01 | I6: 2025-12-31 | J6: 協議-家電-年度目標達成獎勵(2億1.5%,2.2億:2%且冷氣外機In-Out各110台)-01~12 | K6: TW002758001B | L6: 秀翔 | M6: TW | O6: % | P6: 年度目標達成獎勵(2億1.5%,2.2億:2%且冷氣外機In-Out各110台) | R6: 全產品 | T6: 0
A7: TW005281001B | B7: TW005281001B | C7: TT-TTSI-20241219-0002 | D7: DEPT2412D004-All-TW005281-YearTargetRebate-2025 | E7: 2025-01-01 | F7: 2025-12-31 | G7: TTSI | H7: 2025-01-01 | I7: 2025-12-31 | J7: 協議-家電-年度目標達成獎勵(1.4億1%,1.6億:1.5%且冷氣外機In-Out各65台)-01~12 | K7: TW005281001B | L7: 映象國際 | M7: TW | O7: % | P7: 年度目標達成獎勵(1.4億1%,1.6億:1.5%且冷氣外機In-Out各65台) | R7: 全產品 | T7: 0
A8: TW002750001B | B8: TW002750001B | C8: TT-TTSI-20241219-0003 | D8: DEPT2412D004-All-TW002750-YearTargetRebate-2025 | E8: 2025-01-01 | F8: 2025-12-31 | G8: TTSI | H8: 2025-01-01 | I8: 2025-12-31 | J8: 協議-家電-年度目標達成獎勵(12.5億5%,13.5億5.5%,15億:6%)-01~12 | K8: TW002750001B | L8: 集雅社 | M8: TW | O8: % | P8: 年度目標達成獎勵(12.5億5%,13.5億5.5%,15億:6%) | R8: 全產品 | T8: 0
A9: TW002525001B | B9: TW002525001H | C9: TT-TTSI-20241221-0037 | D9: MMCSN2412J066-All-TW002525-RenovateTargetRebate-2025 | E9: 2025-01-01 | F9: 2025-12-31 | G9: TTSI | H9: 2025-01-01 | I9: 2025-12-31 | J9: 合約-家電-附約全店改裝目標達成補助(7億以下0.05%以上0.1%乘適用條件店數,預計4家)-01~12 | K9: TW002525001H | L9: 大潤發總公司 | M9: TW | N9: MMCS-大潤發 | O9: % | P9: 附約全店改裝目標達成補助(7億以下0.05%以上0.1%乘適用條件店數,預計4家) | R9: 全產品 | T9: 0
A10: TW002525001B | B10: TW002525001H | C10: TT-TTSI-20241223-0037 | D10: MMCSN2412J066-White-TW002525-4548-YearRebate-2025 | E10: 2025-01-01 | F10: 2025-12-31 | G10: TTSI | H10: 2025-01-01 | I10: 2025-12-31 | J10: 合約-白電-年扣(300M*1.55%,342M*1.75%,376M*1.95%,510M以上*2.15%)-01~12 | K10: TW002525001H | L10: 大潤發總公司 | M10: TW | N10: MMCS-大潤發 | O10: % | P10: 年扣(300M*1.55%,342M*1.75%,376M*1.95%,510M以上*2.15%) | R10: 冰箱 | T10: 0
A11: TW002525001B | B11: TW002525001H | C11: TT-TTSI-20241223-0037 | D11: MMCSN2412J066-White-TW002525-4548-YearRebate-2025 | E11: 2025-01-01 | F11: 2025-12-31 | G11: TTSI | H11: 2025-01-01 | I11: 2025-12-31 | J11: 合約-白電-年扣(300M*1.55%,342M*1.75%,376M*1.95%,510M以上*2.15%)-01~12 | K11: TW002525001H | L11: 大潤發總公司 | M11: TW | N11: MMCS-大潤發 | O11: % | P11: 年扣(300M*1.55%,342M*1.75%,376M*1.95%,510M以上*2.15%) | R11: 洗衣機 | T11: 0
A12: TW002525001B | B12: TW002525001H | C12: TT-TTSI-20241223-0037 | D12: MMCSN2412J066-White-TW002525-4548-YearRebate-2025 | E12: 2025-01-01 | F12: 2025-12-31 | G12: TTSI | H12: 2025-01-01 | I12: 2025-12-31 | J12: 合約-白電-年扣(300M*1.55%,342M*1.75%,376M*1.95%,510M以上*2.15%)-01~12 | K12: TW002525001H | L12: 大潤發總公司 | M12: TW | N12: MMCS-大潤發 | O12: % | P12: 年扣(300M*1.55%,342M*1.75%,376M*1.95%,510M以上*2.15%) | R12: 冷氣 | T12: 0
A13: TW002525001B | B13: TW002525001H | C13: TT-TTSI-20241223-0037 | D13: MMCSN2412J066-White-TW002525-4548-YearRebate-2025 | E13: 2025-01-01 | F13: 2025-12-31 | G13: TTSI | H13: 2025-01-01 | I13: 2025-12-31 | J13: 合約-白電-年扣(300M*1.55%,342M*1.75%,376M*1.95%,510M以上*2.15%)-01~12 | K13: TW002525001H | L13: 大潤發總公司 | M13: TW | N13: MMCS-大潤發 | O13: % | P13: 年扣(300M*1.55%,342M*1.75%,376M*1.95%,510M以上*2.15%) | R13: 除濕/清淨機 | T13: 0
A14: TW002525001B | B14: TW002525001H | C14: TT-TTSI-20241223-0037 | D14: MMCSN2412J066-White-TW002525-4548-YearRebate-2025 | E14: 2025-01-01 | F14: 2025-12-31 | G14: TTSI | H14: 2025-01-01 | I14: 2025-12-31 | J14: 合約-白電-年扣(300M*1.55%,342M*1.75%,376M*1.95%,510M以上*2.15%)-01~12 | K14: TW002525001H | L14: 大潤發總公司 | M14: TW | N14: MMCS-大潤發 | O14: % | P14: 年扣(300M*1.55%,342M*1.75%,376M*1.95%,510M以上*2.15%) | R14: 系統空調 | T14: 0
A15: TW002525001B | B15: TW002525001H | C15: TT-TTSI-20241223-0037 | D15: MMCSN2412J066-White-TW002525-4548-YearRebate-2025 | E15: 2025-01-01 | F15: 2025-12-31 | G15: TTSI | H15: 2025-01-01 | I15: 2025-12-31 | J15: 合約-白電-年扣(300M*1.55%,342M*1.75%,376M*1.95%,510M以上*2.15%)-01~12 | K15: TW002525001H | L15: 大潤發總公司 | M15: TW | N15: MMCS-大潤發 | O15: % | P15: 年扣(300M*1.55%,342M*1.75%,376M*1.95%,510M以上*2.15%) | R15: 洗碗機 | T15: 0
A16: TW002525001B | B16: TW002525001H | C16: TT-TTSI-20241223-0038 | D16: MMCSN2412J066-TV.AV-TW002525-4557-YearRebate-2025 | E16: 2025-01-01 | F16: 2025-12-31 | G16: TTSI | H16: 2025-01-01 | I16: 2025-12-31 | J16: 合約-電視多媒體-年扣(180M*0.4%,215M*0.6%,255M*0.8%,295M*1%)-01~12 | K16: TW002525001H | L16: 大潤發總公司 | M16: TW | N16: MMCS-大潤發 | O16: % | P16: 年扣(180M*0.4%,215M*0.6%,255M*0.8%,295M*1%) | R16: 電視 | T16: 0
A17: TW002525001B | B17: TW002525001H | C17: TT-TTSI-20241223-0038 | D17: MMCSN2412J066-TV.AV-TW002525-4557-YearRebate-2025 | E17: 2025-01-01 | F17: 2025-12-31 | G17: TTSI | H17: 2025-01-01 | I17: 2025-12-31 | J17: 合約-電視多媒體-年扣(180M*0.4%,215M*0.6%,255M*0.8%,295M*1%)-01~12 | K17: TW002525001H | L17: 大潤發總公司 | M17: TW | N17: MMCS-大潤發 | O17: % | P17: 年扣(180M*0.4%,215M*0.6%,255M*0.8%,295M*1%) | R17: 多媒體 | T17: 0
A18: TW002525001B | B18: TW002525001H | C18: TT-TTSI-20241223-0039 | D18: MMCSN2412J066-VCC.MWO-TW002525-11168-YearRebate-2025 | E18: 2025-01-01 | F18: 2025-12-31 | G18: TTSI | H18: 2025-01-01 | I18: 2025-12-31 | J18: 合約-吸塵器微波爐-年扣(10M*1.5%,15M*1.7%,20M*1.9%,25M以上*2.1%)-01~12 | K18: TW002525001H | L18: 大潤發總公司 | M18: TW | N18: MMCS-大潤發 | O18: % | P18: 年扣(10M*1.5%,15M*1.7%,20M*1.9%,25M以上*2.1%) | R18: 吸塵器 | T18: 0
A19: TW002525001B | B19: TW002525001H | C19: TT-TTSI-20241223-0039 | D19: MMCSN2412J066-VCC.MWO-TW002525-11168-YearRebate-2025 | E19: 2025-01-01 | F19: 2025-12-31 | G19: TTSI | H19: 2025-01-01 | I19: 2025-12-31 | J19: 合約-吸塵器微波爐-年扣(10M*1.5%,15M*1.7%,20M*1.9%,25M以上*2.1%)-01~12 | K19: TW002525001H | L19: 大潤發總公司 | M19: TW | N19: MMCS-大潤發 | O19: % | P19: 年扣(10M*1.5%,15M*1.7%,20M*1.9%,25M以上*2.1%) | R19: 微波爐 | T19: 0
A20: TW002106001B | B20: TW002106001B | C20: TT-TTSI-20241224-0001 | D20: CESS2412002-ALL-SPD-Birthday-2025 | E20: 2025-01-01 | F20: 2025-12-31 | G20: TTSI | H20: 2025-01-01 | I20: 2025-12-31 | J20: 協議-家電-專售店生日禮金(年度結算未稅業績，夫妻含稅獎勵達1000萬各5千，1850萬各1萬，3550萬各1.5萬)-01~12 | K20: TW002106001B | L20: 大時代量販家電 | M20: TW | O20: % | P20: 專售店生日禮金(年度結算未稅業績，夫妻含稅獎勵達1000萬各5千，1850萬各1萬，3550萬各1.5萬) | R20: 全產品 | T20: 0
A21: TW002291001B | B21: TW002291001B | C21: TT-TTSI-20241224-0001 | D21: CESS2412002-ALL-SPD-Birthday-2025 | E21: 2025-01-01 | F21: 2025-12-31 | G21: TTSI | H21: 2025-01-01 | I21: 2025-12-31 | J21: 協議-家電-專售店生日禮金(年度結算未稅業績，夫妻含稅獎勵達1000萬各5千，1850萬各1萬，3550萬各1.5萬)-01~12 | K21: TW002291001B | L21: 金一電器 | M21: TW | O21: % | P21: 專售店生日禮金(年度結算未稅業績，夫妻含稅獎勵達1000萬各5千，1850萬各1萬，3550萬各1.5萬) | R21: 全產品 | T21: 0
A22: TW002351001B | B22: TW002351001B | C22: TT-TTSI-20241224-0001 | D22: CESS2412002-ALL-SPD-Birthday-2025 | E22: 2025-01-01 | F22: 2025-12-31 | G22: TTSI | H22: 2025-01-01 | I22: 2025-12-31 | J22: 協議-家電-專售店生日禮金(年度結算未稅業績，夫妻含稅獎勵達1000萬各5千，1850萬各1萬，3550萬各1.5萬)-01~12 | K22: TW002351001B | L22: 雅光 | M22: TW | O22: % | P22: 專售店生日禮金(年度結算未稅業績，夫妻含稅獎勵達1000萬各5千，1850萬各1萬，3550萬各1.5萬) | R22: 全產品 | T22: 0
A23: TW002514001B | B23: TW002514001B | C23: TT-TTSI-20241224-0001 | D23: CESS2412002-ALL-SPD-Birthday-2025 | E23: 2025-01-01 | F23: 2025-12-31 | G23: TTSI | H23: 2025-01-01 | I23: 2025-12-31 | J23: 協議-家電-專售店生日禮金(年度結算未稅業績，夫妻含稅獎勵達1000萬各5千，1850萬各1萬，3550萬各1.5萬)-01~12 | K23: TW002514001B | L23: 今漢 | M23: TW | O23: % | P23: 專售店生日禮金(年度結算未稅業績，夫妻含稅獎勵達1000萬各5千，1850萬各1萬，3550萬各1.5萬) | R23: 全產品 | T23: 0
A24: TW002557001B | B24: TW002557001B | C24: TT-TTSI-20241224-0001 | D24: CESS2412002-ALL-SPD-Birthday-2025 | E24: 2025-01-01 | F24: 2025-12-31 | G24: TTSI | H24: 2025-01-01 | I24: 2025-12-31 | J24: 協議-家電-專售店生日禮金(年度結算未稅業績，夫妻含稅獎勵達1000萬各5千，1850萬各1萬，3550萬各1.5萬)-01~12 | K24: TW002557001B | L24: 全民電子 | M24: TW | O24: % | P24: 專售店生日禮金(年度結算未稅業績，夫妻含稅獎勵達1000萬各5千，1850萬各1萬，3550萬各1.5萬) | R24: 全產品 | T24: 0
A25: TW002769001B | B25: TW002769001B | C25: TT-TTSI-20241224-0001 | D25: CESS2412002-ALL-SPD-Birthday-2025 | E25: 2025-01-01 | F25: 2025-12-31 | G25: TTSI | H25: 2025-01-01 | I25: 2025-12-31 | J25: 協議-家電-專售店生日禮金(年度結算未稅業績，夫妻含稅獎勵達1000萬各5千，1850萬各1萬，3550萬各1.5萬)-01~12 | K25: TW002769001B | L25: 東農電器 | M25: TW | O25: % | P25: 專售店生日禮金(年度結算未稅業績，夫妻含稅獎勵達1000萬各5千，1850萬各1萬，3550萬各1.5萬) | R25: 全產品 | T25: 0
A26: TW002789001B | B26: TW002789001B | C26: TT-TTSI-20241224-0001 | D26: CESS2412002-ALL-SPD-Birthday-2025 | E26: 2025-01-01 | F26: 2025-12-31 | G26: TTSI | H26: 2025-01-01 | I26: 2025-12-31 | J26: 協議-家電-專售店生日禮金(年度結算未稅業績，夫妻含稅獎勵達1000萬各5千，1850萬各1萬，3550萬各1.5萬)-01~12 | K26: TW002789001B | L26: 宏昇電器 | M26: TW | O26: % | P26: 專售店生日禮金(年度結算未稅業績，夫妻含稅獎勵達1000萬各5千，1850萬各1萬，3550萬各1.5萬) | R26: 全產品 | T26: 0
A27: TW003834001B | B27: TW003834001B | C27: TT-TTSI-20241224-0001 | D27: CESS2412002-ALL-SPD-Birthday-2025 | E27: 2025-01-01 | F27: 2025-12-31 | G27: TTSI | H27: 2025-01-01 | I27: 2025-12-31 | J27: 協議-家電-專售店生日禮金(年度結算未稅業績，夫妻含稅獎勵達1000萬各5千，1850萬各1萬，3550萬各1.5萬)-01~12 | K27: TW003834001B | L27: 萊旺企業 | M27: TW | O27: % | P27: 專售店生日禮金(年度結算未稅業績，夫妻含稅獎勵達1000萬各5千，1850萬各1萬，3550萬各1.5萬) | R27: 全產品 | T27: 0
A28: TW005264001B | B28: TW005264001B | C28: TT-TTSI-20241224-0001 | D28: CESS2412002-ALL-SPD-Birthday-2025 | E28: 2025-01-01 | F28: 2025-12-31 | G28: TTSI | H28: 2025-01-01 | I28: 2025-12-31 | J28: 協議-家電-專售店生日禮金(年度結算未稅業績，夫妻含稅獎勵達1000萬各5千，1850萬各1萬，3550萬各1.5萬)-01~12 | K28: TW005264001B | L28: 禾昌電器 | M28: TW | O28: % | P28: 專售店生日禮金(年度結算未稅業績，夫妻含稅獎勵達1000萬各5千，1850萬各1萬，3550萬各1.5萬) | R28: 全產品 | T28: 0
A29: TW005288001B | B29: TW005288001B | C29: TT-TTSI-20241224-0001 | D29: CESS2412002-ALL-SPD-Birthday-2025 | E29: 2025-01-01 | F29: 2025-12-31 | G29: TTSI | H29: 2025-01-01 | I29: 2025-12-31 | J29: 協議-家電-專售店生日禮金(年度結算未稅業績，夫妻含稅獎勵達1000萬各5千，1850萬各1萬，3550萬各1.5萬)-01~12 | K29: TW005288001B | L29: 五順電器 | M29: TW | O29: % | P29: 專售店生日禮金(年度結算未稅業績，夫妻含稅獎勵達1000萬各5千，1850萬各1萬，3550萬各1.5萬) | R29: 全產品 | T29: 0
A30: TW005301001B | B30: TW005301001B | C30: TT-TTSI-20241224-0001 | D30: CESS2412002-ALL-SPD-Birthday-2025 | E30: 2025-01-01 | F30: 2025-12-31 | G30: TTSI | H30: 2025-01-01 | I30: 2025-12-31 | J30: 協議-家電-專售店生日禮金(年度結算未稅業績，夫妻含稅獎勵達1000萬各5千，1850萬各1萬，3550萬各1.5萬)-01~12 | K30: TW005301001B | L30: 南霸天電器 | M30: TW | O30: % | P30: 專售店生日禮金(年度結算未稅業績，夫妻含稅獎勵達1000萬各5千，1850萬各1萬，3550萬各1.5萬) | R30: 全產品 | T30: 0
A31: TW005440001B | B31: TW005440001B | C31: TT-TTSI-20241224-0001 | D31: CESS2412002-ALL-SPD-Birthday-2025 | E31: 2025-01-01 | F31: 2025-12-31 | G31: TTSI | H31: 2025-01-01 | I31: 2025-12-31 | J31: 協議-家電-專售店生日禮金(年度結算未稅業績，夫妻含稅獎勵達1000萬各5千，1850萬各1萬，3550萬各1.5萬)-01~12 | K31: TW005440001B | L31: 玉明電器 | M31: TW | O31: % | P31: 專售店生日禮金(年度結算未稅業績，夫妻含稅獎勵達1000萬各5千，1850萬各1萬，3550萬各1.5萬) | R31: 全產品 | T31: 0
A32: TW005602001B | B32: TW005602001B | C32: TT-TTSI-20241224-0001 | D32: CESS2412002-ALL-SPD-Birthday-2025 | E32: 2025-01-01 | F32: 2025-12-31 | G32: TTSI | H32: 2025-01-01 | I32: 2025-12-31 | J32: 協議-家電-專售店生日禮金(年度結算未稅業績，夫妻含稅獎勵達1000萬各5千，1850萬各1萬，3550萬各1.5萬)-01~12 | K32: TW005602001B | L32: 好佳貨家電影音生活館 | M32: TW | O32: % | P32: 專售店生日禮金(年度結算未稅業績，夫妻含稅獎勵達1000萬各5千，1850萬各1萬，3550萬各1.5萬) | R32: 全產品 | T32: 0
A33: TW006320001B | B33: TW006320001B | C33: TT-TTSI-20241224-0001 | D33: CESS2412002-ALL-SPD-Birthday-2025 | E33: 2025-01-01 | F33: 2025-12-31 | G33: TTSI | H33: 2025-01-01 | I33: 2025-12-31 | J33: 協議-家電-專售店生日禮金(年度結算未稅業績，夫妻含稅獎勵達1000萬各5千，1850萬各1萬，3550萬各1.5萬)-01~12 | K33: TW006320001B | L33: 小楊家電行 | M33: TW | O33: % | P33: 專售店生日禮金(年度結算未稅業績，夫妻含稅獎勵達1000萬各5千，1850萬各1萬，3550萬各1.5萬) | R33: 全產品 | T33: 0
A34: TW006332001B | B34: TW006332001B | C34: TT-TTSI-20241224-0001 | D34: CESS2412002-ALL-SPD-Birthday-2025 | E34: 2025-01-01 | F34: 2025-12-31 | G34: TTSI | H34: 2025-01-01 | I34: 2025-12-31 | J34: 協議-家電-專售店生日禮金(年度結算未稅業績，夫妻含稅獎勵達1000萬各5千，1850萬各1萬，3550萬各1.5萬)-01~12 | K34: TW006332001B | L34: 萊旺電器行 | M34: TW | O34: % | P34: 專售店生日禮金(年度結算未稅業績，夫妻含稅獎勵達1000萬各5千，1850萬各1萬，3550萬各1.5萬) | R34: 全產品 | T34: 0
A35: TW007053001B | B35: TW007053001B | C35: TT-TTSI-20241224-0001 | D35: CESS2412002-ALL-SPD-Birthday-2025 | E35: 2025-01-01 | F35: 2025-12-31 | G35: TTSI | H35: 2025-01-01 | I35: 2025-12-31 | J35: 協議-家電-專售店生日禮金(年度結算未稅業績，夫妻含稅獎勵達1000萬各5千，1850萬各1萬，3550萬各1.5萬)-01~12 | K35: TW007053001B | L35: 尚合雅有限公司 | M35: TW | O35: % | P35: 專售店生日禮金(年度結算未稅業績，夫妻含稅獎勵達1000萬各5千，1850萬各1萬，3550萬各1.5萬) | R35: 全產品 | T35: 0
A36: TW007094001B | B36: TW007094001B | C36: TT-TTSI-20241224-0001 | D36: CESS2412002-ALL-SPD-Birthday-2025 | E36: 2025-01-01 | F36: 2025-12-31 | G36: TTSI | H36: 2025-01-01 | I36: 2025-12-31 | J36: 協議-家電-專售店生日禮金(年度結算未稅業績，夫妻含稅獎勵達1000萬各5千，1850萬各1萬，3550萬各1.5萬)-01~12 | K36: TW007094001B | L36: 遠東空調家電有限公司 | M36: TW | O36: % | P36: 專售店生日禮金(年度結算未稅業績，夫妻含稅獎勵達1000萬各5千，1850萬各1萬，3550萬各1.5萬) | R36: 全產品 | T36: 0
A37: TW006200001B | B37: TW006200001B | C37: TT-TTSI-20241224-0001 | D37: CESS2412002-ALL-SPD-Birthday-2025 | E37: 2025-01-01 | F37: 2025-12-31 | G37: TTSI | H37: 2025-01-01 | I37: 2025-12-31 | J37: 協議-家電-專售店生日禮金(年度結算未稅業績，夫妻含稅獎勵達1000萬各5千，1850萬各1萬，3550萬各1.5萬)-01~12 | K37: TW006200001B | L37: 集盛股份有限公司 | M37: TW | O37: % | P37: 專售店生日禮金(年度結算未稅業績，夫妻含稅獎勵達1000萬各5千，1850萬各1萬，3550萬各1.5萬) | R37: 全產品 | T37: 0
A38: TW003898001B | B38: TW003898001B | C38: TT-TTSI-20241224-0001 | D38: CESS2412002-ALL-SPD-Birthday-2025 | E38: 2025-01-01 | F38: 2025-12-31 | G38: TTSI | H38: 2025-01-01 | I38: 2025-12-31 | J38: 協議-家電-專售店生日禮金(年度結算未稅業績，夫妻含稅獎勵達1000萬各5千，1850萬各1萬，3550萬各1.5萬)-01~12 | K38: TW003898001B | L38: 科昌電器 | M38: TW | O38: % | P38: 專售店生日禮金(年度結算未稅業績，夫妻含稅獎勵達1000萬各5千，1850萬各1萬，3550萬各1.5萬) | R38: 全產品 | T38: 0
A39: TW002288001B | B39: TW002288001B | C39: TT-TTSI-20241224-0001 | D39: CESS2412002-ALL-SPD-Birthday-2025 | E39: 2025-01-01 | F39: 2025-12-31 | G39: TTSI | H39: 2025-01-01 | I39: 2025-12-31 | J39: 協議-家電-專售店生日禮金(年度結算未稅業績，夫妻含稅獎勵達1000萬各5千，1850萬各1萬，3550萬各1.5萬)-01~12 | K39: TW002288001B | L39: 幸韻電器 | M39: TW | O39: % | P39: 專售店生日禮金(年度結算未稅業績，夫妻含稅獎勵達1000萬各5千，1850萬各1萬，3550萬各1.5萬) | R39: 全產品 | T39: 0
A40: TW007058001B | B40: TW007058001B | C40: TT-TTSI-20241224-0001 | D40: CESS2412002-ALL-SPD-Birthday-2025 | E40: 2025-01-01 | F40: 2025-12-31 | G40: TTSI | H40: 2025-01-01 | I40: 2025-12-31 | J40: 協議-家電-專售店生日禮金(年度結算未稅業績，夫妻含稅獎勵達1000萬各5千，1850萬各1萬，3550萬各1.5萬)-01~12 | K40: TW007058001B | L40: 東緣電器行 | M40: TW | O40: % | P40: 專售店生日禮金(年度結算未稅業績，夫妻含稅獎勵達1000萬各5千，1850萬各1萬，3550萬各1.5萬) | R40: 全產品 | T40: 0
A41: TW003310001B | B41: TW003310001B | C41: TT-TTSI-20241224-0001 | D41: CESS2412002-ALL-SPD-Birthday-2025 | E41: 2025-01-01 | F41: 2025-12-31 | G41: TTSI | H41: 2025-01-01 | I41: 2025-12-31 | J41: 協議-家電-專售店生日禮金(年度結算未稅業績，夫妻含稅獎勵達1000萬各5千，1850萬各1萬，3550萬各1.5萬)-01~12 | K41: TW003310001B | L41: 陽曜企業 | M41: TW | O41: % | P41: 專售店生日禮金(年度結算未稅業績，夫妻含稅獎勵達1000萬各5千，1850萬各1萬，3550萬各1.5萬) | R41: 全產品 | T41: 0
A42: TW002886001B | B42: TW002886001B | C42: TT-TTSI-20241224-0001 | D42: CESS2412002-ALL-SPD-Birthday-2025 | E42: 2025-01-01 | F42: 2025-12-31 | G42: TTSI | H42: 2025-01-01 | I42: 2025-12-31 | J42: 協議-家電-專售店生日禮金(年度結算未稅業績，夫妻含稅獎勵達1000萬各5千，1850萬各1萬，3550萬各1.5萬)-01~12 | K42: TW002886001B | L42: 三信電氣 | M42: TW | O42: % | P42: 專售店生日禮金(年度結算未稅業績，夫妻含稅獎勵達1000萬各5千，1850萬各1萬，3550萬各1.5萬) | R42: 全產品 | T42: 0
A43: TW005258001B | B43: TW005258001B | C43: TT-TTSI-20241224-0001 | D43: CESS2412002-ALL-SPD-Birthday-2025 | E43: 2025-01-01 | F43: 2025-12-31 | G43: TTSI | H43: 2025-01-01 | I43: 2025-12-31 | J43: 協議-家電-專售店生日禮金(年度結算未稅業績，夫妻含稅獎勵達1000萬各5千，1850萬各1萬，3550萬各1.5萬)-01~12 | K43: TW005258001B | L43: 禾佳電器 | M43: TW | O43: % | P43: 專售店生日禮金(年度結算未稅業績，夫妻含稅獎勵達1000萬各5千，1850萬各1萬，3550萬各1.5萬) | R43: 全產品 | T43: 0
A44: TW002851001B | B44: TW002851001B | C44: TT-TTSI-20241224-0001 | D44: CESS2412002-ALL-SPD-Birthday-2025 | E44: 2025-01-01 | F44: 2025-12-31 | G44: TTSI | H44: 2025-01-01 | I44: 2025-12-31 | J44: 協議-家電-專售店生日禮金(年度結算未稅業績，夫妻含稅獎勵達1000萬各5千，1850萬各1萬，3550萬各1.5萬)-01~12 | K44: TW002851001B | L44: 隆慶電器 | M44: TW | O44: % | P44: 專售店生日禮金(年度結算未稅業績，夫妻含稅獎勵達1000萬各5千，1850萬各1萬，3550萬各1.5萬) | R44: 全產品 | T44: 0
A45: TW004929001B | B45: TW004929001B | C45: TT-TTSI-20241224-0001 | D45: CESS2412002-ALL-SPD-Birthday-2025 | E45: 2025-01-01 | F45: 2025-12-31 | G45: TTSI | H45: 2025-01-01 | I45: 2025-12-31 | J45: 協議-家電-專售店生日禮金(年度結算未稅業績，夫妻含稅獎勵達1000萬各5千，1850萬各1萬，3550萬各1.5萬)-01~12 | K45: TW004929001B | L45: 聯錩順電器 | M45: TW | O45: % | P45: 專售店生日禮金(年度結算未稅業績，夫妻含稅獎勵達1000萬各5千，1850萬各1萬，3550萬各1.5萬) | R45: 全產品 | T45: 0
A46: TW007134001B | B46: TW007134001B | C46: TT-TTSI-20241224-0001 | D46: CESS2412002-ALL-SPD-Birthday-2025 | E46: 2025-01-01 | F46: 2025-12-31 | G46: TTSI | H46: 2025-01-01 | I46: 2025-12-31 | J46: 協議-家電-專售店生日禮金(年度結算未稅業績，夫妻含稅獎勵達1000萬各5千，1850萬各1萬，3550萬各1.5萬)-01~12 | K46: TW007134001B | L46: 威特家電 | M46: TW | O46: % | P46: 專售店生日禮金(年度結算未稅業績，夫妻含稅獎勵達1000萬各5千，1850萬各1萬，3550萬各1.5萬) | R46: 全產品 | T46: 0
A47: TW002143001B | B47: TW002143001B | C47: TT-TTSI-20241224-0001 | D47: CESS2412002-ALL-SPD-Birthday-2025 | E47: 2025-01-01 | F47: 2025-12-31 | G47: TTSI | H47: 2025-01-01 | I47: 2025-12-31 | J47: 協議-家電-專售店生日禮金(年度結算未稅業績，夫妻含稅獎勵達1000萬各5千，1850萬各1萬，3550萬各1.5萬)-01~12 | K47: TW002143001B | L47: 全省電器 | M47: TW | O47: % | P47: 專售店生日禮金(年度結算未稅業績，夫妻含稅獎勵達1000萬各5千，1850萬各1萬，3550萬各1.5萬) | R47: 全產品 | T47: 0
A48: TW005593001B | B48: TW005593001B | C48: TT-TTSI-20241224-0001 | D48: CESS2412002-ALL-SPD-Birthday-2025 | E48: 2025-01-01 | F48: 2025-12-31 | G48: TTSI | H48: 2025-01-01 | I48: 2025-12-31 | J48: 協議-家電-專售店生日禮金(年度結算未稅業績，夫妻含稅獎勵達1000萬各5千，1850萬各1萬，3550萬各1.5萬)-01~12 | K48: TW005593001B | L48: 美光節能科技有限公司 | M48: TW | O48: % | P48: 專售店生日禮金(年度結算未稅業績，夫妻含稅獎勵達1000萬各5千，1850萬各1萬，3550萬各1.5萬) | R48: 全產品 | T48: 0
A49: TW002950001B | B49: TW002950001B | C49: TT-TTSI-20241224-0001 | D49: CESS2412002-ALL-SPD-Birthday-2025 | E49: 2025-01-01 | F49: 2025-12-31 | G49: TTSI | H49: 2025-01-01 | I49: 2025-12-31 | J49: 協議-家電-專售店生日禮金(年度結算未稅業績，夫妻含稅獎勵達1000萬各5千，1850萬各1萬，3550萬各1.5萬)-01~12 | K49: TW002950001B | L49: 廣昌電器 | M49: TW | O49: % | P49: 專售店生日禮金(年度結算未稅業績，夫妻含稅獎勵達1000萬各5千，1850萬各1萬，3550萬各1.5萬) | R49: 全產品 | T49: 0
A50: TW004349001B | B50: TW004349001B | C50: TT-TTSI-20241224-0001 | D50: CESS2412002-ALL-SPD-Birthday-2025 | E50: 2025-01-01 | F50: 2025-12-31 | G50: TTSI | H50: 2025-01-01 | I50: 2025-12-31 | J50: 協議-家電-專售店生日禮金(年度結算未稅業績，夫妻含稅獎勵達1000萬各5千，1850萬各1萬，3550萬各1.5萬)-01~12 | K50: TW004349001B | L50: 瑨耀企業 | M50: TW | O50: % | P50: 專售店生日禮金(年度結算未稅業績，夫妻含稅獎勵達1000萬各5千，1850萬各1萬，3550萬各1.5萬) | R50: 全產品 | T50: 0
A51: TW002141001B | B51: TW002141001B | C51: TT-TTSI-20241224-0001 | D51: CESS2412002-ALL-SPD-Birthday-2025 | E51: 2025-01-01 | F51: 2025-12-31 | G51: TTSI | H51: 2025-01-01 | I51: 2025-12-31 | J51: 協議-家電-專售店生日禮金(年度結算未稅業績，夫妻含稅獎勵達1000萬各5千，1850萬各1萬，3550萬各1.5萬)-01~12 | K51: TW002141001B | L51: 冠銓電器 | M51: TW | O51: % | P51: 專售店生日禮金(年度結算未稅業績，夫妻含稅獎勵達1000萬各5千，1850萬各1萬，3550萬各1.5萬) | R51: 全產品 | T51: 0
A52: TW006118001B | B52: TW006118001B | C52: TT-TTSI-20241224-0001 | D52: CESS2412002-ALL-SPD-Birthday-2025 | E52: 2025-01-01 | F52: 2025-12-31 | G52: TTSI | H52: 2025-01-01 | I52: 2025-12-31 | J52: 協議-家電-專售店生日禮金(年度結算未稅業績，夫妻含稅獎勵達1000萬各5千，1850萬各1萬，3550萬各1.5萬)-01~12 | K52: TW006118001B | L52: 新邵有限公司 | M52: TW | O52: % | P52: 專售店生日禮金(年度結算未稅業績，夫妻含稅獎勵達1000萬各5千，1850萬各1萬，3550萬各1.5萬) | R52: 全產品 | T52: 0
A53: TW003389001B | B53: TW003389001B | C53: TT-TTSI-20241224-0001 | D53: CESS2412002-ALL-SPD-Birthday-2025 | E53: 2025-01-01 | F53: 2025-12-31 | G53: TTSI | H53: 2025-01-01 | I53: 2025-12-31 | J53: 協議-家電-專售店生日禮金(年度結算未稅業績，夫妻含稅獎勵達1000萬各5千，1850萬各1萬，3550萬各1.5萬)-01~12 | K53: TW003389001B | L53: 金樹電器空調 | M53: TW | O53: % | P53: 專售店生日禮金(年度結算未稅業績，夫妻含稅獎勵達1000萬各5千，1850萬各1萬，3550萬各1.5萬) | R53: 全產品 | T53: 0
A54: TW002572001B | B54: TW002572001B | C54: TT-TTSI-20241224-0001 | D54: CESS2412002-ALL-SPD-Birthday-2025 | E54: 2025-01-01 | F54: 2025-12-31 | G54: TTSI | H54: 2025-01-01 | I54: 2025-12-31 | J54: 協議-家電-專售店生日禮金(年度結算未稅業績，夫妻含稅獎勵達1000萬各5千，1850萬各1萬，3550萬各1.5萬)-01~12 | K54: TW002572001B | L54: 新傑電器 | M54: TW | O54: % | P54: 專售店生日禮金(年度結算未稅業績，夫妻含稅獎勵達1000萬各5千，1850萬各1萬，3550萬各1.5萬) | R54: 全產品 | T54: 0
A55: TW007251001B | B55: TW007251001B | C55: TT-TTSI-20241224-0001 | D55: CESS2412002-ALL-SPD-Birthday-2025 | E55: 2025-01-01 | F55: 2025-12-31 | G55: TTSI | H55: 2025-01-01 | I55: 2025-12-31 | J55: 協議-家電-專售店生日禮金(年度結算未稅業績，夫妻含稅獎勵達1000萬各5千，1850萬各1萬，3550萬各1.5萬)-01~12 | K55: TW007251001B | L55: 廣宜電器 | M55: TW | O55: % | P55: 專售店生日禮金(年度結算未稅業績，夫妻含稅獎勵達1000萬各5千，1850萬各1萬，3550萬各1.5萬) | R55: 全產品 | T55: 0
A56: TW007244001B | B56: TW007244001B | C56: TT-TTSI-20241224-0001 | D56: CESS2412002-ALL-SPD-Birthday-2025 | E56: 2025-01-01 | F56: 2025-12-31 | G56: TTSI | H56: 2025-01-01 | I56: 2025-12-31 | J56: 協議-家電-專售店生日禮金(年度結算未稅業績，夫妻含稅獎勵達1000萬各5千，1850萬各1萬，3550萬各1.5萬)-01~12 | K56: TW007244001B | L56: 克拉企業 | M56: TW | O56: % | P56: 專售店生日禮金(年度結算未稅業績，夫妻含稅獎勵達1000萬各5千，1850萬各1萬，3550萬各1.5萬) | R56: 全產品 | T56: 0
A57: TW007217001B | B57: TW007217001B | C57: TT-TTSI-20241224-0001 | D57: CESS2412002-ALL-SPD-Birthday-2025 | E57: 2025-01-01 | F57: 2025-12-31 | G57: TTSI | H57: 2025-01-01 | I57: 2025-12-31 | J57: 協議-家電-專售店生日禮金(年度結算未稅業績，夫妻含稅獎勵達1000萬各5千，1850萬各1萬，3550萬各1.5萬)-01~12 | K57: TW007217001B | L57: 三瀛實業有限公司 | M57: TW | O57: % | P57: 專售店生日禮金(年度結算未稅業績，夫妻含稅獎勵達1000萬各5千，1850萬各1萬，3550萬各1.5萬) | R57: 全產品 | T57: 0
A58: TW003134001B | B58: TW003134001B | C58: TT-TTSI-20241224-0001 | D58: CESS2412002-ALL-SPD-Birthday-2025 | E58: 2025-01-01 | F58: 2025-12-31 | G58: TTSI | H58: 2025-01-01 | I58: 2025-12-31 | J58: 協議-家電-專售店生日禮金(年度結算未稅業績，夫妻含稅獎勵達1000萬各5千，1850萬各1萬，3550萬各1.5萬)-01~12 | K58: TW003134001B | L58: 鴻輝電器 | M58: TW | O58: % | P58: 專售店生日禮金(年度結算未稅業績，夫妻含稅獎勵達1000萬各5千，1850萬各1萬，3550萬各1.5萬) | R58: 全產品 | T58: 0
A59: TW007491001B | B59: TW007491001B | C59: TT-TTSI-20241224-0001 | D59: CESS2412002-ALL-SPD-Birthday-2025 | E59: 2025-01-01 | F59: 2025-12-31 | G59: TTSI | H59: 2025-01-01 | I59: 2025-12-31 | J59: 協議-家電-專售店生日禮金(年度結算未稅業績，夫妻含稅獎勵達1000萬各5千，1850萬各1萬，3550萬各1.5萬)-01~12 | K59: TW007491001B | L59: 響樂有限公司 | M59: TW | O59: % | P59: 專售店生日禮金(年度結算未稅業績，夫妻含稅獎勵達1000萬各5千，1850萬各1萬，3550萬各1.5萬) | R59: 全產品 | T59: 0
A60: TW007435001B | B60: TW007435001B | C60: TT-TTSI-20241224-0001 | D60: CESS2412002-ALL-SPD-Birthday-2025 | E60: 2025-01-01 | F60: 2025-12-31 | G60: TTSI | H60: 2025-01-01 | I60: 2025-12-31 | J60: 協議-家電-專售店生日禮金(年度結算未稅業績，夫妻含稅獎勵達1000萬各5千，1850萬各1萬，3550萬各1.5萬)-01~12 | K60: TW007435001B | L60: 羅森數位有限公司 | M60: TW | O60: % | P60: 專售店生日禮金(年度結算未稅業績，夫妻含稅獎勵達1000萬各5千，1850萬各1萬，3550萬各1.5萬) | R60: 全產品 | T60: 0
A61: TW007513001B | B61: TW007513001B | C61: TT-TTSI-20241224-0001 | D61: CESS2412002-ALL-SPD-Birthday-2025 | E61: 2025-01-01 | F61: 2025-12-31 | G61: TTSI | H61: 2025-01-01 | I61: 2025-12-31 | J61: 協議-家電-專售店生日禮金(年度結算未稅業績，夫妻含稅獎勵達1000萬各5千，1850萬各1萬，3550萬各1.5萬)-01~12 | K61: TW007513001B | L61: 樂天行銷有限公司 | M61: TW | O61: % | P61: 專售店生日禮金(年度結算未稅業績，夫妻含稅獎勵達1000萬各5千，1850萬各1萬，3550萬各1.5萬) | R61: 全產品 | T61: 0
A62: TW002214001B | B62: TW002214001B | C62: TT-TTSI-20241224-0001 | D62: CESS2412002-ALL-SPD-Birthday-2025 | E62: 2025-01-01 | F62: 2025-12-31 | G62: TTSI | H62: 2025-01-01 | I62: 2025-12-31 | J62: 協議-家電-專售店生日禮金(年度結算未稅業績，夫妻含稅獎勵達1000萬各5千，1850萬各1萬，3550萬各1.5萬)-01~12 | K62: TW002214001B | L62: 欣益電器 | M62: TW | O62: % | P62: 專售店生日禮金(年度結算未稅業績，夫妻含稅獎勵達1000萬各5千，1850萬各1萬，3550萬各1.5萬) | R62: 全產品 | T62: 0
A63: TW004348001B | B63: TW004348001B | C63: TT-TTSI-20241224-0001 | D63: CESS2412002-ALL-SPD-Birthday-2025 | E63: 2025-01-01 | F63: 2025-12-31 | G63: TTSI | H63: 2025-01-01 | I63: 2025-12-31 | J63: 協議-家電-專售店生日禮金(年度結算未稅業績，夫妻含稅獎勵達1000萬各5千，1850萬各1萬，3550萬各1.5萬)-01~12 | K63: TW004348001B | L63: 晉宏電器 | M63: TW | O63: % | P63: 專售店生日禮金(年度結算未稅業績，夫妻含稅獎勵達1000萬各5千，1850萬各1萬，3550萬各1.5萬) | R63: 全產品 | T63: 0
A64: TW003126001B | B64: TW003126001B | C64: TT-TTSI-20241224-0001 | D64: CESS2412002-ALL-SPD-Birthday-2025 | E64: 2025-01-01 | F64: 2025-12-31 | G64: TTSI | H64: 2025-01-01 | I64: 2025-12-31 | J64: 協議-家電-專售店生日禮金(年度結算未稅業績，夫妻含稅獎勵達1000萬各5千，1850萬各1萬，3550萬各1.5萬)-01~12 | K64: TW003126001B | L64: 東圓 | M64: TW | O64: % | P64: 專售店生日禮金(年度結算未稅業績，夫妻含稅獎勵達1000萬各5千，1850萬各1萬，3550萬各1.5萬) | R64: 全產品 | T64: 0
A65: TW007566001B | B65: TW007566001B | C65: TT-TTSI-20241224-0001 | D65: CESS2412002-ALL-SPD-Birthday-2025 | E65: 2025-01-01 | F65: 2025-12-31 | G65: TTSI | H65: 2025-01-01 | I65: 2025-12-31 | J65: 協議-家電-專售店生日禮金(年度結算未稅業績，夫妻含稅獎勵達1000萬各5千，1850萬各1萬，3550萬各1.5萬)-01~12 | K65: TW007566001B | L65: 銓新家電有限公司 | M65: TW | O65: % | P65: 專售店生日禮金(年度結算未稅業績，夫妻含稅獎勵達1000萬各5千，1850萬各1萬，3550萬各1.5萬) | R65: 全產品 | T65: 0
A66: =IFERROR(VLOOKUP(N66,多CODE,2,0),IF(RIGHT($B66,1)="H",LEFT($B66,11)&"B",IFERROR(VLOOKUP($B66,SHIP,3,0),$B66))) -> TW007583001B | B66: TW007583001B | C66: TT-TTSI-20241224-0001 | D66: CESS2412002-ALL-SPD-Birthday-2025 | E66: 2025-01-01 | F66: 2025-12-31 | G66: =MID(C66,4,4) -> TTSI | H66: 2025-01-01 | I66: 2025-12-31 | J66: 協議-家電-專售店生日禮金(年度結算未稅業績，夫妻含稅獎勵達1000萬各5千，1850萬各1萬，3550萬各1.5萬)-01~12 | K66: TW007583001B | L66: 九三電器有限公司 | M66: TW | O66: % | P66: 專售店生日禮金(年度結算未稅業績，夫妻含稅獎勵達1000萬各5千，1850萬各1萬，3550萬各1.5萬) | R66: 全產品 | T66: 0
A67: TW007639001B | B67: =K67 -> TW007639001B | C67: TT-TTSI-20241224-0001 | D67: CESS2412002-ALL-SPD-Birthday-2025 | E67: 2025-01-01 | F67: 2025-12-31 | G67: TTSI | H67: =E67 -> 2025-01-01 | I67: =F67 -> 2025-12-31 | J67: 協議-家電-專售店生日禮金(年度結算未稅業績，夫妻含稅獎勵達1000萬各5千，1850萬各1萬，3550萬各1.5萬)-01~12 | K67: TW007639001B | L67: 米米實業有限公司臺北分公司 | M67: TW | O67: % | P67: 專售店生日禮金(年度結算未稅業績，夫妻含稅獎勵達1000萬各5千，1850萬各1萬，3550萬各1.5萬) | R67: 全產品 | T67: 0
A68: TW002529001B | B68: TW002529001B | C68: TT-TTSI-20241224-0028 | D68: Contract-All-TW002529-Yearly Rebate-2025 | E68: 2025-01-01 | F68: 2025-12-31 | G68: TTSI | H68: 2025-01-01 | I68: 2025-12-31 | J68: 合約-全產品-年扣(8,000萬*1.2%，1億1,000萬*1.5%，1億5,000萬*1.8%)-01~12 | K68: TW002529001B | L68: 愛買吉安總公司 | M68: TW | O68: % | P68: 年扣(8,000萬*1.2%，1億1,000萬*1.5%，1億5,000萬*1.8%) | R68: 全產品 | T68: 0
A69: TW006155001B | B69: TW006155001B | C69: TT-TTSI-20241224-0031 | D69: CESS2412002-ALL-Batchshop-ReachIncentive-2025 | E69: 2025-01-01 | F69: 2025-12-31 | G69: TTSI | H69: 2025-01-01 | I69: 2025-12-31 | J69: 協議-家電-批店達成獎勵(經銷年度辦法，年實績未稅需達1,500萬以上，依淨實績計算獎勵)-01~12 | K69: TW006155001B | L69: 東紳科技 | M69: TW | O69: % | P69: 批店達成獎勵(經銷年度辦法，年實績未稅需達1,500萬以上，依淨實績計算獎勵) | R69: 全產品 | T69: 0
A70: TW002861001B | B70: TW002861001B | C70: TT-TTSI-20241224-0031 | D70: CESS2412002-ALL-Batchshop-ReachIncentive-2025 | E70: 2025-01-01 | F70: 2025-12-31 | G70: TTSI | H70: 2025-01-01 | I70: 2025-12-31 | J70: 協議-家電-批店達成獎勵(經銷年度辦法，年實績未稅需達1,500萬以上，依淨實績計算獎勵)-01~12 | K70: TW002861001B | L70: 昇廣電器 | M70: TW | O70: % | P70: 批店達成獎勵(經銷年度辦法，年實績未稅需達1,500萬以上，依淨實績計算獎勵) | R70: 全產品 | T70: 0
A71: TW005590001B | B71: TW005590001B | C71: TT-TTSI-20241224-0031 | D71: CESS2412002-ALL-Batchshop-ReachIncentive-2025 | E71: 2025-01-01 | F71: 2025-12-31 | G71: TTSI | H71: 2025-01-01 | I71: 2025-12-31 | J71: 協議-家電-批店達成獎勵(經銷年度辦法，年實績未稅需達1,500萬以上，依淨實績計算獎勵)-01~12 | K71: TW005590001B | L71: 新遠東有限公司 | M71: TW | O71: % | P71: 批店達成獎勵(經銷年度辦法，年實績未稅需達1,500萬以上，依淨實績計算獎勵) | R71: 全產品 | T71: 0
A72: TW002349001B | B72: TW002349001B | C72: TT-TTSI-20241224-0031 | D72: CESS2412002-ALL-Batchshop-ReachIncentive-2025 | E72: 2025-01-01 | F72: 2025-12-31 | G72: TTSI | H72: 2025-01-01 | I72: 2025-12-31 | J72: 協議-家電-批店達成獎勵(經銷年度辦法，年實績未稅需達1,500萬以上，依淨實績計算獎勵)-01~12 | K72: TW002349001B | L72: 金長益電器 | M72: TW | O72: % | P72: 批店達成獎勵(經銷年度辦法，年實績未稅需達1,500萬以上，依淨實績計算獎勵) | R72: 全產品 | T72: 0
A73: TW002352001B | B73: TW002352001B | C73: TT-TTSI-20241224-0031 | D73: CESS2412002-ALL-Batchshop-ReachIncentive-2025 | E73: 2025-01-01 | F73: 2025-12-31 | G73: TTSI | H73: 2025-01-01 | I73: 2025-12-31 | J73: 協議-家電-批店達成獎勵(經銷年度辦法，年實績未稅需達1,500萬以上，依淨實績計算獎勵)-01~12 | K73: TW002352001B | L73: 佳禾 | M73: TW | O73: % | P73: 批店達成獎勵(經銷年度辦法，年實績未稅需達1,500萬以上，依淨實績計算獎勵) | R73: 全產品 | T73: 0
A74: TW002347001B | B74: TW002347001B | C74: TT-TTSI-20241224-0032 | D74: CESS2412002-ALL-DCS-ReachIncentive-2025 | E74: 2025-01-01 | F74: 2025-12-31 | G74: TTSI | H74: 2025-01-01 | I74: 2025-12-31 | J74: 協議-家電-DC店達成獎勵(經銷年度辦法，年實績未稅需達1,000萬以上，依淨實績計算獎勵)-01~12 | K74: TW002347001B | L74: 得興電器 | M74: TW | O74: % | P74: DC店達成獎勵(經銷年度辦法，年實績未稅需達1,000萬以上，依淨實績計算獎勵) | R74: 全產品 | T74: 0
A75: TW002927001B | B75: TW002927001B | C75: TT-TTSI-20241224-0032 | D75: CESS2412002-ALL-DCS-ReachIncentive-2025 | E75: 2025-01-01 | F75: 2025-12-31 | G75: TTSI | H75: 2025-01-01 | I75: 2025-12-31 | J75: 協議-家電-DC店達成獎勵(經銷年度辦法，年實績未稅需達1,000萬以上，依淨實績計算獎勵)-01~12 | K75: TW002927001B | L75: 中信冷凍電器 | M75: TW | O75: % | P75: DC店達成獎勵(經銷年度辦法，年實績未稅需達1,000萬以上，依淨實績計算獎勵) | R75: 全產品 | T75: 0
A76: TW007026001B | B76: TW007026001B | C76: TT-TTSI-20241224-0032 | D76: CESS2412002-ALL-DCS-ReachIncentive-2025 | E76: 2025-01-01 | F76: 2025-12-31 | G76: TTSI | H76: 2025-01-01 | I76: 2025-12-31 | J76: 協議-家電-DC店達成獎勵(經銷年度辦法，年實績未稅需達1,000萬以上，依淨實績計算獎勵)-01~12 | K76: TW007026001B | L76: 友誠汽車行 | M76: TW | O76: % | P76: DC店達成獎勵(經銷年度辦法，年實績未稅需達1,000萬以上，依淨實績計算獎勵) | R76: 全產品 | T76: 0
A77: TW007118001B | B77: TW007118001B | C77: TT-TTSI-20241224-0032 | D77: CESS2412002-ALL-DCS-ReachIncentive-2025 | E77: 2025-01-01 | F77: 2025-12-31 | G77: TTSI | H77: 2025-01-01 | I77: 2025-12-31 | J77: 協議-家電-DC店達成獎勵(經銷年度辦法，年實績未稅需達1,000萬以上，依淨實績計算獎勵)-01~12 | K77: TW007118001B | L77: 鈺陞有限公司 | M77: TW | O77: % | P77: DC店達成獎勵(經銷年度辦法，年實績未稅需達1,000萬以上，依淨實績計算獎勵) | R77: 全產品 | T77: 0
A78: TW006383001B | B78: TW006383001B | C78: TT-TTSI-20241224-0032 | D78: CESS2412002-ALL-DCS-ReachIncentive-2025 | E78: 2025-01-01 | F78: 2025-12-31 | G78: TTSI | H78: 2025-01-01 | I78: 2025-12-31 | J78: 協議-家電-DC店達成獎勵(經銷年度辦法，年實績未稅需達1,000萬以上，依淨實績計算獎勵)-01~12 | K78: TW006383001B | L78: 洪昌企業社 | M78: TW | O78: % | P78: DC店達成獎勵(經銷年度辦法，年實績未稅需達1,000萬以上，依淨實績計算獎勵) | R78: 全產品 | T78: 0
A79: TW006180001B | B79: TW006180001B | C79: TT-TTSI-20241224-0032 | D79: CESS2412002-ALL-DCS-ReachIncentive-2025 | E79: 2025-01-01 | F79: 2025-12-31 | G79: TTSI | H79: 2025-01-01 | I79: 2025-12-31 | J79: 協議-家電-DC店達成獎勵(經銷年度辦法，年實績未稅需達1,000萬以上，依淨實績計算獎勵)-01~12 | K79: TW006180001B | L79: 東翰企業社 | M79: TW | O79: % | P79: DC店達成獎勵(經銷年度辦法，年實績未稅需達1,000萬以上，依淨實績計算獎勵) | R79: 全產品 | T79: 0
A80: TW002652001B | B80: TW002652001B | C80: TT-TTSI-20241224-0032 | D80: CESS2412002-ALL-DCS-ReachIncentive-2025 | E80: 2025-01-01 | F80: 2025-12-31 | G80: TTSI | H80: 2025-01-01 | I80: 2025-12-31 | J80: 協議-家電-DC店達成獎勵(經銷年度辦法，年實績未稅需達1,000萬以上，依淨實績計算獎勵)-01~12 | K80: TW002652001B | L80: 第二電器音響 | M80: TW | O80: % | P80: DC店達成獎勵(經銷年度辦法，年實績未稅需達1,000萬以上，依淨實績計算獎勵) | R80: 全產品 | T80: 0
A81: TW002381001B | B81: TW002381001B | C81: TT-TTSI-20241224-0032 | D81: CESS2412002-ALL-DCS-ReachIncentive-2025 | E81: 2025-01-01 | F81: 2025-12-31 | G81: TTSI | H81: 2025-01-01 | I81: 2025-12-31 | J81: 協議-家電-DC店達成獎勵(經銷年度辦法，年實績未稅需達1,000萬以上，依淨實績計算獎勵)-01~12 | K81: TW002381001B | L81: 萬豐視聽 | M81: TW | O81: % | P81: DC店達成獎勵(經銷年度辦法，年實績未稅需達1,000萬以上，依淨實績計算獎勵) | R81: 全產品 | T81: 0
A82: TW005240001B | B82: TW005240001B | C82: TT-TTSI-20241224-0032 | D82: CESS2412002-ALL-DCS-ReachIncentive-2025 | E82: 2025-01-01 | F82: 2025-12-31 | G82: TTSI | H82: 2025-01-01 | I82: 2025-12-31 | J82: 協議-家電-DC店達成獎勵(經銷年度辦法，年實績未稅需達1,000萬以上，依淨實績計算獎勵)-01~12 | K82: TW005240001B | L82: 永順錩電器 | M82: TW | O82: % | P82: DC店達成獎勵(經銷年度辦法，年實績未稅需達1,000萬以上，依淨實績計算獎勵) | R82: 全產品 | T82: 0
A83: TW005358001B | B83: TW005358001B | C83: TT-TTSI-20241224-0032 | D83: CESS2412002-ALL-DCS-ReachIncentive-2025 | E83: 2025-01-01 | F83: 2025-12-31 | G83: TTSI | H83: 2025-01-01 | I83: 2025-12-31 | J83: 協議-家電-DC店達成獎勵(經銷年度辦法，年實績未稅需達1,000萬以上，依淨實績計算獎勵)-01~12 | K83: TW005358001B | L83: 力碩 | M83: TW | O83: % | P83: DC店達成獎勵(經銷年度辦法，年實績未稅需達1,000萬以上，依淨實績計算獎勵) | R83: 全產品 | T83: 0
A84: TW005064001B | B84: TW005064001B | C84: TT-TTSI-20241224-0032 | D84: CESS2412002-ALL-DCS-ReachIncentive-2025 | E84: 2025-01-01 | F84: 2025-12-31 | G84: TTSI | H84: 2025-01-01 | I84: 2025-12-31 | J84: 協議-家電-DC店達成獎勵(經銷年度辦法，年實績未稅需達1,000萬以上，依淨實績計算獎勵)-01~12 | K84: TW005064001B | L84: 竹一鑫電器 | M84: TW | O84: % | P84: DC店達成獎勵(經銷年度辦法，年實績未稅需達1,000萬以上，依淨實績計算獎勵) | R84: 全產品 | T84: 0
A85: TW006837001B | B85: TW006837001B | C85: TT-TTSI-20241224-0032 | D85: CESS2412002-ALL-DCS-ReachIncentive-2025 | E85: 2025-01-01 | F85: 2025-12-31 | G85: TTSI | H85: 2025-01-01 | I85: 2025-12-31 | J85: 協議-家電-DC店達成獎勵(經銷年度辦法，年實績未稅需達1,000萬以上，依淨實績計算獎勵)-01~12 | K85: TW006837001B | L85: 東亞電業有限公司 | M85: TW | O85: % | P85: DC店達成獎勵(經銷年度辦法，年實績未稅需達1,000萬以上，依淨實績計算獎勵) | R85: 全產品 | T85: 0
A86: TW005353001B | B86: TW005353001B | C86: TT-TTSI-20241224-0032 | D86: CESS2412002-ALL-DCS-ReachIncentive-2025 | E86: 2025-01-01 | F86: 2025-12-31 | G86: TTSI | H86: 2025-01-01 | I86: 2025-12-31 | J86: 協議-家電-DC店達成獎勵(經銷年度辦法，年實績未稅需達1,000萬以上，依淨實績計算獎勵)-01~12 | K86: TW005353001B | L86: 永昌電器 | M86: TW | O86: % | P86: DC店達成獎勵(經銷年度辦法，年實績未稅需達1,000萬以上，依淨實績計算獎勵) | R86: 全產品 | T86: 0
A87: TW003127001B | B87: TW003127001B | C87: TT-TTSI-20241224-0032 | D87: CESS2412002-ALL-DCS-ReachIncentive-2025 | E87: 2025-01-01 | F87: 2025-12-31 | G87: TTSI | H87: 2025-01-01 | I87: 2025-12-31 | J87: 協議-家電-DC店達成獎勵(經銷年度辦法，年實績未稅需達1,000萬以上，依淨實績計算獎勵)-01~12 | K87: TW003127001B | L87: 富盟企業 | M87: TW | O87: % | P87: DC店達成獎勵(經銷年度辦法，年實績未稅需達1,000萬以上，依淨實績計算獎勵) | R87: 全產品 | T87: 0
A88: TW003071001B | B88: TW003071001B | C88: TT-TTSI-20241224-0032 | D88: CESS2412002-ALL-DCS-ReachIncentive-2025 | E88: 2025-01-01 | F88: 2025-12-31 | G88: TTSI | H88: 2025-01-01 | I88: 2025-12-31 | J88: 協議-家電-DC店達成獎勵(經銷年度辦法，年實績未稅需達1,000萬以上，依淨實績計算獎勵)-01~12 | K88: TW003071001B | L88: 泰昀企業 | M88: TW | O88: % | P88: DC店達成獎勵(經銷年度辦法，年實績未稅需達1,000萬以上，依淨實績計算獎勵) | R88: 全產品 | T88: 0
A89: TW005702001B | B89: TW005702001B | C89: TT-TTSI-20241224-0032 | D89: CESS2412002-ALL-DCS-ReachIncentive-2025 | E89: 2025-01-01 | F89: 2025-12-31 | G89: TTSI | H89: 2025-01-01 | I89: 2025-12-31 | J89: 協議-家電-DC店達成獎勵(經銷年度辦法，年實績未稅需達1,000萬以上，依淨實績計算獎勵)-01~12 | K89: TW005702001B | L89: 京東科技 | M89: TW | O89: % | P89: DC店達成獎勵(經銷年度辦法，年實績未稅需達1,000萬以上，依淨實績計算獎勵) | R89: 全產品 | T89: 0
A90: TW004840001B | B90: TW004840001B | C90: TT-TTSI-20241224-0032 | D90: CESS2412002-ALL-DCS-ReachIncentive-2025 | E90: 2025-01-01 | F90: 2025-12-31 | G90: TTSI | H90: 2025-01-01 | I90: 2025-12-31 | J90: 協議-家電-DC店達成獎勵(經銷年度辦法，年實績未稅需達1,000萬以上，依淨實績計算獎勵)-01~12 | K90: TW004840001B | L90: 仰光有限公司 | M90: TW | O90: % | P90: DC店達成獎勵(經銷年度辦法，年實績未稅需達1,000萬以上，依淨實績計算獎勵) | R90: 全產品 | T90: 0
A91: TW002154001B | B91: TW002154001B | C91: TT-TTSI-20241224-0032 | D91: CESS2412002-ALL-DCS-ReachIncentive-2025 | E91: 2025-01-01 | F91: 2025-12-31 | G91: TTSI | H91: 2025-01-01 | I91: 2025-12-31 | J91: 協議-家電-DC店達成獎勵(經銷年度辦法，年實績未稅需達1,000萬以上，依淨實績計算獎勵)-01~12 | K91: TW002154001B | L91: 信福電器 | M91: TW | O91: % | P91: DC店達成獎勵(經銷年度辦法，年實績未稅需達1,000萬以上，依淨實績計算獎勵) | R91: 全產品 | T91: 0
A92: TW005406001B | B92: TW005406001B | C92: TT-TTSI-20241224-0032 | D92: CESS2412002-ALL-DCS-ReachIncentive-2025 | E92: 2025-01-01 | F92: 2025-12-31 | G92: TTSI | H92: 2025-01-01 | I92: 2025-12-31 | J92: 協議-家電-DC店達成獎勵(經銷年度辦法，年實績未稅需達1,000萬以上，依淨實績計算獎勵)-01~12 | K92: TW005406001B | L92: 百裕 | M92: TW | O92: % | P92: DC店達成獎勵(經銷年度辦法，年實績未稅需達1,000萬以上，依淨實績計算獎勵) | R92: 全產品 | T92: 0
A93: TW005202001B | B93: TW005202001B | C93: TT-TTSI-20241224-0032 | D93: CESS2412002-ALL-DCS-ReachIncentive-2025 | E93: 2025-01-01 | F93: 2025-12-31 | G93: TTSI | H93: 2025-01-01 | I93: 2025-12-31 | J93: 協議-家電-DC店達成獎勵(經銷年度辦法，年實績未稅需達1,000萬以上，依淨實績計算獎勵)-01~12 | K93: TW005202001B | L93: 通豪電器 | M93: TW | O93: % | P93: DC店達成獎勵(經銷年度辦法，年實績未稅需達1,000萬以上，依淨實績計算獎勵) | R93: 全產品 | T93: 0
A94: TW007111001B | B94: TW007111001B | C94: TT-TTSI-20241224-0032 | D94: CESS2412002-ALL-DCS-ReachIncentive-2025 | E94: 2025-01-01 | F94: 2025-12-31 | G94: TTSI | H94: 2025-01-01 | I94: 2025-12-31 | J94: 協議-家電-DC店達成獎勵(經銷年度辦法，年實績未稅需達1,000萬以上，依淨實績計算獎勵)-01~12 | K94: TW007111001B | L94: 豪順興業有限公司 | M94: TW | O94: % | P94: DC店達成獎勵(經銷年度辦法，年實績未稅需達1,000萬以上，依淨實績計算獎勵) | R94: 全產品 | T94: 0
A95: TW002262001B | B95: TW002262001B | C95: TT-TTSI-20241224-0032 | D95: CESS2412002-ALL-DCS-ReachIncentive-2025 | E95: 2025-01-01 | F95: 2025-12-31 | G95: TTSI | H95: 2025-01-01 | I95: 2025-12-31 | J95: 協議-家電-DC店達成獎勵(經銷年度辦法，年實績未稅需達1,000萬以上，依淨實績計算獎勵)-01~12 | K95: TW002262001B | L95: 太子電業 | M95: TW | O95: % | P95: DC店達成獎勵(經銷年度辦法，年實績未稅需達1,000萬以上，依淨實績計算獎勵) | R95: 全產品 | T95: 0
A96: TW007074001B | B96: TW007074001B | C96: TT-TTSI-20241224-0032 | D96: CESS2412002-ALL-DCS-ReachIncentive-2025 | E96: 2025-01-01 | F96: 2025-12-31 | G96: TTSI | H96: 2025-01-01 | I96: 2025-12-31 | J96: 協議-家電-DC店達成獎勵(經銷年度辦法，年實績未稅需達1,000萬以上，依淨實績計算獎勵)-01~12 | K96: TW007074001B | L96: 新秀國際企業有限公司 | M96: TW | O96: % | P96: DC店達成獎勵(經銷年度辦法，年實績未稅需達1,000萬以上，依淨實績計算獎勵) | R96: 全產品 | T96: 0
A97: TW006917001B | B97: TW006917001B | C97: TT-TTSI-20241224-0032 | D97: CESS2412002-ALL-DCS-ReachIncentive-2025 | E97: 2025-01-01 | F97: 2025-12-31 | G97: TTSI | H97: 2025-01-01 | I97: 2025-12-31 | J97: 協議-家電-DC店達成獎勵(經銷年度辦法，年實績未稅需達1,000萬以上，依淨實績計算獎勵)-01~12 | K97: TW006917001B | L97: 佳瑩科技 | M97: TW | O97: % | P97: DC店達成獎勵(經銷年度辦法，年實績未稅需達1,000萬以上，依淨實績計算獎勵) | R97: 全產品 | T97: 0
A98: TW007239001B | B98: TW007239001B | C98: TT-TTSI-20241224-0032 | D98: CESS2412002-ALL-DCS-ReachIncentive-2025 | E98: 2025-01-01 | F98: 2025-12-31 | G98: TTSI | H98: 2025-01-01 | I98: 2025-12-31 | J98: 協議-家電-DC店達成獎勵(經銷年度辦法，年實績未稅需達1,000萬以上，依淨實績計算獎勵)-01~12 | K98: TW007239001B | L98: 鴻昇興業行 | M98: TW | O98: % | P98: DC店達成獎勵(經銷年度辦法，年實績未稅需達1,000萬以上，依淨實績計算獎勵) | R98: 全產品 | T98: 0
A99: TW003023001B | B99: TW003023001B | C99: TT-TTSI-20241224-0032 | D99: CESS2412002-ALL-DCS-ReachIncentive-2025 | E99: 2025-01-01 | F99: 2025-12-31 | G99: TTSI | H99: 2025-01-01 | I99: 2025-12-31 | J99: 協議-家電-DC店達成獎勵(經銷年度辦法，年實績未稅需達1,000萬以上，依淨實績計算獎勵)-01~12 | K99: TW003023001B | L99: 翠亨企業 | M99: TW | O99: % | P99: DC店達成獎勵(經銷年度辦法，年實績未稅需達1,000萬以上，依淨實績計算獎勵) | R99: 全產品 | T99: 0
A100: TW007273001B | B100: TW007273001B | C100: TT-TTSI-20241224-0032 | D100: CESS2412002-ALL-DCS-ReachIncentive-2025 | E100: 2025-01-01 | F100: 2025-12-31 | G100: TTSI | H100: 2025-01-01 | I100: 2025-12-31 | J100: 協議-家電-DC店達成獎勵(經銷年度辦法，年實績未稅需達1,000萬以上，依淨實績計算獎勵)-01~12 | K100: TW007273001B | L100: 葳爾泰興業 | M100: TW | O100: % | P100: DC店達成獎勵(經銷年度辦法，年實績未稅需達1,000萬以上，依淨實績計算獎勵) | R100: 全產品 | T100: 0
A101: TW007425001B | B101: TW007425001B | C101: TT-TTSI-20241224-0032 | D101: CESS2412002-ALL-DCS-ReachIncentive-2025 | E101: 2025-01-01 | F101: 2025-12-31 | G101: TTSI | H101: 2025-01-01 | I101: 2025-12-31 | J101: 協議-家電-DC店達成獎勵(經銷年度辦法，年實績未稅需達1,000萬以上，依淨實績計算獎勵)-01~12 | K101: TW007425001B | L101: 羽恆冷氣行 | M101: TW | O101: % | P101: DC店達成獎勵(經銷年度辦法，年實績未稅需達1,000萬以上，依淨實績計算獎勵) | R101: 全產品 | T101: 0
A102: TW007529001B | B102: TW007529001B | C102: TT-TTSI-20241224-0032 | D102: CESS2412002-ALL-DCS-ReachIncentive-2025 | E102: 2025-01-01 | F102: 2025-12-31 | G102: TTSI | H102: 2025-01-01 | I102: 2025-12-31 | J102: 協議-家電-DC店達成獎勵(經銷年度辦法，年實績未稅需達1,000萬以上，依淨實績計算獎勵)-01~12 | K102: TW007529001B | L102: 頡汛空調興業社 | M102: TW | O102: % | P102: DC店達成獎勵(經銷年度辦法，年實績未稅需達1,000萬以上，依淨實績計算獎勵) | R102: 全產品 | T102: 0
A103: TW007446001B | B103: TW007446001B | C103: TT-TTSI-20241224-0032 | D103: CESS2412002-ALL-DCS-ReachIncentive-2025 | E103: 2025-01-01 | F103: 2025-12-31 | G103: TTSI | H103: 2025-01-01 | I103: 2025-12-31 | J103: 協議-家電-DC店達成獎勵(經銷年度辦法，年實績未稅需達1,000萬以上，依淨實績計算獎勵)-01~12 | K103: TW007446001B | L103: 源益冷氣空調 | M103: TW | O103: % | P103: DC店達成獎勵(經銷年度辦法，年實績未稅需達1,000萬以上，依淨實績計算獎勵) | R103: 全產品 | T103: 0
A104: TW007280001B | B104: TW007280001B | C104: TT-TTSI-20241224-0032 | D104: CESS2412002-ALL-DCS-ReachIncentive-2025 | E104: 2025-01-01 | F104: 2025-12-31 | G104: TTSI | H104: 2025-01-01 | I104: 2025-12-31 | J104: 協議-家電-DC店達成獎勵(經銷年度辦法，年實績未稅需達1,000萬以上，依淨實績計算獎勵)-01~12 | K104: TW007280001B | L104: 銘卿整合工程有限公司 | M104: TW | O104: % | P104: DC店達成獎勵(經銷年度辦法，年實績未稅需達1,000萬以上，依淨實績計算獎勵) | R104: 全產品 | T104: 0
A105: TW007302001B | B105: TW007302001B | C105: TT-TTSI-20241224-0032 | D105: CESS2412002-ALL-DCS-ReachIncentive-2025 | E105: 2025-01-01 | F105: 2025-12-31 | G105: TTSI | H105: 2025-01-01 | I105: 2025-12-31 | J105: 協議-家電-DC店達成獎勵(經銷年度辦法，年實績未稅需達1,000萬以上，依淨實績計算獎勵)-01~12 | K105: TW007302001B | L105: 淨寶企業有限公司 | M105: TW | O105: % | P105: DC店達成獎勵(經銷年度辦法，年實績未稅需達1,000萬以上，依淨實績計算獎勵) | R105: 全產品 | T105: 0
A106: TW007455001B | B106: TW007455001B | C106: TT-TTSI-20241224-0032 | D106: CESS2412002-ALL-DCS-ReachIncentive-2025 | E106: 2025-01-01 | F106: 2025-12-31 | G106: TTSI | H106: 2025-01-01 | I106: 2025-12-31 | J106: 協議-家電-DC店達成獎勵(經銷年度辦法，年實績未稅需達1,000萬以上，依淨實績計算獎勵)-01~12 | K106: TW007455001B | L106: 沅和科技 | M106: TW | O106: % | P106: DC店達成獎勵(經銷年度辦法，年實績未稅需達1,000萬以上，依淨實績計算獎勵) | R106: 全產品 | T106: 0
A107: TW007503001B | B107: TW007503001B | C107: TT-TTSI-20241224-0032 | D107: CESS2412002-ALL-DCS-ReachIncentive-2025 | E107: 2025-01-01 | F107: 2025-12-31 | G107: TTSI | H107: 2025-01-01 | I107: 2025-12-31 | J107: 協議-家電-DC店達成獎勵(經銷年度辦法，年實績未稅需達1,000萬以上，依淨實績計算獎勵)-01~12 | K107: TW007503001B | L107: 鴻順家電行 | M107: TW | O107: % | P107: DC店達成獎勵(經銷年度辦法，年實績未稅需達1,000萬以上，依淨實績計算獎勵) | R107: 全產品 | T107: 0
A108: TW007263001B | B108: TW007263001B | C108: TT-TTSI-20241224-0032 | D108: CESS2412002-ALL-DCS-ReachIncentive-2025 | E108: 2025-01-01 | F108: 2025-12-31 | G108: TTSI | H108: 2025-01-01 | I108: 2025-12-31 | J108: 協議-家電-DC店達成獎勵(經銷年度辦法，年實績未稅需達1,000萬以上，依淨實績計算獎勵)-01~12 | K108: TW007263001B | L108: 千琪 | M108: TW | O108: % | P108: DC店達成獎勵(經銷年度辦法，年實績未稅需達1,000萬以上，依淨實績計算獎勵) | R108: 全產品 | T108: 0
A109: TW007272001B | B109: TW007272001B | C109: TT-TTSI-20241224-0032 | D109: CESS2412002-ALL-DCS-ReachIncentive-2025 | E109: 2025-01-01 | F109: 2025-12-31 | G109: TTSI | H109: 2025-01-01 | I109: 2025-12-31 | J109: 協議-家電-DC店達成獎勵(經銷年度辦法，年實績未稅需達1,000萬以上，依淨實績計算獎勵)-01~12 | K109: TW007272001B | L109: 國盟冷凍空調有限公司 | M109: TW | O109: % | P109: DC店達成獎勵(經銷年度辦法，年實績未稅需達1,000萬以上，依淨實績計算獎勵) | R109: 全產品 | T109: 0
A110: TW007482001B | B110: TW007482001B | C110: TT-TTSI-20241224-0032 | D110: CESS2412002-ALL-DCS-ReachIncentive-2025 | E110: 2025-01-01 | F110: 2025-12-31 | G110: TTSI | H110: 2025-01-01 | I110: 2025-12-31 | J110: 協議-家電-DC店達成獎勵(經銷年度辦法，年實績未稅需達1,000萬以上，依淨實績計算獎勵)-01~12 | K110: TW007482001B | L110: 弘宇工程行 | M110: TW | O110: % | P110: DC店達成獎勵(經銷年度辦法，年實績未稅需達1,000萬以上，依淨實績計算獎勵) | R110: 全產品 | T110: 0
A111: TW007144001B | B111: TW007144001B | C111: TT-TTSI-20241224-0032 | D111: CESS2412002-ALL-DCS-ReachIncentive-2025 | E111: 2025-01-01 | F111: 2025-12-31 | G111: TTSI | H111: 2025-01-01 | I111: 2025-12-31 | J111: 協議-家電-DC店達成獎勵(經銷年度辦法，年實績未稅需達1,000萬以上，依淨實績計算獎勵)-01~12 | K111: TW007144001B | L111: 安成企業社 | M111: TW | O111: % | P111: DC店達成獎勵(經銷年度辦法，年實績未稅需達1,000萬以上，依淨實績計算獎勵) | R111: 全產品 | T111: 0
A112: TW006428001B | B112: TW006428001B | C112: TT-TTSI-20241224-0032 | D112: CESS2412002-ALL-DCS-ReachIncentive-2025 | E112: 2025-01-01 | F112: 2025-12-31 | G112: TTSI | H112: 2025-01-01 | I112: 2025-12-31 | J112: 協議-家電-DC店達成獎勵(經銷年度辦法，年實績未稅需達1,000萬以上，依淨實績計算獎勵)-01~12 | K112: TW006428001B | L112: 高詮電器行 | M112: TW | O112: % | P112: DC店達成獎勵(經銷年度辦法，年實績未稅需達1,000萬以上，依淨實績計算獎勵) | R112: 全產品 | T112: 0
A113: TW002431001B | B113: TW002431001B | C113: TT-TTSI-20241224-0032 | D113: CESS2412002-ALL-DCS-ReachIncentive-2025 | E113: 2025-01-01 | F113: 2025-12-31 | G113: TTSI | H113: 2025-01-01 | I113: 2025-12-31 | J113: 協議-家電-DC店達成獎勵(經銷年度辦法，年實績未稅需達1,000萬以上，依淨實績計算獎勵)-01~12 | K113: TW002431001B | L113: 一世代電氣 | M113: TW | O113: % | P113: DC店達成獎勵(經銷年度辦法，年實績未稅需達1,000萬以上，依淨實績計算獎勵) | R113: 全產品 | T113: 0
A114: TW007145001B | B114: TW007145001B | C114: TT-TTSI-20241224-0032 | D114: CESS2412002-ALL-DCS-ReachIncentive-2025 | E114: 2025-01-01 | F114: 2025-12-31 | G114: TTSI | H114: 2025-01-01 | I114: 2025-12-31 | J114: 協議-家電-DC店達成獎勵(經銷年度辦法，年實績未稅需達1,000萬以上，依淨實績計算獎勵)-01~12 | K114: TW007145001B | L114: 弘昇電器行 | M114: TW | O114: % | P114: DC店達成獎勵(經銷年度辦法，年實績未稅需達1,000萬以上，依淨實績計算獎勵) | R114: 全產品 | T114: 0
A115: TW004270001B | B115: TW004270001B | C115: TT-TTSI-20241224-0032 | D115: CESS2412002-ALL-DCS-ReachIncentive-2025 | E115: 2025-01-01 | F115: 2025-12-31 | G115: TTSI | H115: 2025-01-01 | I115: 2025-12-31 | J115: 協議-家電-DC店達成獎勵(經銷年度辦法，年實績未稅需達1,000萬以上，依淨實績計算獎勵)-01~12 | K115: TW004270001B | L115: 駿太科技 | M115: TW | O115: % | P115: DC店達成獎勵(經銷年度辦法，年實績未稅需達1,000萬以上，依淨實績計算獎勵) | R115: 全產品 | T115: 0
A116: TW007195001B | B116: TW007195001B | C116: TT-TTSI-20241224-0032 | D116: CESS2412002-ALL-DCS-ReachIncentive-2025 | E116: 2025-01-01 | F116: 2025-12-31 | G116: TTSI | H116: 2025-01-01 | I116: 2025-12-31 | J116: 協議-家電-DC店達成獎勵(經銷年度辦法，年實績未稅需達1,000萬以上，依淨實績計算獎勵)-01~12 | K116: TW007195001B | L116: 中美電器行 | M116: TW | O116: % | P116: DC店達成獎勵(經銷年度辦法，年實績未稅需達1,000萬以上，依淨實績計算獎勵) | R116: 全產品 | T116: 0
A117: TW003892001B | B117: TW003892001B | C117: TT-TTSI-20241224-0032 | D117: CESS2412002-ALL-DCS-ReachIncentive-2025 | E117: 2025-01-01 | F117: 2025-12-31 | G117: TTSI | H117: 2025-01-01 | I117: 2025-12-31 | J117: 協議-家電-DC店達成獎勵(經銷年度辦法，年實績未稅需達1,000萬以上，依淨實績計算獎勵)-01~12 | K117: TW003892001B | L117: 達運電器 | M117: TW | O117: % | P117: DC店達成獎勵(經銷年度辦法，年實績未稅需達1,000萬以上，依淨實績計算獎勵) | R117: 全產品 | T117: 0
A118: TW005598001B | B118: TW005598001B | C118: TT-TTSI-20241224-0032 | D118: CESS2412002-ALL-DCS-ReachIncentive-2025 | E118: 2025-01-01 | F118: 2025-12-31 | G118: TTSI | H118: 2025-01-01 | I118: 2025-12-31 | J118: 協議-家電-DC店達成獎勵(經銷年度辦法，年實績未稅需達1,000萬以上，依淨實績計算獎勵)-01~12 | K118: TW005598001B | L118: 百事得專業音響 | M118: TW | O118: % | P118: DC店達成獎勵(經銷年度辦法，年實績未稅需達1,000萬以上，依淨實績計算獎勵) | R118: 全產品 | T118: 0
A119: TW002144001B | B119: TW002144001B | C119: TT-TTSI-20241224-0032 | D119: CESS2412002-ALL-DCS-ReachIncentive-2025 | E119: 2025-01-01 | F119: 2025-12-31 | G119: TTSI | H119: 2025-01-01 | I119: 2025-12-31 | J119: 協議-家電-DC店達成獎勵(經銷年度辦法，年實績未稅需達1,000萬以上，依淨實績計算獎勵)-01~12 | K119: TW002144001B | L119: 歐鋒電器 | M119: TW | O119: % | P119: DC店達成獎勵(經銷年度辦法，年實績未稅需達1,000萬以上，依淨實績計算獎勵) | R119: 全產品 | T119: 0
A120: TW002094001B | B120: TW002094001B | C120: TT-TTSI-20241224-0032 | D120: CESS2412002-ALL-DCS-ReachIncentive-2025 | E120: 2025-01-01 | F120: 2025-12-31 | G120: TTSI | H120: 2025-01-01 | I120: 2025-12-31 | J120: 協議-家電-DC店達成獎勵(經銷年度辦法，年實績未稅需達1,000萬以上，依淨實績計算獎勵)-01~12 | K120: TW002094001B | L120: 力利企業 | M120: TW | O120: % | P120: DC店達成獎勵(經銷年度辦法，年實績未稅需達1,000萬以上，依淨實績計算獎勵) | R120: 全產品 | T120: 0
A121: TW005274001B | B121: TW005274001B | C121: TT-TTSI-20241224-0032 | D121: CESS2412002-ALL-DCS-ReachIncentive-2025 | E121: 2025-01-01 | F121: 2025-12-31 | G121: TTSI | H121: 2025-01-01 | I121: 2025-12-31 | J121: 協議-家電-DC店達成獎勵(經銷年度辦法，年實績未稅需達1,000萬以上，依淨實績計算獎勵)-01~12 | K121: TW005274001B | L121: 郁誠電器 | M121: TW | O121: % | P121: DC店達成獎勵(經銷年度辦法，年實績未稅需達1,000萬以上，依淨實績計算獎勵) | R121: 全產品 | T121: 0
A122: TW006406001B | B122: TW006406001B | C122: TT-TTSI-20241224-0032 | D122: CESS2412002-ALL-DCS-ReachIncentive-2025 | E122: 2025-01-01 | F122: 2025-12-31 | G122: TTSI | H122: 2025-01-01 | I122: 2025-12-31 | J122: 協議-家電-DC店達成獎勵(經銷年度辦法，年實績未稅需達1,000萬以上，依淨實績計算獎勵)-01~12 | K122: TW006406001B | L122: 佳績家電 | M122: TW | O122: % | P122: DC店達成獎勵(經銷年度辦法，年實績未稅需達1,000萬以上，依淨實績計算獎勵) | R122: 全產品 | T122: 0
A123: TW007256001B | B123: TW007256001B | C123: TT-TTSI-20241224-0032 | D123: CESS2412002-ALL-DCS-ReachIncentive-2025 | E123: 2025-01-01 | F123: 2025-12-31 | G123: TTSI | H123: 2025-01-01 | I123: 2025-12-31 | J123: 協議-家電-DC店達成獎勵(經銷年度辦法，年實績未稅需達1,000萬以上，依淨實績計算獎勵)-01~12 | K123: TW007256001B | L123: 龍松電器 | M123: TW | O123: % | P123: DC店達成獎勵(經銷年度辦法，年實績未稅需達1,000萬以上，依淨實績計算獎勵) | R123: 全產品 | T123: 0
A124: TW005197001B | B124: TW005197001B | C124: TT-TTSI-20241224-0032 | D124: CESS2412002-ALL-DCS-ReachIncentive-2025 | E124: 2025-01-01 | F124: 2025-12-31 | G124: TTSI | H124: 2025-01-01 | I124: 2025-12-31 | J124: 協議-家電-DC店達成獎勵(經銷年度辦法，年實績未稅需達1,000萬以上，依淨實績計算獎勵)-01~12 | K124: TW005197001B | L124: 金城電器 | M124: TW | O124: % | P124: DC店達成獎勵(經銷年度辦法，年實績未稅需達1,000萬以上，依淨實績計算獎勵) | R124: 全產品 | T124: 0
A125: TW007175001B | B125: TW007175001B | C125: TT-TTSI-20241224-0032 | D125: CESS2412002-ALL-DCS-ReachIncentive-2025 | E125: 2025-01-01 | F125: 2025-12-31 | G125: TTSI | H125: 2025-01-01 | I125: 2025-12-31 | J125: 協議-家電-DC店達成獎勵(經銷年度辦法，年實績未稅需達1,000萬以上，依淨實績計算獎勵)-01~12 | K125: TW007175001B | L125: 旭崴興業 | M125: TW | O125: % | P125: DC店達成獎勵(經銷年度辦法，年實績未稅需達1,000萬以上，依淨實績計算獎勵) | R125: 全產品 | T125: 0
A126: TW005266001B | B126: TW005266001B | C126: TT-TTSI-20241224-0032 | D126: CESS2412002-ALL-DCS-ReachIncentive-2025 | E126: 2025-01-01 | F126: 2025-12-31 | G126: TTSI | H126: 2025-01-01 | I126: 2025-12-31 | J126: 協議-家電-DC店達成獎勵(經銷年度辦法，年實績未稅需達1,000萬以上，依淨實績計算獎勵)-01~12 | K126: TW005266001B | L126: 承鑫電器 | M126: TW | O126: % | P126: DC店達成獎勵(經銷年度辦法，年實績未稅需達1,000萬以上，依淨實績計算獎勵) | R126: 全產品 | T126: 0
A127: TW002338001B | B127: TW002338001B | C127: TT-TTSI-20241224-0032 | D127: CESS2412002-ALL-DCS-ReachIncentive-2025 | E127: 2025-01-01 | F127: 2025-12-31 | G127: TTSI | H127: 2025-01-01 | I127: 2025-12-31 | J127: 協議-家電-DC店達成獎勵(經銷年度辦法，年實績未稅需達1,000萬以上，依淨實績計算獎勵)-01~12 | K127: TW002338001B | L127: 福娥電業 | M127: TW | O127: % | P127: DC店達成獎勵(經銷年度辦法，年實績未稅需達1,000萬以上，依淨實績計算獎勵) | R127: 全產品 | T127: 0
A128: TW002755001B | B128: TW002755001B | C128: TT-TTSI-20241224-0032 | D128: CESS2412002-ALL-DCS-ReachIncentive-2025 | E128: 2025-01-01 | F128: 2025-12-31 | G128: TTSI | H128: 2025-01-01 | I128: 2025-12-31 | J128: 協議-家電-DC店達成獎勵(經銷年度辦法，年實績未稅需達1,000萬以上，依淨實績計算獎勵)-01~12 | K128: TW002755001B | L128: 聯鈦冷凍空調電器行 | M128: TW | O128: % | P128: DC店達成獎勵(經銷年度辦法，年實績未稅需達1,000萬以上，依淨實績計算獎勵) | R128: 全產品 | T128: 0
A129: TW002343001B | B129: TW002343001B | C129: TT-TTSI-20241224-0032 | D129: CESS2412002-ALL-DCS-ReachIncentive-2025 | E129: 2025-01-01 | F129: 2025-12-31 | G129: TTSI | H129: 2025-01-01 | I129: 2025-12-31 | J129: 協議-家電-DC店達成獎勵(經銷年度辦法，年實績未稅需達1,000萬以上，依淨實績計算獎勵)-01~12 | K129: TW002343001B | L129: 名富電器 | M129: TW | O129: % | P129: DC店達成獎勵(經銷年度辦法，年實績未稅需達1,000萬以上，依淨實績計算獎勵) | R129: 全產品 | T129: 0
A130: =IFERROR(VLOOKUP(N130,多CODE,2,0),IF(RIGHT($B130,1)="H",LEFT($B130,11)&"B",IFERROR(VLOOKUP($B130,SHIP,3,0),$B130))) -> TW004492001B | B130: TW004492001B | C130: TT-TTSI-20241224-0032 | D130: CESS2412002-ALL-DCS-ReachIncentive-2025 | E130: 2025-01-01 | F130: 2025-12-31 | G130: =MID(C130,4,4) -> TTSI | H130: 2025-01-01 | I130: 2025-12-31 | J130: 協議-家電-DC店達成獎勵(經銷年度辦法，年實績未稅需達1,000萬以上，依淨實績計算獎勵)-01~12 | K130: TW004492001B | L130: 統合電器 | M130: TW | O130: % | P130: DC店達成獎勵(經銷年度辦法，年實績未稅需達1,000萬以上，依淨實績計算獎勵) | R130: 全產品 | T130: 0
A131: TW005525001B | B131: =K131 -> TW005525001B | C131: TT-TTSI-20241224-0032 | D131: CESS2412002-ALL-DCS-ReachIncentive-2025 | E131: 2025-01-01 | F131: 2025-12-31 | G131: TTSI | H131: =E131 -> 2025-01-01 | I131: =F131 -> 2025-12-31 | J131: 協議-家電-DC店達成獎勵(經銷年度辦法，年實績未稅需達1,000萬以上，依淨實績計算獎勵)-01~12 | K131: TW005525001B | L131: 雷光聲電器 | M131: TW | O131: % | P131: DC店達成獎勵(經銷年度辦法，年實績未稅需達1,000萬以上，依淨實績計算獎勵) | R131: 全產品 | T131: 0
A132: TW002856001B | B132: TW002856001B | C132: TT-TTSI-20241224-0032 | D132: CESS2412002-ALL-DCS-ReachIncentive-2025 | E132: 2025-01-01 | F132: 2025-12-31 | G132: TTSI | H132: 2025-01-01 | I132: 2025-12-31 | J132: 協議-家電-DC店達成獎勵(經銷年度辦法，年實績未稅需達1,000萬以上，依淨實績計算獎勵)-01~12 | K132: TW002856001B | L132: 老雙億實業 | M132: TW | O132: % | P132: DC店達成獎勵(經銷年度辦法，年實績未稅需達1,000萬以上，依淨實績計算獎勵) | R132: 全產品 | T132: 0
A133: TW002444001B | B133: TW002444001B | C133: TT-TTSI-20241224-0032 | D133: CESS2412002-ALL-DCS-ReachIncentive-2025 | E133: 2025-01-01 | F133: 2025-12-31 | G133: TTSI | H133: 2025-01-01 | I133: 2025-12-31 | J133: 協議-家電-DC店達成獎勵(經銷年度辦法，年實績未稅需達1,000萬以上，依淨實績計算獎勵)-01~12 | K133: TW002444001B | L133: 台灣電器專賣 | M133: TW | O133: % | P133: DC店達成獎勵(經銷年度辦法，年實績未稅需達1,000萬以上，依淨實績計算獎勵) | R133: 全產品 | T133: 0
A134: TW006186001B | B134: TW006186001B | C134: TT-TTSI-20241224-0032 | D134: CESS2412002-ALL-DCS-ReachIncentive-2025 | E134: 2025-01-01 | F134: 2025-12-31 | G134: TTSI | H134: 2025-01-01 | I134: 2025-12-31 | J134: 協議-家電-DC店達成獎勵(經銷年度辦法，年實績未稅需達1,000萬以上，依淨實績計算獎勵)-01~12 | K134: TW006186001B | L134: 光波電器行 | M134: TW | O134: % | P134: DC店達成獎勵(經銷年度辦法，年實績未稅需達1,000萬以上，依淨實績計算獎勵) | R134: 全產品 | T134: 0
A135: TW005268001B | B135: TW005268001B | C135: TT-TTSI-20241224-0032 | D135: CESS2412002-ALL-DCS-ReachIncentive-2025 | E135: 2025-01-01 | F135: 2025-12-31 | G135: TTSI | H135: 2025-01-01 | I135: 2025-12-31 | J135: 協議-家電-DC店達成獎勵(經銷年度辦法，年實績未稅需達1,000萬以上，依淨實績計算獎勵)-01~12 | K135: TW005268001B | L135: 鋒益家電 | M135: TW | O135: % | P135: DC店達成獎勵(經銷年度辦法，年實績未稅需達1,000萬以上，依淨實績計算獎勵) | R135: 全產品 | T135: 0
A136: TW003368001B | B136: TW003368001B | C136: TT-TTSI-20241224-0032 | D136: CESS2412002-ALL-DCS-ReachIncentive-2025 | E136: 2025-01-01 | F136: 2025-12-31 | G136: TTSI | H136: 2025-01-01 | I136: 2025-12-31 | J136: 協議-家電-DC店達成獎勵(經銷年度辦法，年實績未稅需達1,000萬以上，依淨實績計算獎勵)-01~12 | K136: TW003368001B | L136: 菖泰電機 | M136: TW | O136: % | P136: DC店達成獎勵(經銷年度辦法，年實績未稅需達1,000萬以上，依淨實績計算獎勵) | R136: 全產品 | T136: 0
A137: TW007147001B | B137: TW007147001B | C137: TT-TTSI-20241224-0032 | D137: CESS2412002-ALL-DCS-ReachIncentive-2025 | E137: 2025-01-01 | F137: 2025-12-31 | G137: TTSI | H137: 2025-01-01 | I137: 2025-12-31 | J137: 協議-家電-DC店達成獎勵(經銷年度辦法，年實績未稅需達1,000萬以上，依淨實績計算獎勵)-01~12 | K137: TW007147001B | L137: 益大電器行 | M137: TW | O137: % | P137: DC店達成獎勵(經銷年度辦法，年實績未稅需達1,000萬以上，依淨實績計算獎勵) | R137: 全產品 | T137: 0
A138: TW004826001B | B138: TW004826001B | C138: TT-TTSI-20241224-0032 | D138: CESS2412002-ALL-DCS-ReachIncentive-2025 | E138: 2025-01-01 | F138: 2025-12-31 | G138: TTSI | H138: 2025-01-01 | I138: 2025-12-31 | J138: 協議-家電-DC店達成獎勵(經銷年度辦法，年實績未稅需達1,000萬以上，依淨實績計算獎勵)-01~12 | K138: TW004826001B | L138: 龍輝電業 | M138: TW | O138: % | P138: DC店達成獎勵(經銷年度辦法，年實績未稅需達1,000萬以上，依淨實績計算獎勵) | R138: 全產品 | T138: 0
A139: TW006812002B | B139: TW006812002B | C139: TT-TTSI-20241224-0032 | D139: CESS2412002-ALL-DCS-ReachIncentive-2025 | E139: 2025-01-01 | F139: 2025-12-31 | G139: TTSI | H139: 2025-01-01 | I139: 2025-12-31 | J139: 協議-家電-DC店達成獎勵(經銷年度辦法，年實績未稅需達1,000萬以上，依淨實績計算獎勵)-01~12 | K139: TW006812002B | L139: 國際極品 | M139: TW | O139: % | P139: DC店達成獎勵(經銷年度辦法，年實績未稅需達1,000萬以上，依淨實績計算獎勵) | R139: 全產品 | T139: 0
A140: TW007220001B | B140: TW007220001B | C140: TT-TTSI-20241224-0032 | D140: CESS2412002-ALL-DCS-ReachIncentive-2025 | E140: 2025-01-01 | F140: 2025-12-31 | G140: TTSI | H140: 2025-01-01 | I140: 2025-12-31 | J140: 協議-家電-DC店達成獎勵(經銷年度辦法，年實績未稅需達1,000萬以上，依淨實績計算獎勵)-01~12 | K140: TW007220001B | L140: 星輝企業社 | M140: TW | O140: % | P140: DC店達成獎勵(經銷年度辦法，年實績未稅需達1,000萬以上，依淨實績計算獎勵) | R140: 全產品 | T140: 0
A141: TW002173001B | B141: TW002173001B | C141: TT-TTSI-20241224-0032 | D141: CESS2412002-ALL-DCS-ReachIncentive-2025 | E141: 2025-01-01 | F141: 2025-12-31 | G141: TTSI | H141: 2025-01-01 | I141: 2025-12-31 | J141: 協議-家電-DC店達成獎勵(經銷年度辦法，年實績未稅需達1,000萬以上，依淨實績計算獎勵)-01~12 | K141: TW002173001B | L141: 泰欣電器 | M141: TW | O141: % | P141: DC店達成獎勵(經銷年度辦法，年實績未稅需達1,000萬以上，依淨實績計算獎勵) | R141: 全產品 | T141: 0
A142: TW007237001B | B142: TW007237001B | C142: TT-TTSI-20241224-0032 | D142: CESS2412002-ALL-DCS-ReachIncentive-2025 | E142: 2025-01-01 | F142: 2025-12-31 | G142: TTSI | H142: 2025-01-01 | I142: 2025-12-31 | J142: 協議-家電-DC店達成獎勵(經銷年度辦法，年實績未稅需達1,000萬以上，依淨實績計算獎勵)-01~12 | K142: TW007237001B | L142: 尚豪電器 | M142: TW | O142: % | P142: DC店達成獎勵(經銷年度辦法，年實績未稅需達1,000萬以上，依淨實績計算獎勵) | R142: 全產品 | T142: 0
A143: TW002140001B | B143: TW002140001B | C143: TT-TTSI-20241224-0032 | D143: CESS2412002-ALL-DCS-ReachIncentive-2025 | E143: 2025-01-01 | F143: 2025-12-31 | G143: TTSI | H143: 2025-01-01 | I143: 2025-12-31 | J143: 協議-家電-DC店達成獎勵(經銷年度辦法，年實績未稅需達1,000萬以上，依淨實績計算獎勵)-01~12 | K143: TW002140001B | L143: 大時代量販 | M143: TW | O143: % | P143: DC店達成獎勵(經銷年度辦法，年實績未稅需達1,000萬以上，依淨實績計算獎勵) | R143: 全產品 | T143: 0
A144: TW007531001B | B144: TW007531001B | C144: TT-TTSI-20241224-0032 | D144: CESS2412002-ALL-DCS-ReachIncentive-2025 | E144: 2025-01-01 | F144: 2025-12-31 | G144: TTSI | H144: 2025-01-01 | I144: 2025-12-31 | J144: 協議-家電-DC店達成獎勵(經銷年度辦法，年實績未稅需達1,000萬以上，依淨實績計算獎勵)-01~12 | K144: TW007531001B | L144: 弦有電器行 | M144: TW | O144: % | P144: DC店達成獎勵(經銷年度辦法，年實績未稅需達1,000萬以上，依淨實績計算獎勵) | R144: 全產品 | T144: 0
A145: TW002748001B | B145: TW002748001B | C145: TT-TTSI-20241224-0032 | D145: CESS2412002-ALL-DCS-ReachIncentive-2025 | E145: 2025-01-01 | F145: 2025-12-31 | G145: TTSI | H145: 2025-01-01 | I145: 2025-12-31 | J145: 協議-家電-DC店達成獎勵(經銷年度辦法，年實績未稅需達1,000萬以上，依淨實績計算獎勵)-01~12 | K145: TW002748001B | L145: 創作電子音響 | M145: TW | O145: % | P145: DC店達成獎勵(經銷年度辦法，年實績未稅需達1,000萬以上，依淨實績計算獎勵) | R145: 全產品 | T145: 0
A146: TW002194001B | B146: TW002194001B | C146: TT-TTSI-20241224-0032 | D146: CESS2412002-ALL-DCS-ReachIncentive-2025 | E146: 2025-01-01 | F146: 2025-12-31 | G146: TTSI | H146: 2025-01-01 | I146: 2025-12-31 | J146: 協議-家電-DC店達成獎勵(經銷年度辦法，年實績未稅需達1,000萬以上，依淨實績計算獎勵)-01~12 | K146: TW002194001B | L146: 宏達電氣 | M146: TW | O146: % | P146: DC店達成獎勵(經銷年度辦法，年實績未稅需達1,000萬以上，依淨實績計算獎勵) | R146: 全產品 | T146: 0
A147: TW003406001B | B147: TW003406001B | C147: TT-TTSI-20241224-0032 | D147: CESS2412002-ALL-DCS-ReachIncentive-2025 | E147: 2025-01-01 | F147: 2025-12-31 | G147: TTSI | H147: 2025-01-01 | I147: 2025-12-31 | J147: 協議-家電-DC店達成獎勵(經銷年度辦法，年實績未稅需達1,000萬以上，依淨實績計算獎勵)-01~12 | K147: TW003406001B | L147: 立交實業 | M147: TW | O147: % | P147: DC店達成獎勵(經銷年度辦法，年實績未稅需達1,000萬以上，依淨實績計算獎勵) | R147: 全產品 | T147: 0
A148: TW002093001B | B148: TW002093001B | C148: TT-TTSI-20241224-0032 | D148: CESS2412002-ALL-DCS-ReachIncentive-2025 | E148: 2025-01-01 | F148: 2025-12-31 | G148: TTSI | H148: 2025-01-01 | I148: 2025-12-31 | J148: 協議-家電-DC店達成獎勵(經銷年度辦法，年實績未稅需達1,000萬以上，依淨實績計算獎勵)-01~12 | K148: TW002093001B | L148: 鴻嘉電化商行 | M148: TW | O148: % | P148: DC店達成獎勵(經銷年度辦法，年實績未稅需達1,000萬以上，依淨實績計算獎勵) | R148: 全產品 | T148: 0
A149: TW002083001B | B149: TW002083001B | C149: TT-TTSI-20241224-0032 | D149: CESS2412002-ALL-DCS-ReachIncentive-2025 | E149: 2025-01-01 | F149: 2025-12-31 | G149: TTSI | H149: 2025-01-01 | I149: 2025-12-31 | J149: 協議-家電-DC店達成獎勵(經銷年度辦法，年實績未稅需達1,000萬以上，依淨實績計算獎勵)-01~12 | K149: TW002083001B | L149: 路得企業 | M149: TW | O149: % | P149: DC店達成獎勵(經銷年度辦法，年實績未稅需達1,000萬以上，依淨實績計算獎勵) | R149: 全產品 | T149: 0
A150: TW005259001B | B150: TW005259001B | C150: TT-TTSI-20241224-0032 | D150: CESS2412002-ALL-DCS-ReachIncentive-2025 | E150: 2025-01-01 | F150: 2025-12-31 | G150: TTSI | H150: 2025-01-01 | I150: 2025-12-31 | J150: 協議-家電-DC店達成獎勵(經銷年度辦法，年實績未稅需達1,000萬以上，依淨實績計算獎勵)-01~12 | K150: TW005259001B | L150: 富禾電器 | M150: TW | O150: % | P150: DC店達成獎勵(經銷年度辦法，年實績未稅需達1,000萬以上，依淨實績計算獎勵) | R150: 全產品 | T150: 0
A151: TW003353001B | B151: TW003353001B | C151: TT-TTSI-20241224-0032 | D151: CESS2412002-ALL-DCS-ReachIncentive-2025 | E151: 2025-01-01 | F151: 2025-12-31 | G151: TTSI | H151: 2025-01-01 | I151: 2025-12-31 | J151: 協議-家電-DC店達成獎勵(經銷年度辦法，年實績未稅需達1,000萬以上，依淨實績計算獎勵)-01~12 | K151: TW003353001B | L151: 弦有電器 | M151: TW | O151: % | P151: DC店達成獎勵(經銷年度辦法，年實績未稅需達1,000萬以上，依淨實績計算獎勵) | R151: 全產品 | T151: 0
A152: TW003094001B | B152: TW003094001B | C152: TT-TTSI-20241224-0032 | D152: CESS2412002-ALL-DCS-ReachIncentive-2025 | E152: 2025-01-01 | F152: 2025-12-31 | G152: TTSI | H152: 2025-01-01 | I152: 2025-12-31 | J152: 協議-家電-DC店達成獎勵(經銷年度辦法，年實績未稅需達1,000萬以上，依淨實績計算獎勵)-01~12 | K152: TW003094001B | L152: 大銀幕視聽音響 | M152: TW | O152: % | P152: DC店達成獎勵(經銷年度辦法，年實績未稅需達1,000萬以上，依淨實績計算獎勵) | R152: 全產品 | T152: 0
A153: TW007207001B | B153: TW007207001B | C153: TT-TTSI-20241224-0032 | D153: CESS2412002-ALL-DCS-ReachIncentive-2025 | E153: 2025-01-01 | F153: 2025-12-31 | G153: TTSI | H153: 2025-01-01 | I153: 2025-12-31 | J153: 協議-家電-DC店達成獎勵(經銷年度辦法，年實績未稅需達1,000萬以上，依淨實績計算獎勵)-01~12 | K153: TW007207001B | L153: 泳菘水電工程行 | M153: TW | O153: % | P153: DC店達成獎勵(經銷年度辦法，年實績未稅需達1,000萬以上，依淨實績計算獎勵) | R153: 全產品 | T153: 0
A154: TW003190001B | B154: TW003190001B | C154: TT-TTSI-20241224-0032 | D154: CESS2412002-ALL-DCS-ReachIncentive-2025 | E154: 2025-01-01 | F154: 2025-12-31 | G154: TTSI | H154: 2025-01-01 | I154: 2025-12-31 | J154: 協議-家電-DC店達成獎勵(經銷年度辦法，年實績未稅需達1,000萬以上，依淨實績計算獎勵)-01~12 | K154: TW003190001B | L154: 天竺國音響 | M154: TW | O154: % | P154: DC店達成獎勵(經銷年度辦法，年實績未稅需達1,000萬以上，依淨實績計算獎勵) | R154: 全產品 | T154: 0
A155: TW005037002B | B155: TW005037002B | C155: TT-TTSI-20241224-0032 | D155: CESS2412002-ALL-DCS-ReachIncentive-2025 | E155: 2025-01-01 | F155: 2025-12-31 | G155: TTSI | H155: 2025-01-01 | I155: 2025-12-31 | J155: 協議-家電-DC店達成獎勵(經銷年度辦法，年實績未稅需達1,000萬以上，依淨實績計算獎勵)-01~12 | K155: TW005037002B | L155: 上隆電器 | M155: TW | O155: % | P155: DC店達成獎勵(經銷年度辦法，年實績未稅需達1,000萬以上，依淨實績計算獎勵) | R155: 全產品 | T155: 0
A156: TW002372001B | B156: TW002372001B | C156: TT-TTSI-20241224-0032 | D156: CESS2412002-ALL-DCS-ReachIncentive-2025 | E156: 2025-01-01 | F156: 2025-12-31 | G156: TTSI | H156: 2025-01-01 | I156: 2025-12-31 | J156: 協議-家電-DC店達成獎勵(經銷年度辦法，年實績未稅需達1,000萬以上，依淨實績計算獎勵)-01~12 | K156: TW002372001B | L156: 承德國際 | M156: TW | O156: % | P156: DC店達成獎勵(經銷年度辦法，年實績未稅需達1,000萬以上，依淨實績計算獎勵) | R156: 全產品 | T156: 0
A157: TW002721001B | B157: TW002721001B | C157: TT-TTSI-20241224-0032 | D157: CESS2412002-ALL-DCS-ReachIncentive-2025 | E157: 2025-01-01 | F157: 2025-12-31 | G157: TTSI | H157: 2025-01-01 | I157: 2025-12-31 | J157: 協議-家電-DC店達成獎勵(經銷年度辦法，年實績未稅需達1,000萬以上，依淨實績計算獎勵)-01~12 | K157: TW002721001B | L157: 統偉 | M157: TW | O157: % | P157: DC店達成獎勵(經銷年度辦法，年實績未稅需達1,000萬以上，依淨實績計算獎勵) | R157: 全產品 | T157: 0
A158: TW007635001B | B158: TW007635001B | C158: TT-TTSI-20241224-0032 | D158: CESS2412002-ALL-DCS-ReachIncentive-2025 | E158: 2025-01-01 | F158: 2025-12-31 | G158: TTSI | H158: 2025-01-01 | I158: 2025-12-31 | J158: 協議-家電-DC店達成獎勵(經銷年度辦法，年實績未稅需達1,000萬以上，依淨實績計算獎勵)-01~12 | K158: TW007635001B | L158: 睿宇企業有限公司 | M158: TW | O158: % | P158: DC店達成獎勵(經銷年度辦法，年實績未稅需達1,000萬以上，依淨實績計算獎勵) | R158: 全產品 | T158: 0
A159: TW002347001B | B159: TW002347001B | C159: TT-TTSI-20241230-0003 | D159: CESS2412002-ALL-DCS-GrowthIncentive-2025 | E159: 2025-01-01 | F159: 2025-12-31 | G159: TTSI | H159: 2025-01-01 | I159: 2025-12-31 | J159: 協議-家電-成長獎(DC店淨實績未稅達成1000萬且成長達25%↑獎勵0.6%)-01~12 | K159: TW002347001B | L159: 得興電器 | M159: TW | O159: % | P159: 成長獎(DC店淨實績未稅達成1000萬且成長達25%↑獎勵0.6%) | R159: 全產品 | T159: 0
A160: TW002927001B | B160: TW002927001B | C160: TT-TTSI-20241230-0003 | D160: CESS2412002-ALL-DCS-GrowthIncentive-2025 | E160: 2025-01-01 | F160: 2025-12-31 | G160: TTSI | H160: 2025-01-01 | I160: 2025-12-31 | J160: 協議-家電-成長獎(DC店淨實績未稅達成1000萬且成長達25%↑獎勵0.6%)-01~12 | K160: TW002927001B | L160: 中信冷凍電器 | M160: TW | O160: % | P160: 成長獎(DC店淨實績未稅達成1000萬且成長達25%↑獎勵0.6%) | R160: 全產品 | T160: 0
A161: TW007026001B | B161: TW007026001B | C161: TT-TTSI-20241230-0003 | D161: CESS2412002-ALL-DCS-GrowthIncentive-2025 | E161: 2025-01-01 | F161: 2025-12-31 | G161: TTSI | H161: 2025-01-01 | I161: 2025-12-31 | J161: 協議-家電-成長獎(DC店淨實績未稅達成1000萬且成長達25%↑獎勵0.6%)-01~12 | K161: TW007026001B | L161: 友誠汽車行 | M161: TW | O161: % | P161: 成長獎(DC店淨實績未稅達成1000萬且成長達25%↑獎勵0.6%) | R161: 全產品 | T161: 0
A162: TW007118001B | B162: TW007118001B | C162: TT-TTSI-20241230-0003 | D162: CESS2412002-ALL-DCS-GrowthIncentive-2025 | E162: 2025-01-01 | F162: 2025-12-31 | G162: TTSI | H162: 2025-01-01 | I162: 2025-12-31 | J162: 協議-家電-成長獎(DC店淨實績未稅達成1000萬且成長達25%↑獎勵0.6%)-01~12 | K162: TW007118001B | L162: 鈺陞有限公司 | M162: TW | O162: % | P162: 成長獎(DC店淨實績未稅達成1000萬且成長達25%↑獎勵0.6%) | R162: 全產品 | T162: 0
A163: TW006383001B | B163: TW006383001B | C163: TT-TTSI-20241230-0003 | D163: CESS2412002-ALL-DCS-GrowthIncentive-2025 | E163: 2025-01-01 | F163: 2025-12-31 | G163: TTSI | H163: 2025-01-01 | I163: 2025-12-31 | J163: 協議-家電-成長獎(DC店淨實績未稅達成1000萬且成長達25%↑獎勵0.6%)-01~12 | K163: TW006383001B | L163: 洪昌企業社 | M163: TW | O163: % | P163: 成長獎(DC店淨實績未稅達成1000萬且成長達25%↑獎勵0.6%) | R163: 全產品 | T163: 0
A164: TW006180001B | B164: TW006180001B | C164: TT-TTSI-20241230-0003 | D164: CESS2412002-ALL-DCS-GrowthIncentive-2025 | E164: 2025-01-01 | F164: 2025-12-31 | G164: TTSI | H164: 2025-01-01 | I164: 2025-12-31 | J164: 協議-家電-成長獎(DC店淨實績未稅達成1000萬且成長達25%↑獎勵0.6%)-01~12 | K164: TW006180001B | L164: 東翰企業社 | M164: TW | O164: % | P164: 成長獎(DC店淨實績未稅達成1000萬且成長達25%↑獎勵0.6%) | R164: 全產品 | T164: 0
A165: TW002652001B | B165: TW002652001B | C165: TT-TTSI-20241230-0003 | D165: CESS2412002-ALL-DCS-GrowthIncentive-2025 | E165: 2025-01-01 | F165: 2025-12-31 | G165: TTSI | H165: 2025-01-01 | I165: 2025-12-31 | J165: 協議-家電-成長獎(DC店淨實績未稅達成1000萬且成長達25%↑獎勵0.6%)-01~12 | K165: TW002652001B | L165: 第二電器音響 | M165: TW | O165: % | P165: 成長獎(DC店淨實績未稅達成1000萬且成長達25%↑獎勵0.6%) | R165: 全產品 | T165: 0
A166: TW002381001B | B166: TW002381001B | C166: TT-TTSI-20241230-0003 | D166: CESS2412002-ALL-DCS-GrowthIncentive-2025 | E166: 2025-01-01 | F166: 2025-12-31 | G166: TTSI | H166: 2025-01-01 | I166: 2025-12-31 | J166: 協議-家電-成長獎(DC店淨實績未稅達成1000萬且成長達25%↑獎勵0.6%)-01~12 | K166: TW002381001B | L166: 萬豐視聽 | M166: TW | O166: % | P166: 成長獎(DC店淨實績未稅達成1000萬且成長達25%↑獎勵0.6%) | R166: 全產品 | T166: 0
A167: TW005240001B | B167: TW005240001B | C167: TT-TTSI-20241230-0003 | D167: CESS2412002-ALL-DCS-GrowthIncentive-2025 | E167: 2025-01-01 | F167: 2025-12-31 | G167: TTSI | H167: 2025-01-01 | I167: 2025-12-31 | J167: 協議-家電-成長獎(DC店淨實績未稅達成1000萬且成長達25%↑獎勵0.6%)-01~12 | K167: TW005240001B | L167: 永順錩電器 | M167: TW | O167: % | P167: 成長獎(DC店淨實績未稅達成1000萬且成長達25%↑獎勵0.6%) | R167: 全產品 | T167: 0
A168: TW005358001B | B168: TW005358001B | C168: TT-TTSI-20241230-0003 | D168: CESS2412002-ALL-DCS-GrowthIncentive-2025 | E168: 2025-01-01 | F168: 2025-12-31 | G168: TTSI | H168: 2025-01-01 | I168: 2025-12-31 | J168: 協議-家電-成長獎(DC店淨實績未稅達成1000萬且成長達25%↑獎勵0.6%)-01~12 | K168: TW005358001B | L168: 力碩 | M168: TW | O168: % | P168: 成長獎(DC店淨實績未稅達成1000萬且成長達25%↑獎勵0.6%) | R168: 全產品 | T168: 0
A169: TW005064001B | B169: TW005064001B | C169: TT-TTSI-20241230-0003 | D169: CESS2412002-ALL-DCS-GrowthIncentive-2025 | E169: 2025-01-01 | F169: 2025-12-31 | G169: TTSI | H169: 2025-01-01 | I169: 2025-12-31 | J169: 協議-家電-成長獎(DC店淨實績未稅達成1000萬且成長達25%↑獎勵0.6%)-01~12 | K169: TW005064001B | L169: 竹一鑫電器 | M169: TW | O169: % | P169: 成長獎(DC店淨實績未稅達成1000萬且成長達25%↑獎勵0.6%) | R169: 全產品 | T169: 0
A170: TW006837001B | B170: TW006837001B | C170: TT-TTSI-20241230-0003 | D170: CESS2412002-ALL-DCS-GrowthIncentive-2025 | E170: 2025-01-01 | F170: 2025-12-31 | G170: TTSI | H170: 2025-01-01 | I170: 2025-12-31 | J170: 協議-家電-成長獎(DC店淨實績未稅達成1000萬且成長達25%↑獎勵0.6%)-01~12 | K170: TW006837001B | L170: 東亞電業有限公司 | M170: TW | O170: % | P170: 成長獎(DC店淨實績未稅達成1000萬且成長達25%↑獎勵0.6%) | R170: 全產品 | T170: 0
A171: TW005353001B | B171: TW005353001B | C171: TT-TTSI-20241230-0003 | D171: CESS2412002-ALL-DCS-GrowthIncentive-2025 | E171: 2025-01-01 | F171: 2025-12-31 | G171: TTSI | H171: 2025-01-01 | I171: 2025-12-31 | J171: 協議-家電-成長獎(DC店淨實績未稅達成1000萬且成長達25%↑獎勵0.6%)-01~12 | K171: TW005353001B | L171: 永昌電器 | M171: TW | O171: % | P171: 成長獎(DC店淨實績未稅達成1000萬且成長達25%↑獎勵0.6%) | R171: 全產品 | T171: 0
A172: TW003127001B | B172: TW003127001B | C172: TT-TTSI-20241230-0003 | D172: CESS2412002-ALL-DCS-GrowthIncentive-2025 | E172: 2025-01-01 | F172: 2025-12-31 | G172: TTSI | H172: 2025-01-01 | I172: 2025-12-31 | J172: 協議-家電-成長獎(DC店淨實績未稅達成1000萬且成長達25%↑獎勵0.6%)-01~12 | K172: TW003127001B | L172: 富盟企業 | M172: TW | O172: % | P172: 成長獎(DC店淨實績未稅達成1000萬且成長達25%↑獎勵0.6%) | R172: 全產品 | T172: 0
A173: TW003071001B | B173: TW003071001B | C173: TT-TTSI-20241230-0003 | D173: CESS2412002-ALL-DCS-GrowthIncentive-2025 | E173: 2025-01-01 | F173: 2025-12-31 | G173: TTSI | H173: 2025-01-01 | I173: 2025-12-31 | J173: 協議-家電-成長獎(DC店淨實績未稅達成1000萬且成長達25%↑獎勵0.6%)-01~12 | K173: TW003071001B | L173: 泰昀企業 | M173: TW | O173: % | P173: 成長獎(DC店淨實績未稅達成1000萬且成長達25%↑獎勵0.6%) | R173: 全產品 | T173: 0
A174: TW005702001B | B174: TW005702001B | C174: TT-TTSI-20241230-0003 | D174: CESS2412002-ALL-DCS-GrowthIncentive-2025 | E174: 2025-01-01 | F174: 2025-12-31 | G174: TTSI | H174: 2025-01-01 | I174: 2025-12-31 | J174: 協議-家電-成長獎(DC店淨實績未稅達成1000萬且成長達25%↑獎勵0.6%)-01~12 | K174: TW005702001B | L174: 京東科技 | M174: TW | O174: % | P174: 成長獎(DC店淨實績未稅達成1000萬且成長達25%↑獎勵0.6%) | R174: 全產品 | T174: 0
A175: TW004840001B | B175: TW004840001B | C175: TT-TTSI-20241230-0003 | D175: CESS2412002-ALL-DCS-GrowthIncentive-2025 | E175: 2025-01-01 | F175: 2025-12-31 | G175: TTSI | H175: 2025-01-01 | I175: 2025-12-31 | J175: 協議-家電-成長獎(DC店淨實績未稅達成1000萬且成長達25%↑獎勵0.6%)-01~12 | K175: TW004840001B | L175: 仰光有限公司 | M175: TW | O175: % | P175: 成長獎(DC店淨實績未稅達成1000萬且成長達25%↑獎勵0.6%) | R175: 全產品 | T175: 0
A176: TW002154001B | B176: TW002154001B | C176: TT-TTSI-20241230-0003 | D176: CESS2412002-ALL-DCS-GrowthIncentive-2025 | E176: 2025-01-01 | F176: 2025-12-31 | G176: TTSI | H176: 2025-01-01 | I176: 2025-12-31 | J176: 協議-家電-成長獎(DC店淨實績未稅達成1000萬且成長達25%↑獎勵0.6%)-01~12 | K176: TW002154001B | L176: 信福電器 | M176: TW | O176: % | P176: 成長獎(DC店淨實績未稅達成1000萬且成長達25%↑獎勵0.6%) | R176: 全產品 | T176: 0
A177: TW005406001B | B177: TW005406001B | C177: TT-TTSI-20241230-0003 | D177: CESS2412002-ALL-DCS-GrowthIncentive-2025 | E177: 2025-01-01 | F177: 2025-12-31 | G177: TTSI | H177: 2025-01-01 | I177: 2025-12-31 | J177: 協議-家電-成長獎(DC店淨實績未稅達成1000萬且成長達25%↑獎勵0.6%)-01~12 | K177: TW005406001B | L177: 百裕 | M177: TW | O177: % | P177: 成長獎(DC店淨實績未稅達成1000萬且成長達25%↑獎勵0.6%) | R177: 全產品 | T177: 0
A178: TW005202001B | B178: TW005202001B | C178: TT-TTSI-20241230-0003 | D178: CESS2412002-ALL-DCS-GrowthIncentive-2025 | E178: 2025-01-01 | F178: 2025-12-31 | G178: TTSI | H178: 2025-01-01 | I178: 2025-12-31 | J178: 協議-家電-成長獎(DC店淨實績未稅達成1000萬且成長達25%↑獎勵0.6%)-01~12 | K178: TW005202001B | L178: 通豪電器 | M178: TW | O178: % | P178: 成長獎(DC店淨實績未稅達成1000萬且成長達25%↑獎勵0.6%) | R178: 全產品 | T178: 0
A179: TW007111001B | B179: TW007111001B | C179: TT-TTSI-20241230-0003 | D179: CESS2412002-ALL-DCS-GrowthIncentive-2025 | E179: 2025-01-01 | F179: 2025-12-31 | G179: TTSI | H179: 2025-01-01 | I179: 2025-12-31 | J179: 協議-家電-成長獎(DC店淨實績未稅達成1000萬且成長達25%↑獎勵0.6%)-01~12 | K179: TW007111001B | L179: 豪順興業有限公司 | M179: TW | O179: % | P179: 成長獎(DC店淨實績未稅達成1000萬且成長達25%↑獎勵0.6%) | R179: 全產品 | T179: 0
A180: TW002262001B | B180: TW002262001B | C180: TT-TTSI-20241230-0003 | D180: CESS2412002-ALL-DCS-GrowthIncentive-2025 | E180: 2025-01-01 | F180: 2025-12-31 | G180: TTSI | H180: 2025-01-01 | I180: 2025-12-31 | J180: 協議-家電-成長獎(DC店淨實績未稅達成1000萬且成長達25%↑獎勵0.6%)-01~12 | K180: TW002262001B | L180: 太子電業 | M180: TW | O180: % | P180: 成長獎(DC店淨實績未稅達成1000萬且成長達25%↑獎勵0.6%) | R180: 全產品 | T180: 0
A181: TW007074001B | B181: TW007074001B | C181: TT-TTSI-20241230-0003 | D181: CESS2412002-ALL-DCS-GrowthIncentive-2025 | E181: 2025-01-01 | F181: 2025-12-31 | G181: TTSI | H181: 2025-01-01 | I181: 2025-12-31 | J181: 協議-家電-成長獎(DC店淨實績未稅達成1000萬且成長達25%↑獎勵0.6%)-01~12 | K181: TW007074001B | L181: 新秀國際企業有限公司 | M181: TW | O181: % | P181: 成長獎(DC店淨實績未稅達成1000萬且成長達25%↑獎勵0.6%) | R181: 全產品 | T181: 0
A182: TW006917001B | B182: TW006917001B | C182: TT-TTSI-20241230-0003 | D182: CESS2412002-ALL-DCS-GrowthIncentive-2025 | E182: 2025-01-01 | F182: 2025-12-31 | G182: TTSI | H182: 2025-01-01 | I182: 2025-12-31 | J182: 協議-家電-成長獎(DC店淨實績未稅達成1000萬且成長達25%↑獎勵0.6%)-01~12 | K182: TW006917001B | L182: 佳瑩科技 | M182: TW | O182: % | P182: 成長獎(DC店淨實績未稅達成1000萬且成長達25%↑獎勵0.6%) | R182: 全產品 | T182: 0
A183: TW007239001B | B183: TW007239001B | C183: TT-TTSI-20241230-0003 | D183: CESS2412002-ALL-DCS-GrowthIncentive-2025 | E183: 2025-01-01 | F183: 2025-12-31 | G183: TTSI | H183: 2025-01-01 | I183: 2025-12-31 | J183: 協議-家電-成長獎(DC店淨實績未稅達成1000萬且成長達25%↑獎勵0.6%)-01~12 | K183: TW007239001B | L183: 鴻昇興業行 | M183: TW | O183: % | P183: 成長獎(DC店淨實績未稅達成1000萬且成長達25%↑獎勵0.6%) | R183: 全產品 | T183: 0
A184: TW003023001B | B184: TW003023001B | C184: TT-TTSI-20241230-0003 | D184: CESS2412002-ALL-DCS-GrowthIncentive-2025 | E184: 2025-01-01 | F184: 2025-12-31 | G184: TTSI | H184: 2025-01-01 | I184: 2025-12-31 | J184: 協議-家電-成長獎(DC店淨實績未稅達成1000萬且成長達25%↑獎勵0.6%)-01~12 | K184: TW003023001B | L184: 翠亨企業 | M184: TW | O184: % | P184: 成長獎(DC店淨實績未稅達成1000萬且成長達25%↑獎勵0.6%) | R184: 全產品 | T184: 0
A185: TW007273001B | B185: TW007273001B | C185: TT-TTSI-20241230-0003 | D185: CESS2412002-ALL-DCS-GrowthIncentive-2025 | E185: 2025-01-01 | F185: 2025-12-31 | G185: TTSI | H185: 2025-01-01 | I185: 2025-12-31 | J185: 協議-家電-成長獎(DC店淨實績未稅達成1000萬且成長達25%↑獎勵0.6%)-01~12 | K185: TW007273001B | L185: 葳爾泰興業 | M185: TW | O185: % | P185: 成長獎(DC店淨實績未稅達成1000萬且成長達25%↑獎勵0.6%) | R185: 全產品 | T185: 0
A186: TW007425001B | B186: TW007425001B | C186: TT-TTSI-20241230-0003 | D186: CESS2412002-ALL-DCS-GrowthIncentive-2025 | E186: 2025-01-01 | F186: 2025-12-31 | G186: TTSI | H186: 2025-01-01 | I186: 2025-12-31 | J186: 協議-家電-成長獎(DC店淨實績未稅達成1000萬且成長達25%↑獎勵0.6%)-01~12 | K186: TW007425001B | L186: 羽恆冷氣行 | M186: TW | O186: % | P186: 成長獎(DC店淨實績未稅達成1000萬且成長達25%↑獎勵0.6%) | R186: 全產品 | T186: 0
A187: TW007529001B | B187: TW007529001B | C187: TT-TTSI-20241230-0003 | D187: CESS2412002-ALL-DCS-GrowthIncentive-2025 | E187: 2025-01-01 | F187: 2025-12-31 | G187: TTSI | H187: 2025-01-01 | I187: 2025-12-31 | J187: 協議-家電-成長獎(DC店淨實績未稅達成1000萬且成長達25%↑獎勵0.6%)-01~12 | K187: TW007529001B | L187: 頡汛空調興業社 | M187: TW | O187: % | P187: 成長獎(DC店淨實績未稅達成1000萬且成長達25%↑獎勵0.6%) | R187: 全產品 | T187: 0
A188: TW007446001B | B188: TW007446001B | C188: TT-TTSI-20241230-0003 | D188: CESS2412002-ALL-DCS-GrowthIncentive-2025 | E188: 2025-01-01 | F188: 2025-12-31 | G188: TTSI | H188: 2025-01-01 | I188: 2025-12-31 | J188: 協議-家電-成長獎(DC店淨實績未稅達成1000萬且成長達25%↑獎勵0.6%)-01~12 | K188: TW007446001B | L188: 源益冷氣空調 | M188: TW | O188: % | P188: 成長獎(DC店淨實績未稅達成1000萬且成長達25%↑獎勵0.6%) | R188: 全產品 | T188: 0
A189: TW007280001B | B189: TW007280001B | C189: TT-TTSI-20241230-0003 | D189: CESS2412002-ALL-DCS-GrowthIncentive-2025 | E189: 2025-01-01 | F189: 2025-12-31 | G189: TTSI | H189: 2025-01-01 | I189: 2025-12-31 | J189: 協議-家電-成長獎(DC店淨實績未稅達成1000萬且成長達25%↑獎勵0.6%)-01~12 | K189: TW007280001B | L189: 銘卿整合工程有限公司 | M189: TW | O189: % | P189: 成長獎(DC店淨實績未稅達成1000萬且成長達25%↑獎勵0.6%) | R189: 全產品 | T189: 0
A190: TW007302001B | B190: TW007302001B | C190: TT-TTSI-20241230-0003 | D190: CESS2412002-ALL-DCS-GrowthIncentive-2025 | E190: 2025-01-01 | F190: 2025-12-31 | G190: TTSI | H190: 2025-01-01 | I190: 2025-12-31 | J190: 協議-家電-成長獎(DC店淨實績未稅達成1000萬且成長達25%↑獎勵0.6%)-01~12 | K190: TW007302001B | L190: 淨寶企業有限公司 | M190: TW | O190: % | P190: 成長獎(DC店淨實績未稅達成1000萬且成長達25%↑獎勵0.6%) | R190: 全產品 | T190: 0
A191: TW007455001B | B191: TW007455001B | C191: TT-TTSI-20241230-0003 | D191: CESS2412002-ALL-DCS-GrowthIncentive-2025 | E191: 2025-01-01 | F191: 2025-12-31 | G191: TTSI | H191: 2025-01-01 | I191: 2025-12-31 | J191: 協議-家電-成長獎(DC店淨實績未稅達成1000萬且成長達25%↑獎勵0.6%)-01~12 | K191: TW007455001B | L191: 沅和科技 | M191: TW | O191: % | P191: 成長獎(DC店淨實績未稅達成1000萬且成長達25%↑獎勵0.6%) | R191: 全產品 | T191: 0
A192: TW007503001B | B192: TW007503001B | C192: TT-TTSI-20241230-0003 | D192: CESS2412002-ALL-DCS-GrowthIncentive-2025 | E192: 2025-01-01 | F192: 2025-12-31 | G192: TTSI | H192: 2025-01-01 | I192: 2025-12-31 | J192: 協議-家電-成長獎(DC店淨實績未稅達成1000萬且成長達25%↑獎勵0.6%)-01~12 | K192: TW007503001B | L192: 鴻順家電行 | M192: TW | O192: % | P192: 成長獎(DC店淨實績未稅達成1000萬且成長達25%↑獎勵0.6%) | R192: 全產品 | T192: 0
A193: TW007263001B | B193: TW007263001B | C193: TT-TTSI-20241230-0003 | D193: CESS2412002-ALL-DCS-GrowthIncentive-2025 | E193: 2025-01-01 | F193: 2025-12-31 | G193: TTSI | H193: 2025-01-01 | I193: 2025-12-31 | J193: 協議-家電-成長獎(DC店淨實績未稅達成1000萬且成長達25%↑獎勵0.6%)-01~12 | K193: TW007263001B | L193: 千琪 | M193: TW | O193: % | P193: 成長獎(DC店淨實績未稅達成1000萬且成長達25%↑獎勵0.6%) | R193: 全產品 | T193: 0
A194: =IFERROR(VLOOKUP(N194,多CODE,2,0),IF(RIGHT($B194,1)="H",LEFT($B194,11)&"B",IFERROR(VLOOKUP($B194,SHIP,3,0),$B194))) -> TW007272001B | B194: TW007272001B | C194: TT-TTSI-20241230-0003 | D194: CESS2412002-ALL-DCS-GrowthIncentive-2025 | E194: 2025-01-01 | F194: 2025-12-31 | G194: =MID(C194,4,4) -> TTSI | H194: 2025-01-01 | I194: 2025-12-31 | J194: 協議-家電-成長獎(DC店淨實績未稅達成1000萬且成長達25%↑獎勵0.6%)-01~12 | K194: TW007272001B | L194: 國盟冷凍空調有限公司 | M194: TW | O194: % | P194: 成長獎(DC店淨實績未稅達成1000萬且成長達25%↑獎勵0.6%) | R194: 全產品 | T194: 0
A195: TW007482001B | B195: =K195 -> TW007482001B | C195: TT-TTSI-20241230-0003 | D195: CESS2412002-ALL-DCS-GrowthIncentive-2025 | E195: 2025-01-01 | F195: 2025-12-31 | G195: TTSI | H195: =E195 -> 2025-01-01 | I195: =F195 -> 2025-12-31 | J195: 協議-家電-成長獎(DC店淨實績未稅達成1000萬且成長達25%↑獎勵0.6%)-01~12 | K195: TW007482001B | L195: 弘宇工程行 | M195: TW | O195: % | P195: 成長獎(DC店淨實績未稅達成1000萬且成長達25%↑獎勵0.6%) | R195: 全產品 | T195: 0
A196: TW007144001B | B196: TW007144001B | C196: TT-TTSI-20241230-0003 | D196: CESS2412002-ALL-DCS-GrowthIncentive-2025 | E196: 2025-01-01 | F196: 2025-12-31 | G196: TTSI | H196: 2025-01-01 | I196: 2025-12-31 | J196: 協議-家電-成長獎(DC店淨實績未稅達成1000萬且成長達25%↑獎勵0.6%)-01~12 | K196: TW007144001B | L196: 安成企業社 | M196: TW | O196: % | P196: 成長獎(DC店淨實績未稅達成1000萬且成長達25%↑獎勵0.6%) | R196: 全產品 | T196: 0
A197: TW006428001B | B197: TW006428001B | C197: TT-TTSI-20241230-0003 | D197: CESS2412002-ALL-DCS-GrowthIncentive-2025 | E197: 2025-01-01 | F197: 2025-12-31 | G197: TTSI | H197: 2025-01-01 | I197: 2025-12-31 | J197: 協議-家電-成長獎(DC店淨實績未稅達成1000萬且成長達25%↑獎勵0.6%)-01~12 | K197: TW006428001B | L197: 高詮電器行 | M197: TW | O197: % | P197: 成長獎(DC店淨實績未稅達成1000萬且成長達25%↑獎勵0.6%) | R197: 全產品 | T197: 0
A198: TW002431001B | B198: TW002431001B | C198: TT-TTSI-20241230-0003 | D198: CESS2412002-ALL-DCS-GrowthIncentive-2025 | E198: 2025-01-01 | F198: 2025-12-31 | G198: TTSI | H198: 2025-01-01 | I198: 2025-12-31 | J198: 協議-家電-成長獎(DC店淨實績未稅達成1000萬且成長達25%↑獎勵0.6%)-01~12 | K198: TW002431001B | L198: 一世代電氣 | M198: TW | O198: % | P198: 成長獎(DC店淨實績未稅達成1000萬且成長達25%↑獎勵0.6%) | R198: 全產品 | T198: 0
A199: TW007145001B | B199: TW007145001B | C199: TT-TTSI-20241230-0003 | D199: CESS2412002-ALL-DCS-GrowthIncentive-2025 | E199: 2025-01-01 | F199: 2025-12-31 | G199: TTSI | H199: 2025-01-01 | I199: 2025-12-31 | J199: 協議-家電-成長獎(DC店淨實績未稅達成1000萬且成長達25%↑獎勵0.6%)-01~12 | K199: TW007145001B | L199: 弘昇電器行 | M199: TW | O199: % | P199: 成長獎(DC店淨實績未稅達成1000萬且成長達25%↑獎勵0.6%) | R199: 全產品 | T199: 0
A200: TW004270001B | B200: TW004270001B | C200: TT-TTSI-20241230-0003 | D200: CESS2412002-ALL-DCS-GrowthIncentive-2025 | E200: 2025-01-01 | F200: 2025-12-31 | G200: TTSI | H200: 2025-01-01 | I200: 2025-12-31 | J200: 協議-家電-成長獎(DC店淨實績未稅達成1000萬且成長達25%↑獎勵0.6%)-01~12 | K200: TW004270001B | L200: 駿太科技 | M200: TW | O200: % | P200: 成長獎(DC店淨實績未稅達成1000萬且成長達25%↑獎勵0.6%) | R200: 全產品 | T200: 0
... 4300 more rows
